{"text_format":"1","workbook":"xlsx","n_sheets":7,"sheets":["PROĞRAM","Kura","On_Eleme","Eleme","32DE","16DE","SIRALAMA"],"not_rendered":{"charts":0,"images":7,"macros":1,"external_links":0,"defined_names":2,"comments":0,"pivot_tables":0},"unopened":[],"bounds":{"document_bytes":16777216,"sheet_cells":100000,"rows_first":2000,"rows_last":500,"rows_between":2000,"halvings":0,"cell_chars":16384,"cell_head_chars":4096},"cells_cut":0,"cells_raw":0,"read":"whole","date_system":"1900"}

{"sheet":"PROĞRAM","index":0,"n_rows":117,"n_cols":13,"rows_kept":117,"cut":false,"hidden":false,"merged":[[89,1,89,7],[104,1,104,7],[87,2,87,4],[33,1,33,7],[0,1,0,7],[1,1,1,7],[2,1,2,7],[3,1,3,7],[67,1,67,7]]}
[null,"TÜRKİYE MASA TENİSİ FEDERASYONU"]
[null,"İsmail Eren ALICI Küçükler Ferdi-Takım Türkiye Şampiyonası   09-13 Nisan 2025 ÇORUM"]
[null,"TASLAK PROGRAM"]
[null,"Çarşamba"]
[null,"SAAT"]
[null,"09:20","TEK ERKEK","ÖN ELEME ",null,"MAÇLARI","16 ","MASA",null,null,"TEK KIZ",125,"21 ÖE"]
[null,"09:40","TEK ERKEK","ÖN ELEME ",null,"MAÇLARI","16 ","MASA",null,null,"TEK ERKEK",134,"30 ÖE"]
[null,"09:40","TEK KIZ","ÖN ELEME ",null,"MAÇLARI","16 ","MASA",null,null,"ÇİFT KIZ",59,"6 ÖE"]
[null,"10:00","TEK KIZ","ÖN ELEME ",null,"MAÇLARI","8","MASA",null,null,"ÇİFT ERKEK",62,"6 ÖE"]
[null,"10:00","TEK ERKEK","ELEME ","1. TUR ","MAÇLARI","8","MASA",null,null,"KARMA",111,"8 ÖE"]
[null,"10:20","TEK ERKEK","ELEME ","1. TUR ","MAÇLARI","16 ","MASA",null,null,"TOPLAM",491]
[null,"10:40","TEK ERKEK","ELEME ","1. TUR ","MAÇLARI","16 ","MASA"]
[null,"11:00","TEK ERKEK","ELEME ","1. TUR ","MAÇLARI","8","MASA"]
[null,"11:00","TEK KIZ","ELEME ","1. TUR ","MAÇLARI","8","MASA"]
[null,"11:20","TEK KIZ","ELEME ","1. TUR ","MAÇLARI","16 ","MASA"]
[null,"11:40","TEK KIZ","ELEME ","1. TUR ","MAÇLARI","16 ","MASA"]
[null,"12:00","TEK KIZ","ELEME ","1. TUR ","MAÇLARI","8","MASA"]
[]
[null,"13:00","TEK ERKEK","ELEME ","2. TUR ","MAÇLARI","16","MASA"]
[null,"13:20","TEK ERKEK","ELEME ","2. TUR ","MAÇLARI","8","MASA"]
[null,"13:20","TEK KIZ","ELEME ","2. TUR ","MAÇLARI","8","MASA"]
[null,"13:40","TEK KIZ","ELEME ","2. TUR ","MAÇLARI","16","MASA"]
[null,"14:00","TEK ERKEK","ELEME ","3. TUR ","MAÇLARI","16","MASA"]
[null,"14:20","TEK KIZ","ELEME ","3. TUR ","MAÇLARI","16","MASA"]
[null,"14:40","TEK ERKEK","ANA TABLO","1. TUR ","MAÇLARI","8","MASA"]
[null,"15:00","TEK ERKEK","ANA TABLO","1. TUR ","MAÇLARI","8","MASA"]
[null,"15:20","TEK KIZ","ANA TABLO","1. TUR ","MAÇLARI","8","MASA"]
[null,"15:40","TEK KIZ","ANA TABLO","1. TUR ","MAÇLARI","8","MASA"]
[null,"16:00","TEK ERKEK","ANA TABLO","2. TUR ","MAÇLARI","8","MASA"]
[null,"16:20","TEK ERKEK","ANA TABLO","2. TUR ","MAÇLARI","8","MASA"]
[null,"16:40","TEK KIZ","ANA TABLO","2. TUR ","MAÇLARI","8","MASA"]
[null,"17:00","TEK KIZ","ANA TABLO","2. TUR ","MAÇLARI","8","MASA"]
[]
[null,"Perşembe"]
[null,"SAAT"]
[null,"09:00","TEK ERKEK","ANA TABLO","3. TUR ","MAÇLARI","12","MASA"]
[null,"09:30","TEK KIZ","ANA TABLO","3. TUR ","MAÇLARI","12","MASA"]
[null,"10:00","TEK ERKEK","ANA TABLO","4. TUR ","MAÇLARI","4","MASA"]
[null,"10:00","TEK KIZ","ANA TABLO","4. TUR ","MAÇLARI","4","MASA"]
[null,"10:30","TEK ERKEK","ANA TABLO","5. TUR ","MAÇLARI","6","MASA"]
[null,"10:30","TEK KIZ","ANA TABLO","5. TUR ","MAÇLARI","6","MASA"]
[null,"11:00","TEK ERKEK","ANA TABLO","6. TUR ","MAÇLARI","8","MASA"]
[null,"11:30","TEK KIZ","ANA TABLO","6. TUR ","MAÇLARI","8","MASA"]
[]
[null,"13:00","TEK ERKEK","ANA TABLO","7. TUR ","MAÇLARI","6","MASA"]
[null,"13:00","TEK KIZ","ANA TABLO","7. TUR ","MAÇLARI","6","MASA"]
[null,"13:30","TEK ERKEK","ANA TABLO","8. TUR ","MAÇLARI","5","MASA"]
[null,"13:30","TEK KIZ","ANA TABLO","8. TUR ","MAÇLARI","5","MASA"]
[null,"14:00","TEK ERKEK","ANA TABLO","9. TUR ","MAÇLARI","3","MASA"]
[null,"14:00","TEK KIZ","ANA TABLO","9. TUR ","MAÇLARI","3","MASA"]
[null,"14:00","ÇİFT ERKEK","ÖN ELEME ",null,"MAÇLARI","5","MASA"]
[null,"14:00","ÇİFT KIZ","ÖN ELEME ",null,"MAÇLARI","5","MASA"]
[null,"14:30","TEK ERKEK","ANA TABLO","10. TUR ","MAÇI","1","MASA"]
[null,"14:30","TEK KIZ","ANA TABLO","10. TUR ","MAÇI","1","MASA"]
[null,"15:00","TEK ERKEK","ANA TABLO","11. TUR ","MAÇI","1","MASA"]
[null,"15:00","TEK KIZ","ANA TABLO","11. TUR ","MAÇI","1","MASA"]
[null,"15:30","TEKLER ÖDÜL TÖRENİ"]
[]
[null,"16:00","ÇİFT ERKEK","ELEME ","1. TUR ","MAÇLARI","16","MASA"]
[null,"16:20","ÇİFT ERKEK","ELEME ","1. TUR ","MAÇLARI","8","MASA"]
[null,"16:20","ÇİFT KIZ","ELEME ","1. TUR ","MAÇLARI","8","MASA"]
[null,"16:40","ÇİFT KIZ","ELEME ","1. TUR ","MAÇLARI","16","MASA"]
[null,"16:40","ÇİFT ERKEK","ELEME ","2. TUR ","MAÇLARI","16","MASA"]
[null,"17:00","ÇİFT KIZ","ELEME ","2. TUR ","MAÇLARI","16","MASA"]
[null,"17:20","ÇİFT ERKEK","ANA TABLO","1. TUR ","MAÇLARI","8","MASA"]
[null,"17:20","ÇİFT KIZ","ANA TABLO","1. TUR ","MAÇLARI","8","MASA"]
[]
[null,"Cuma"]
[null,"SAAT"]
[null,"09:00","ÇİFT ERKEK","ANA TABLO","2. TUR ","MAÇLARI","4","MASA"]
[null,"09:00","ÇİFT KIZ","ANA TABLO","2. TUR ","MAÇLARI","4","MASA"]
[null,"09:30","ÇİFT ERKEK","ANA TABLO","3. TUR ","MAÇLARI","2","MASA"]
[null,"09:40","ÇİFT KIZ","ANA TABLO","3. TUR ","MAÇLARI","2","MASA"]
[null,"10:00","ÇİFT ERKEK","ANA TABLO","FİNAL","MAÇI","1","MASA"]
[null,"10:00","ÇİFT KIZ","ANA TABLO","FİNAL","MAÇI","1","MASA"]
[null,"10:00","KARMA ","ÖN ELEME ",null,"MAÇLARI","8","MASA"]
[null,"10:30","KARMA ","ELEME ","1. TUR ","MAÇLARI","16 ","MASA"]
[null,"10:30","KARMA ","ELEME ","1. TUR ","MAÇLARI","16 ","MASA"]
[null,"11:00","KARMA ","ELEME ","1. TUR ","MAÇLARI","16 ","MASA"]
[null,"11:30","KARMA ","ELEME ","2. TUR ","MAÇLARI","16","MASA"]
[]
[null,"14:00","KARMA ","ELEME ","2. TUR ","MAÇLARI","8","MASA"]
[null,"14:30","KARMA ","ELEME ","3. TUR ","MAÇLARI","16","MASA"]
[null,"15:00","KARMA ","ANA TABLO","1. TUR ","MAÇLARI","8","MASA"]
[null,"15:30","KARMA ","ANA TABLO","2. TUR ","MAÇLARI","4","MASA"]
[null,"16:00","KARMA ","ANA TABLO","3. TUR ","MAÇLARI","2","MASA"]
[null,"16:30","KARMA ","ANA TABLO","FİNAL","MAÇI",1,"MASA"]
[null,"17:00","           ÇİFT VE KARMA ÖDÜL TÖRENİ"]
[]
[null,"Cumartesi"]
[null,"SAAT"]
[null,"09:00","ERKEK TAKIM","ELEME GRUPLARI","1. Tur"," MAÇLARI","8","MASA"]
[null,"09:00"," KIZ TAKIM","ELEME GRUPLARI","1. Tur"," MAÇLARI","8","MASA"]
[null,"11:00","ERKEK TAKIM","ELEME GRUPLARI","2. Tur"," MAÇLARI","8","MASA"]
[null,"11:00"," KIZ TAKIM","ELEME GRUPLARI","2 Tur"," MAÇLARI","8","MASA"]
[]
[null,"14:30","ERKEK TAKIM","ELEME GRUPLARI","3. Tur"," MAÇLARI","8","MASA"]
[null,"14:30"," KIZ TAKIM","ELEME GRUPLARI","3. Tur"," MAÇLARI","8","MASA"]
[]
[null,"16:30","ERKEK TAKIM ANA TABLO","1-8 SIRALAMA","1. TUR"," MAÇLAR","4","MASA"]
[null,"16:30","ERKEK TAKIM ANA TABLO","9-16 SIRALAMA","1. TUR"," MAÇLAR","4","MASA"]
[null,"16:30"," KIZ TAKIM ANA TABLO","1-8 SIRALAMA","1. TUR"," MAÇLAR","4","MASA"]
[null,"16:30"," KIZ TAKIM ANA TABLO","9-16 SIRALAMA","1. TUR"," MAÇLAR","4","MASA"]
[]
[null,"Pazar"]
[null,"SAAT"]
[null,"09:30","ERKEK TAKIM ANA TABLO","1-8 SIRALAMA","2. Tur"," MAÇLARI","4","MASA"]
[null,"09:30","ERKEK TAKIM ANA TABLO","9-16 SIRALAMA","2 Tur"," MAÇLARI","4","MASA"]
[null,"09:30"," KIZ TAKIM ANA TABLO","1-8 SIRALAMA","2. Tur"," MAÇLARI","4","MASA"]
[null,"09:30"," KIZ TAKIM ANA TABLO","9-16 SIRALAMA","2 Tur"," MAÇLARI","4","MASA"]
[]
[null,"11:30","ERKEK TAKIM ANA TABLO","1-8 SIRALAMA","3. Tur"," MAÇLARI","4","MASA"]
[null,"11:30","ERKEK TAKIM ANA TABLO","9-16 SIRALAMA","3. Tur"," MAÇLARI","4","MASA"]
[null,"11:30"," KIZ TAKIM ANA TABLO","1-8 SIRALAMA","3. Tur"," MAÇLARI","4","MASA"]
[null,"11:30"," KIZ TAKIM ANA TABLO","9-16 SIRALAMA","3. Tur"," MAÇLARI","4","MASA"]
[]
[null,"14:00","      TAKIM MAÇLARI ÖDÜL TÖRENİ"]

{"sheet":"Kura","index":1,"n_rows":137,"n_cols":9,"rows_kept":137,"cut":false,"hidden":false,"merged":[[0,0,1,7]]}
["TÜRKİYE MASA TENİSİ FEDERASYONU\nİsmail Eren ALICI Küçükler Ferdi-Takım Türkiye Şampiyonası                                                                                                                                                                                          TEK ERKEK [ 09-13 Nisan 2025 ÇORUM ]"]
[]
["No",null,"Puan","Sporcu","İl","Takım Adı","İl","TŞ","Grup"]
[1,null,279,"ALİ ENES SEREN","KNY","SELÇUKLU BELEDİYESPOR","KONYA",279]
[3,5.6236863136291504E-2,275,"AHMET YİĞİT GÜLENLER","GZT","GAZİANTEP BLD. SPOR","GAZİANTEP",275]
[2,0.87144583463668823,275,"ARAS AYDIN","İST","FENERBAHÇE","İSTANBUL",275]
[4,0.10302263498306274,274,"AHMET ÇELİK","ÇRM","ARENA SPOR","ÇORUM",274]
[5,0.79888439178466797,274,"BERAT ÖZDEMİR","ÇRM","ÇORUM BLD. SPOR","ÇORUM ",274]
[6,null,272,"AHMET BERK TÜKENMEZ","İST","FENERBAHÇE","İSTANBUL",272]
[7,null,267,"YİĞİT HÜSEYİN SUBAŞI","ÇRM","ARENA SPOR","ÇORUM",267]
[8,null,266,"AKİF EMRE BUCAK","İST","İSTANBUL DSİ SPOR ","İSTANBUL",266]
[9,null,264,"SELİM AZAZİ","ANK","LİDER ENGELLİLER","ANKARA",264]
[11,9.7973823547363281E-2,258,"TAYİP YUSUF","BTM","1955 BATMAN BLD. SPOR","BATMAN",258]
[10,0.42845636606216431,258,"MUSTAFA YILDIRIM","İST","İBB SPOR","İSTANBUL",258]
[12,null,241,"MUHAMMED EMRE KANTİK","ÇRM","ARENA SPOR","ÇORUM",241]
[13,null,220,"BEYAZIT BERK DEMİR","AMS","KUTLUBEY OKULLARI","AMASYA",220]
[15,0.7090378999710083,218,"MUHAMMED BARIŞ KALKAN","GZT","GAZİANTEP GENÇLİK SPOR","GAZİANTEP",218]
[14,0.81449002027511597,217,"AKİF EFE ASLANPAY","MĞL","BODVED","MUĞLA",217]
[24,1.875835657119751E-2,216,"MUHAMMED EMİN KABADAYI","BRS","BURSA B. ŞEHİR BLD. SPOR","BURSA",216]
[18,7.3953330516815186E-2,216,"ALİ SAİD AKDOĞAN","ÇRM","FERDİ","ÇORUM ",216]
[23,0.10545265674591064,216,"KAYA ARSLAN","İST","YILDIZ RAKETLER","İSTANBUL",216]
[17,0.21036863327026367,216,"ALİ BERKE GÜMÜŞ","KNY","KARATAY BLD. SPOR","KONYA",216]
[16,0.59609454870223999,216,"BERK TURAN","YLV","YALOVA BLD. GENÇLİK SPOR","YALOVA",216]
[22,0.83273017406463623,216,"CEMAL AYAZ KARTAL","YLV","YALOVA BLD. GENÇLİK SPOR","YALOVA",216]
[19,0.29286682605743408,208,"EMİR SARIDOĞAN","ADN","ÇİLTAR MTSK","ADANA",208]
[20,0.30249756574630737,208,"METEHAN ŞAHİN","GZT","GAZİANTEP GENÇLİK SPOR","GAZİANTEP",208]
[25,0.37051534652709961,208,"KEREM GÜLLER","İST","İSTANBUL DSİ SPOR","İSTANBUL",208]
[27,0.48983043432235718,208,"DURSUN AYAZ NARMAN","KRK","KIRIKKALE GSİMSK","KIRIKKALE",208]
[26,0.68081939220428467,208,"KERİM ESAT ODACI","KNY","KARATAY BLD. SPOR","KONYA",208]
[21,0.8866000771522522,208,"EYMEN YERDELEN","SNP","SİNOP DORUK SPOR","SİNOP",208]
[28,null,171,"AHMET EFE YILMAZ","İST","İBB SPOR","İSTANBUL",171]
[29,null,170,"MEHMET FATİH GEZER","İST","FENERBAHÇE","İSTANBUL",170]
[32,8.0714643001556396E-2,166,"MUSTAFA KAYRA TURAN","KNY","SELÇUKLU BELEDİYESPOR","KONYA",166]
[31,0.45797145366668701,159,"CANBERK SEVİNDİK","ÇRM","ARENA SPOR","ÇORUM",159]
[30,0.5833590030670166,135,"AHMET URAZ KİRAZ","MĞL","BODVED","MUĞLA",135]
[33,9.7973823547363281E-2,121,"MEHMET AKİF TORU","AMS","KUTLUBEY OKULLARI","AMASYA",121]
[34,0.42845636606216431,120,"ENSAR AYDIN","İST","PENDİK BELEDİYE SPOR KULÜBÜ","İSTANBUL",120]
[61,2.8885781764984131E-2,118,"EGE BOLAT","ADN","ÇİLTAR MTSK","ADANA",118]
[49,0.17908930778503418,117,"YİĞİT BOLAT","ADN","ÇİLTAR MTSK","ADANA",117]
[57,0.37960469722747803,116,"TOLGAHAN PEKMEZ","AMS","KUTLUBEY OKULLARI","AMASYA",116]
[55,0.79319757223129272,116,"TAHA DERELİ","İST","İBB SPOR","İSTANBUL",116]
[41,0.13873231410980225,108,"AKİF ÇİĞİL","ADN","ÇİLTAR MTSK","ADANA",108]
[46,0.28150343894958496,108,"ÖMER MUSAB TOY","BTM","1955 BATMAN BLD. SPOR","BATMAN",108]
[38,0.39584428071975708,108,"ŞEYHMUS KAPLAN","ÇRM","ÇORUM BLD. SPOR","ÇORUM ",108]
[40,0.50337117910385132,108,"KEREM KÖSE","İST","PENDİK BELEDİYE SPOR KULÜBÜ","İSTANBUL",108]
[39,0.42753332853317261,27,"CAN ÖZTÜRK","SNP","SİNOP DORUK SPOR","SİNOP",27]
[48,0.48983043432235718,26,"EYMEN SELİM YILMAZ","KNY","SELÇUKLU BLD. SPOR","KONYA",26]
[53,0.49521130323410034,23,"AHMET AZİZ YETİM","ÇRM","ÇORUM BLD. SPOR","ÇORUM ",23]
[60,0.50906813144683838,20,"HAMZA ÖZBEK","KNY","SELÇUKLU BLD. SPOR","KONYA",20]
[42,0.51801592111587524,16,"HÜSEYİN EREN YILMAZ","ÇRM","ÇORUM BLD. SPOR","ÇORUM ",16]
[59,0.75702953338623047,16,"MUHAMMED EYMEN SOLAK","ÇRM","ÇORUM BLD. SPOR","ÇORUM ",16]
[51,0.40606272220611572,8,"HASAN ÖZTEKİN","BTM","1955 BATMAN BLD. SPOR","BATMAN",8]
[45,0.50972002744674683,8,"KEREM URHAN","ÇRM","ÇORUM BLD. SPOR","ÇORUM ",8]
[120,2.7148723602294922E-3,null,"ÇINAR AYDINLIK","ADN","ADANA GENÇLİK VE SPOR","ADANA",""]
[91,1.2874305248260498E-2,null,"ZEKİ CİHAN KONUŞUM","ADN","ADANA GENÇLİK VE SPOR","ADANA",""]
[113,2.9402673244476318E-2,null,"EYMEN SAVCI","ADN","ÇİLTAR MTSK","ADANA",""]
[106,4.4667840003967285E-2,null,"BERA AKİF KALKAN","AMS","KUTLUBEY OKULLARI","AMASYA",""]
[72,5.3108811378479004E-2,null,"MUHAMMED EMİR ÖZEN","AMS","KUTLUBEY OKULLARI","AMASYA",""]
[127,5.4616212844848633E-2,null,"MUHAMMED YASİR TORU","AMS","KUTLUBEY OKULLARI","AMASYA",""]
[68,9.7556233406066895E-2,null,"YUSUF DURSUN KOCA","AMS","KUTLUBEY OKULLARI","AMASYA",""]
[131,0.12964177131652832,null,"EYMEN BAŞAR","ANK","LİDER ENGELLİLER","ANKARA",""]
[70,0.13315510749816895,null,"BUĞRA AYAZ ATASOY","ARD","ARDAHAN GSİMSK","ARDAHAN",""]
[111,0.15320903062820435,null,"CAN MUHAMMED GÜNAL","ARD","ARDAHAN GSİMSK","ARDAHAN",""]
[114,0.15654939413070679,null,"ALİ DUMAN","BTM","1955 BATMAN BLD. SPOR","BATMAN",""]
[74,0.16283833980560303,null,"BARAN ERDEM","BTM","1955 BATMAN BLD. SPOR","BATMAN",""]
[115,0.21765697002410889,null,"MUHAMMED YUSUF ÖZTEKİN","BTM","1955 BATMAN BLD. SPOR","BATMAN",""]
[56,0.21878558397293091,null,"HALİM SANCAR","BYB","BAYBURT GENÇLİK MERKEZİ","BAYBURT",""]
[124,0.23562759160995483,null,"YİĞİT ALİ BALLAROĞLU","BYB","BAYBURT GENÇLİK MERKEZİ","BAYBURT",""]
[81,0.24069845676422119,null,"DENİZHAN SEREN","BRD","BURDUR BAHÇEŞEHİR KOLEJİ GSK","BURDUR",""]
[80,0.24622559547424316,null,"İSMAİL DİNLER","BRD","BURDUR BAHÇEŞEHİR KOLEJİ GSK","BURDUR",""]
[73,0.24997323751449585,null,"SAİM EREN SİPAHİ","BRD","BURDUR BAHÇEŞEHİR KOLEJİ GSK","BURDUR",""]
[95,0.25086969137191772,null,"YÜCEL BAZ","BRD","BURDUR BAHÇEŞEHİR KOLEJİ GSK","BURDUR",""]
[108,0.26813215017318726,null,"EYMEN YAZGAN","BRS","BURSA B. ŞEHİR BLD. SPOR","BURSA",""]
[83,0.26817178726196289,null,"FURKAN KONYALI","ÇRM","ARENA SPOR","ÇORUM",""]
[66,0.28762871026992798,null,"KAYA TEMİR","ÇRM","ARENA SPOR","ÇORUM",""]
[71,0.29105204343795776,null,"MEHMET KARAVELİOĞLU","ÇRM","ARENA SPOR","ÇORUM",""]
[104,0.29799610376358032,null,"GOKTUĞ BİÇER","ÇRM","GENÇLİK SPOR","ÇORUM",""]
[47,0.31191176176071167,null,"TUNAY DENİZ SAKINÇ","ÇRM","GENÇLİK SPOR","ÇORUM",""]
[62,0.31403928995132446,null,"AYAZ KANAK","ÇRM","ÇORUM BLD. SPOR","ÇORUM ",""]
[94,0.32171565294265747,null,"MUSTAFA YAĞIZ ÖZÇELİK","ÇRM","ÇORUM BLD. SPOR","ÇORUM ",""]
[98,0.35398697853088379,null,"KUDRET GÜLMEZLER","DNZ","DENİZLİ B. ŞEHİR BLD. SPOR","DENİZLİ",""]
[85,0.36480104923248291,null,"AREL BATU DÜDÜKÇÜ","DNZ","DENİZLİ B.ŞEHİR BLD. SPOR","DENİZLİ",""]
[78,0.36728018522262573,null,"EYMEN AYDOĞAN","DNZ","DENİZLİ B.ŞEHİR BLD. SPOR","DENİZLİ",""]
[77,0.3749508261680603,null,"HALİT EMRE MUSLUBAŞ","DNZ","DENİZLİ B.ŞEHİR BLD. SPOR","DENİZLİ",""]
[102,0.38753682374954224,null,"KUZEY ÖZNERGİZ","DNZ","DENİZLİ B.ŞEHİR BLD. SPOR","DENİZLİ",""]
[133,0.39444619417190552,null,"MEHMET FATİH USLUER","DNZ","DENİZLİ B.ŞEHİR BLD. SPOR","DENİZLİ",""]
[37,0.3961983323097229,null,"AHMET EMİR KALKAN","GZT","GAZİANTEP BLD. SPOR","GAZİANTEP",""]
[86,0.39875549077987671,null,"BERAT DAĞTEKİN","GZT","GAZİANTEP GENÇLİK SPOR","GAZİANTEP",""]
[89,0.40769481658935547,null,"KEREM UZUN","GRS","YALIKÖY ŞBÇSK","GİRESUN",""]
[64,0.4328271746635437,null,"ARMANÇ RODİN ORAKÇI","HKR","HAKKARİ MTSK","HAKKARİ",""]
[58,0.45123946666717529,null,"SALİH BOZKIR","HKR","HAKKARİ MTSK","HAKKARİ",""]
[92,0.4566810131072998,null,"OĞUZHAN ER","HKR","HAKKARİ POLİS GÜCÜ","HAKKARİ",""]
[103,0.49369299411773682,null,"YUSUF İSLAM ÇİFTÇİ","HKR","HAKKARİ POLİS GÜCÜ","HAKKARİ",""]
[84,0.49851638078689575,null,"ALİ UYGAR YILDIRICI","İST","FENERBAHÇE","İSTANBUL",""]
[123,0.50581580400466919,null,"AKİF EYMEN TURAN","İST","İSTANBUL DSİ SPOR","İSTANBUL",""]
[122,0.5228043794631958,null,"HÜSEYİN UTKU KIRBAÇ ","İST","PENDİK BELEDİYE SPOR KULÜBÜ","İSTANBUL",""]
[90,0.52661716938018799,null,"YUSUF EFE GÜL ","İST","PENDİK BELEDİYE SPOR KULÜBÜ","İSTANBUL",""]
[130,0.53324294090270996,null,"DEMİR YÖNÜ","İST","YILDIZ RAKETLER","İSTANBUL",""]
[126,0.56979602575302124,null,"ENES KARGILI","KRK","DÜNDAR ÖZEL SPORCULAR SPOR","KIRIKKALE",""]
[36,0.57534855604171753,null,"HÜSEYİN TAŞ","KRK","DÜNDAR ÖZEL SPORCULAR SPOR","KIRIKKALE",""]
[118,0.57685291767120361,null,"POYRAZ KAAN UGUN","KRK","DÜNDAR ÖZEL SPORCULAR SPOR","KIRIKKALE",""]
[44,0.58392703533172607,null,"AHMET TALHA ALSANCAK","KRK","KIRIKKALE GSİMSK","KIRIKKALE",""]
[121,0.5928419828414917,null,"CAFER ASAF ÖZ","KRK","KIRIKKALE GSİMSK","KIRIKKALE",""]
[93,0.60693824291229248,null,"EREN GÖKDEMİR","KRK","KIRIKKALE GSİMSK","KIRIKKALE",""]
[82,0.61019665002822876,null,"BARIŞ ÇAKIR","KRL","LÜLEBURGAZ ZİRVE SPOR ","KIRKLARELİ",""]
[128,0.61265665292739868,null,"DEVRİM ÖZTEKİN","KRL","LÜLEBURGAZ ZİRVE SPOR ","KIRKLARELİ",""]
[65,0.61401444673538208,null,"ÖMER MALKUŞ","KRL","LÜLEBURGAZ ZİRVE SPOR ","KIRKLARELİ",""]
[99,0.62992399930953979,null,"AHMET ERDEM AYDIN","KNY","KARATAY BLD. SPOR","KONYA",""]
[97,0.64306485652923584,null,"MUHAMMED EMİN KARAKURT","KNY","KARATAY BLD. SPOR","KONYA",""]
[54,0.64513307809829712,null,"MUHAMMET SAİD OĞUZ","KNY","KARATAY BLD. SPOR","KONYA",""]
[101,0.65001785755157471,null,"TAHİR EFE ŞAHİN","KNY","KARATAY BLD. SPOR","KONYA",""]
[125,0.6509283185005188,null,"ZAHİD EMİR TEMEL","KNY","KARATAY BLD. SPOR","KONYA",""]
[43,0.67843377590179443,null,"AHMET İLKER AY","KNY","SELÇUKLU BLD. SPOR","KONYA",""]
[76,0.69386625289916992,null,"YUNUS BURAK SULAK","KNY","SELÇUKLU BLD. SPOR","KONYA",""]
[75,0.7022901177406311,null,"İSHAK TARHAN","MRD","MERİT GRUP REAL MARDİN ","MARDİN ",""]
[116,0.71688783168792725,null,"İSMAİL TARHAN","MRD","MERİT GRUP REAL MARDİN ","MARDİN ",""]
[117,0.73113656044006348,null,"M. BİLAL ARTUKOĞLU","MRD","MERİT GRUP REAL MARDİN ","MARDİN ",""]
[132,0.76987749338150024,null,"SUHEYB DOĞAN","MRD","MERİT GRUP REAL MARDİN ","MARDİN ",""]
[129,0.81005895137786865,null,"MUHAMMED BELLO","MRS","MERSİN GHSK","MERSİN",""]
[109,0.82280707359313965,null,"ATA URAZ BAHADIR","MĞL","BODVED","MUĞLA",""]
[105,0.8343963623046875,null,"YUSUF TOPRAK ÇOLAK","MĞL","BODVED","MUĞLA",""]
[67,0.8359600305557251,null,"ABDULLAH EYMEN KARMİL","ORD","ORDU GSİMSK","ORDU",""]
[110,0.83637475967407227,null,"ALP TUĞRA DURUKAN","ORD","ORDU GSİMSK","ORDU",""]
[96,0.85002297163009644,null,"MERT EMİR YİĞİT","SMS","ÇARŞAMBA BLD. SPOR","SAMSUN",""]
[88,0.85396671295166016,null,"SEBAHATTİN SİRAÇ DURMUŞ","SMS","ÇARŞAMBA BLD. SPOR","SAMSUN",""]
[87,0.87135952711105347,null,"DEMİR DEMİRCİ","SNP","SİNOP DORUK SPOR","SİNOP",""]
[107,0.87859374284744263,null,"SARP ÇOLAK","TRB","ORTAHİSAR BLD. SPOR","TRABZON",""]
[52,0.8980833888053894,null,"EBUBEKİR YILMAZ","VAN       ","YENİ ÖZVAN GENÇLİK SPOR","VAN       ",""]
[35,0.89910072088241577,null,"ENSAR ERFİDAN","VAN       ","YENİ ÖZVAN GENÇLİK SPOR","VAN       ",""]
[100,0.93139910697937012,null,"MEHMET TATAR","VAN       ","YENİ ÖZVAN GENÇLİK SPOR","VAN       ",""]
[50,0.96572542190551758,null,"NURULLAH ÖZCAN","VAN       ","YENİ ÖZVAN GENÇLİK SPOR","VAN       ",""]
[112,0.96835851669311523,null,"ÖMER KARABULUT","VAN       ","YENİ ÖZVAN GENÇLİK SPOR","VAN       ",""]
[79,0.98114681243896484,null,"TAHA ÖMER ÖZKAN","VAN       ","YENİ ÖZVAN GENÇLİK SPOR","VAN       ",""]
[119,0.98126411437988281,null,"ALİ KESKİN","YLV","YALOVA BLD. GENÇLİK SPOR","YALOVA",""]
[63,0.98214203119277954,null,"DEMİR SERT","YLV","YALOVA BLD. GENÇLİK SPOR","YALOVA",""]
[69,0.99073582887649536,null,"DORUK SERT","YLV","YALOVA BLD. GENÇLİK SPOR","YALOVA",""]
[134]

{"sheet":"On_Eleme","index":2,"n_rows":90,"n_cols":9,"rows_kept":90,"cut":false,"hidden":false,"merged":[[0,1,2,8]]}
[null,"TÜRKİYE MASA TENİSİ FEDERASYONU\nİsmail Eren ALICI Küçükler Ferdi-Takım Türkiye Şampiyonası                                                                                                                                                                                          TEK ERKEK [ 09-13 Nisan 2025 ÇORUM ] [ Ön Eleme ]"]
[]
[]
[null,null,null,null,"Sporcu","Skor","Galip",null,"Külüp Adı"]
[1,"E1",84,null,"ALİ UYGAR YILDIRICI (İST)",1,"YUSUF TOPRAK ÇOLAK (MĞL)",null,"FENERBAHÇE"]
["1.1",null,105,null,"YUSUF TOPRAK ÇOLAK (MĞL)",3,null,null,"BODVED"]
[]
[2,"E2",61,null,"EGE BOLAT (ADN)",3,"EGE BOLAT (ADN)",null,"ÇİLTAR MTSK"]
["2.2",null,106,null,"BERA AKİF KALKAN (AMS)",0,null,null,"KUTLUBEY OKULLARI"]
[]
[3,"E3",93,null,"EREN GÖKDEMİR (KRK)",3,"EREN GÖKDEMİR (KRK)",null,"KIRIKKALE GSİMSK"]
["3.3",null,107,null,"SARP ÇOLAK (TRB)",0,null,null,"ORTAHİSAR BLD. SPOR"]
[]
[4,"E4",52,null,"EBUBEKİR YILMAZ (VAN       )",0,"EYMEN YAZGAN (BRS)",null,"YENİ ÖZVAN GENÇLİK SPOR"]
["4.4",null,108,null,"EYMEN YAZGAN (BRS)",3,null,null,"BURSA B. ŞEHİR BLD. SPOR"]
[]
[5,"E5",77,null,"HALİT EMRE MUSLUBAŞ (DNZ)",1,"ATA URAZ BAHADIR (MĞL)",null,"DENİZLİ B.ŞEHİR BLD. SPOR"]
["5.5",null,109,null,"ATA URAZ BAHADIR (MĞL)",3,null,null,"BODVED"]
[]
[6,"E6",68,null,"YUSUF DURSUN KOCA (AMS)",3,"YUSUF DURSUN KOCA (AMS)",null,"KUTLUBEY OKULLARI"]
["6.6",null,110,null,"ALP TUĞRA DURUKAN (ORD)",0,null,null,"ORDU GSİMSK"]
[]
[7,"E7",100,null,"MEHMET TATAR (VAN       )",3,"MEHMET TATAR (VAN       )",null,"YENİ ÖZVAN GENÇLİK SPOR"]
["7.7",null,111,null,"CAN MUHAMMED GÜNAL (ARD)",0,null,null,"ARDAHAN GSİMSK"]
[]
[8,"E8",45,null,"KEREM URHAN (ÇRM)",3,"KEREM URHAN (ÇRM)",null,"ÇORUM BLD. SPOR"]
["8.8",null,112,null,"ÖMER KARABULUT (VAN       )",1,null,null,"YENİ ÖZVAN GENÇLİK SPOR"]
[]
[9,"E9",87,null,"DEMİR DEMİRCİ (SNP)",1,"EYMEN SAVCI (ADN)",null,"SİNOP DORUK SPOR"]
["9.9",null,113,null,"EYMEN SAVCI (ADN)",3,null,null,"ÇİLTAR MTSK"]
[]
[10,"E10",58,null,"SALİH BOZKIR (HKR)",0,"ALİ DUMAN (BTM)",null,"HAKKARİ MTSK"]
["10.10",null,114,null,"ALİ DUMAN (BTM)",3,null,null,"1955 BATMAN BLD. SPOR"]
[]
[11,"E11",90,null,"YUSUF EFE GÜL  (İST)",2,"MUHAMMED YUSUF ÖZTEKİN (BTM)",null,"PENDİK BELEDİYE SPOR KULÜBÜ"]
["11.11",null,115,null,"MUHAMMED YUSUF ÖZTEKİN (BTM)",3,null,null,"1955 BATMAN BLD. SPOR"]
[]
[12,"E12",55,null,"TAHA DERELİ (İST)",1,"İSMAİL TARHAN (MRD)",null,"İBB SPOR"]
["12.12",null,116,null,"İSMAİL TARHAN (MRD)",3,null,null,"MERİT GRUP REAL MARDİN "]
[]
[13,"E13",74,null,"BARAN ERDEM (BTM)",3,"BARAN ERDEM (BTM)",null,"1955 BATMAN BLD. SPOR"]
["13.13",null,117,null,"M. BİLAL ARTUKOĞLU (MRD)",0,null,null,"MERİT GRUP REAL MARDİN "]
[]
[14,"E14",71,null,"MEHMET KARAVELİOĞLU (ÇRM)",0,"POYRAZ KAAN UGUN (KRK)",null,"ARENA SPOR"]
["14.14",null,118,null,"POYRAZ KAAN UGUN (KRK)",3,null,null,"DÜNDAR ÖZEL SPORCULAR SPOR"]
[]
[15,"E15",103,null,"YUSUF İSLAM ÇİFTÇİ (HKR)",0,"ALİ KESKİN (YLV)",null,"HAKKARİ POLİS GÜCÜ"]
["15.15",null,119,null,"ALİ KESKİN (YLV)",3,null,null,"YALOVA BLD. GENÇLİK SPOR"]
[]
[16,"E16",42,null,"HÜSEYİN EREN YILMAZ (ÇRM)",3,"HÜSEYİN EREN YILMAZ (ÇRM)",null,"ÇORUM BLD. SPOR"]
["16.16",null,120,null,"ÇINAR AYDINLIK (ADN)",0,null,null,"ADANA GENÇLİK VE SPOR"]
[]
[17,"E17",82,null,"BARIŞ ÇAKIR (KRL)",1,"CAFER ASAF ÖZ (KRK)",null,"LÜLEBURGAZ ZİRVE SPOR "]
["17.17",null,121,null,"CAFER ASAF ÖZ (KRK)",3,null,null,"KIRIKKALE GSİMSK"]
[]
[18,"E18",63,null,"DEMİR SERT (YLV)",3,"DEMİR SERT (YLV)",null,"YALOVA BLD. GENÇLİK SPOR"]
["18.18",null,122,null,"HÜSEYİN UTKU KIRBAÇ  (İST)",2,null,null,"PENDİK BELEDİYE SPOR KULÜBÜ"]
[]
[19,"E19",95,null,"YÜCEL BAZ (BRD)",0,"AKİF EYMEN TURAN (İST)",null,"BURDUR BAHÇEŞEHİR KOLEJİ GSK"]
["19.19",null,123,null,"AKİF EYMEN TURAN (İST)",3,null,null,"İSTANBUL DSİ SPOR"]
[]
[20,"E20",50,null,"NURULLAH ÖZCAN (VAN       )",0,"YİĞİT ALİ BALLAROĞLU (BYB)",null,"YENİ ÖZVAN GENÇLİK SPOR"]
["20.20",null,124,null,"YİĞİT ALİ BALLAROĞLU (BYB)",3,null,null,"BAYBURT GENÇLİK MERKEZİ"]
[]
[21,"E21",79,null,"TAHA ÖMER ÖZKAN (VAN       )",0,"ZAHİD EMİR TEMEL (KNY)",null,"YENİ ÖZVAN GENÇLİK SPOR"]
["21.21",null,125,null,"ZAHİD EMİR TEMEL (KNY)",3,null,null,"KARATAY BLD. SPOR"]
[]
[22,"E22",66,null,"KAYA TEMİR (ÇRM)",0,"ENES KARGILI (KRK)",null,"ARENA SPOR"]
["22.22",null,126,null,"ENES KARGILI (KRK)",3,null,null,"DÜNDAR ÖZEL SPORCULAR SPOR"]
[]
[23,"E23",98,null,"KUDRET GÜLMEZLER (DNZ)",3,"KUDRET GÜLMEZLER (DNZ)",null,"DENİZLİ B. ŞEHİR BLD. SPOR"]
["23.23",null,127,null,"MUHAMMED YASİR TORU (AMS)",0,null,null,"KUTLUBEY OKULLARI"]
[]
[24,"E24",47,null,"TUNAY DENİZ SAKINÇ (ÇRM)",3,"TUNAY DENİZ SAKINÇ (ÇRM)",null,"GENÇLİK SPOR"]
["24.24",null,128,null,"DEVRİM ÖZTEKİN (KRL)",0,null,null,"LÜLEBURGAZ ZİRVE SPOR "]
[]
[25,"E25",102,null,"KUZEY ÖZNERGİZ (DNZ)",3,"KUZEY ÖZNERGİZ (DNZ)",null,"DENİZLİ B.ŞEHİR BLD. SPOR"]
["25.25",null,129,null,"MUHAMMED BELLO (MRS)",0,null,null,"MERSİN GHSK"]
[]
[26,"E26",64,null,"ARMANÇ RODİN ORAKÇI (HKR)",0,"DEMİR YÖNÜ (İST)",null,"HAKKARİ MTSK"]
["26.26",null,130,null,"DEMİR YÖNÜ (İST)",3,null,null,"YILDIZ RAKETLER"]
[]
[27,"E27",59,null,"MUHAMMED EYMEN SOLAK (ÇRM)",0,"EYMEN BAŞAR (ANK)",null,"ÇORUM BLD. SPOR"]
["27.27",null,131,null,"EYMEN BAŞAR (ANK)",3,null,null,"LİDER ENGELLİLER"]
[]
[28,"E28",75,null,"İSHAK TARHAN (MRD)",3,"İSHAK TARHAN (MRD)",null,"MERİT GRUP REAL MARDİN "]
["28.28",null,133,null,"MEHMET FATİH USLUER (DNZ)",0,null,null,"DENİZLİ B.ŞEHİR BLD. SPOR"]
[]
[29,"E29",48,null,"EYMEN SELİM YILMAZ (KNY)",3,"EYMEN SELİM YILMAZ (KNY)",null,"SELÇUKLU BLD. SPOR"]
["29.29",null,132,null,"SUHEYB DOĞAN (MRD)",0,null,null,"MERİT GRUP REAL MARDİN "]

{"sheet":"Eleme","index":3,"n_rows":679,"n_cols":69,"rows_kept":679,"cut":false,"hidden":false,"merged":[[0,0,1,24],[267,25,267,26],[315,25,315,26],[363,25,363,26],[651,5,651,11],[654,5,654,11],[657,5,657,11],[585,5,585,11],[588,5,588,11],[583,5,583,11],[591,5,591,11],[586,5,586,11],[589,5,589,11],[594,5,594,11],[597,5,597,11],[600,5,600,11],[592,5,592,11],[595,5,595,11],[598,5,598,11],[642,5,642,11],[637,5,637,11],[640,5,640,11],[636,5,636,11],[639,5,639,11],[678,5,678,11],[670,5,670,11],[673,5,673,11],[676,5,676,11],[672,5,672,11],[675,5,675,11],[664,5,664,11],[667,5,667,11],[663,5,663,11],[666,5,666,11],[669,5,669,11],[658,5,658,11],[661,5,661,11],[660,5,660,11],[649,5,649,11],[652,5,652,11],[655,5,655,11],[648,5,648,11],[643,5,643,11],[646,5,646,11],[645,5,645,11],[628,5,628,11],[631,5,631,11],[634,5,634,11],[627,5,627,11],[630,5,630,11],[633,5,633,11],[622,5,622,11],[625,5,625,11],[621,5,621,11],[624,5,624,11],[613,5,613,11],[616,5,616,11],[619,5,619,11],[615,5,615,11],[618,5,618,11],[607,5,607,11],[610,5,610,11],[609,5,609,11],[612,5,612,11],[601,5,601,11],[604,5,604,11],[603,5,603,11],[606,5,606,11],[578,5,578,11],[580,5,580,11],[571,5,571,11],[572,5,572,11],[574,5,574,11],[575,5,575,11],[577,5,577,11],[565,5,565,11],[566,5,566,11],[568,5,568,11],[569,5,569,11],[557,5,557,11],[559,5,559,11],[560,5,560,11],[562,5,562,11],[563,5,563,11],[550,5,550,11],[551,5,551,11],[553,5,553,11],[554,5,554,11],[556,5,556,11],[544,5,544,11],[545,5,545,11],[547,5,547,11],[548,5,548,11],[536,5,536,11],[538,5,538,11],[539,5,539,11],[541,5,541,11],[542,5,542,11],[529,5,529,11],[530,5,530,11],[532,5,532,11],[533,5,533,11],[535,5,535,11],[523,5,523,11],[524,5,524,11],[526,5,526,11],[527,5,527,11],[515,5,515,11],[517,5,517,11],[518,5,518,11],[520,5,520,11],[521,5,521,11],[508,5,508,11],[509,5,509,11],[511,5,511,11],[512,5,512,11],[514,5,514,11],[500,5,500,11],[502,5,502,11],[503,5,503,11],[505,5,505,11],[506,5,506,11],[493,5,493,11],[494,5,494,11],[496,5,496,11],[497,5,497,11],[499,5,499,11],[487,5,487,11],[488,5,488,11],[490,5,490,11],[491,5,491,11],[479,5,479,11],[481,5,481,11],[482,5,482,11],[484,5,484,11],[485,5,485,11],[472,5,472,11],[473,5,473,11],[475,5,475,11],[476,5,476,11],[478,5,478,11],[466,5,466,11],[467,5,467,11],[469,5,469,11],[470,5,470,11],[458,5,458,11],[460,5,460,11],[461,5,461,11],[463,5,463,11],[464,5,464,11],[451,5,451,11],[452,5,452,11],[454,5,454,11],[455,5,455,11],[457,5,457,11],[445,5,445,11],[446,5,446,11],[448,5,448,11],[449,5,449,11],[437,5,437,11],[439,5,439,11],[440,5,440,11],[442,5,442,11],[443,5,443,11],[430,5,430,11],[431,5,431,11],[433,5,433,11],[434,5,434,11],[436,5,436,11],[424,5,424,11],[425,5,425,11],[427,5,427,11],[428,5,428,11],[416,5,416,11],[418,5,418,11],[419,5,419,11],[421,5,421,11],[422,5,422,11],[409,5,409,11],[410,5,410,11],[412,5,412,11],[413,5,413,11],[415,5,415,11],[403,5,403,11],[404,5,404,11],[406,5,406,11],[407,5,407,11],[397,5,397,11],[398,5,398,11],[400,5,400,11],[401,5,401,11],[389,5,389,11],[391,5,391,11],[392,5,392,11],[394,5,394,11],[395,5,395,11],[27,25,27,26],[360,5,360,11],[320,5,320,11],[321,5,321,11],[323,5,323,11],[324,5,324,11],[326,5,326,11],[327,5,327,11],[329,5,329,11],[330,5,330,11],[332,5,332,11],[347,5,347,11],[348,5,348,11],[350,5,350,11],[351,5,351,11],[353,5,353,11],[354,5,354,11],[356,5,356,11],[333,5,333,11],[335,5,335,11],[336,5,336,11],[338,5,338,11],[339,5,339,11],[341,5,341,11],[345,5,345,11],[75,25,75,26],[123,25,123,26],[171,25,171,26],[219,25,219,26],[384,5,384,11],[386,5,386,11],[371,5,371,11],[372,5,372,11],[374,5,374,11],[375,5,375,11],[377,5,377,11],[378,5,378,11],[380,5,380,11],[381,5,381,11],[383,5,383,11],[357,5,357,11],[362,5,362,11],[363,5,363,11],[365,5,365,11],[366,5,366,11],[368,5,368,11],[369,5,369,11],[344,5,344,11],[359,5,359,11],[300,5,300,11],[302,5,302,11],[303,5,303,11],[305,5,305,11],[342,5,342,11],[306,5,306,11],[308,5,308,11],[309,5,309,11],[311,5,311,11],[312,5,312,11],[314,5,314,11],[315,5,315,11],[317,5,317,11],[318,5,318,11],[287,5,287,11],[288,5,288,11],[290,5,290,11],[291,5,291,11],[293,5,293,11],[294,5,294,11],[296,5,296,11],[297,5,297,11],[299,5,299,11],[273,5,273,11],[275,5,275,11],[276,5,276,11],[278,5,278,11],[279,5,279,11],[281,5,281,11],[282,5,282,11],[284,5,284,11],[285,5,285,11],[260,5,260,11],[261,5,261,11],[263,5,263,11],[264,5,264,11],[266,5,266,11],[267,5,267,11],[269,5,269,11],[270,5,270,11],[272,5,272,11],[246,5,246,11],[248,5,248,11],[249,5,249,11],[251,5,251,11],[252,5,252,11],[254,5,254,11],[255,5,255,11],[257,5,257,11],[258,5,258,11],[233,5,233,11],[234,5,234,11],[236,5,236,11],[237,5,237,11],[239,5,239,11],[240,5,240,11],[242,5,242,11],[243,5,243,11],[245,5,245,11],[219,5,219,11],[221,5,221,11],[222,5,222,11],[224,5,224,11],[225,5,225,11],[227,5,227,11],[228,5,228,11],[230,5,230,11],[231,5,231,11],[3,5,3,11],[5,5,5,11],[9,5,9,11],[11,5,11,11],[195,5,195,11],[197,5,197,11],[12,5,12,11],[6,5,6,11],[8,5,8,11],[17,5,17,11],[18,5,18,11],[14,5,14,11],[15,5,15,11],[24,5,24,11],[26,5,26,11],[20,5,20,11],[21,5,21,11],[23,5,23,11],[32,5,32,11],[33,5,33,11],[27,5,27,11],[29,5,29,11],[30,5,30,11],[38,5,38,11],[39,5,39,11],[41,5,41,11],[35,5,35,11],[36,5,36,11],[47,5,47,11],[48,5,48,11],[42,5,42,11],[44,5,44,11],[45,5,45,11],[53,5,53,11],[54,5,54,11],[50,5,50,11],[51,5,51,11],[60,5,60,11],[62,5,62,11],[56,5,56,11],[57,5,57,11],[59,5,59,11],[68,5,68,11],[69,5,69,11],[63,5,63,11],[65,5,65,11],[66,5,66,11],[74,5,74,11],[75,5,75,11],[77,5,77,11],[71,5,71,11],[72,5,72,11],[83,5,83,11],[84,5,84,11],[78,5,78,11],[80,5,80,11],[81,5,81,11],[89,5,89,11],[90,5,90,11],[86,5,86,11],[87,5,87,11],[96,5,96,11],[98,5,98,11],[92,5,92,11],[93,5,93,11],[95,5,95,11],[104,5,104,11],[105,5,105,11],[99,5,99,11],[101,5,101,11],[102,5,102,11],[110,5,110,11],[111,5,111,11],[113,5,113,11],[107,5,107,11],[108,5,108,11],[119,5,119,11],[120,5,120,11],[114,5,114,11],[116,5,116,11],[117,5,117,11],[125,5,125,11],[126,5,126,11],[122,5,122,11],[123,5,123,11],[132,5,132,11],[134,5,134,11],[128,5,128,11],[129,5,129,11],[131,5,131,11],[140,5,140,11],[141,5,141,11],[135,5,135,11],[137,5,137,11],[138,5,138,11],[146,5,146,11],[147,5,147,11],[149,5,149,11],[143,5,143,11],[144,5,144,11],[155,5,155,11],[156,5,156,11],[150,5,150,11],[152,5,152,11],[153,5,153,11],[173,5,173,11],[174,5,174,11],[161,5,161,11],[162,5,162,11],[158,5,158,11],[159,5,159,11],[168,5,168,11],[170,5,170,11],[164,5,164,11],[165,5,165,11],[167,5,167,11],[171,5,171,11],[176,5,176,11],[177,5,177,11],[186,5,186,11],[191,5,191,11],[192,5,192,11],[188,5,188,11],[189,5,189,11],[182,5,182,11],[183,5,183,11],[185,5,185,11],[584,12,584,18],[587,12,587,18],[590,12,590,18],[593,12,593,18],[596,12,596,18],[599,12,599,18],[602,12,602,18],[194,5,194,11],[179,5,179,11],[180,5,180,11],[198,5,198,11],[200,5,200,11],[201,5,201,11],[203,5,203,11],[204,5,204,11],[206,5,206,11],[207,5,207,11],[209,5,209,11],[210,5,210,11],[212,5,212,11],[213,5,213,11],[215,5,215,11],[216,5,216,11],[218,5,218,11],[635,12,635,18],[638,12,638,18],[641,12,641,18],[644,12,644,18],[647,12,647,18],[650,12,650,18],[653,12,653,18],[656,12,656,18],[605,12,605,18],[608,12,608,18],[611,12,611,18],[614,12,614,18],[617,12,617,18],[620,12,620,18],[623,12,623,18],[626,12,626,18],[629,12,629,18],[659,12,659,18],[662,12,662,18],[665,12,665,18],[668,12,668,18],[671,12,671,18],[674,12,674,18],[677,12,677,18],[585,19,585,24],[592,19,592,24],[597,19,597,24],[604,19,604,24],[609,19,609,24],[616,19,616,24],[621,19,621,24],[628,19,628,24],[633,19,633,24],[640,19,640,24],[645,19,645,24],[652,19,652,24],[657,19,657,24],[664,19,664,24],[669,19,669,24],[676,19,676,24],[632,12,632,18]]}
["TÜRKİYE MASA TENİSİ FEDERASYONU\nİsmail Eren ALICI Küçükler Ferdi-Takım Türkiye Şampiyonası                                                                                                                                                                                          TEK ERKEK [ 09-13 Nisan 2025 ÇORUM ] [ Eleme ]",null,null,null,null,null,null,null,null,null,null,null,null,null,null,null,null,null,null,null,null,null,null,null,null,null,null,null,null,null,null,null,null,null,null,null,null,null,null,null,null,null,null,null,null,null,null,null,null,null,null,null,null,null,null,null,null,null,null,null,null,null,null,null,null,null,null,null,3]
[]
["Y","S","B","Q","#"]
[1,1,null,null,1,"ALİ ENES SEREN (KNY)"]
[null,null,null,null,null,null,null,0,0,null,null,1,"",null,null,null,null,null,null,null,null,null,null,null,null,null,null,null,null,null,null,null,"Ön eleme müsabakasını kazanan…"]
[2,129,999,"",256,0,null,null,null,null,null,null,null,null,null,null,null,null,65,"",null,null,null,null,null,null,null,null,null,null,null,null,"E1",105,"E9",113,"E17",121,"E25",102,"E33",{"$error":"#N/A"},"E41",{"$error":"#N/A"},"E49",{"$error":"#N/A"},"E57",{"$error":"#N/A"}]
[3,129,999,"",128,"DEVRİM ÖZTEKİN (KRL)",null,null,null,null,null,null,null,null,0,0,null,null,null,null,null,null,null,null,null,null,null,null,null,null,null,null,"E2",61,"E10",114,"E18",63,"E26",130,"E34",{"$error":"#N/A"},"E42",{"$error":"#N/A"},"E50",{"$error":"#N/A"},"E58",{"$error":"#N/A"}]
[null,null,null,"",null,null,null,0,0,null,null,2,"",null,null,null,null,null,null,null,null,null,null,null,null,null,null,null,null,null,null,null,"E3",93,"E11",115,"E19",123,"E27",131,"E35",{"$error":"#N/A"},"E43",{"$error":"#N/A"},"E51",{"$error":"#N/A"},"E59",{"$error":"#N/A"}]
[4,65,999,"",129,"MUHAMMED BELLO (MRS)",null,null,null,null,null,null,null,null,null,null,null,null,null,null,null,null,null,null,null,null,null,null,null,null,null,null,"E4",108,"E12",116,"E20",124,"E28",75,"E36",{"$error":"#N/A"},"E44",{"$error":"#N/A"},"E52",{"$error":"#N/A"},"E60",{"$error":"#N/A"}]
[5,65,999,"",65,"ÖMER MALKUŞ (KRL)",null,null,null,null,null,null,null,null,null,null,null,null,null,null,null,0,0,null,null,null,null,null,null,null,null,null,"E5",109,"E13",74,"E21",125,"E29",48,"E37",{"$error":"#N/A"},"E45",{"$error":"#N/A"},"E53",{"$error":"#N/A"},"E61",{"$error":"#N/A"}]
[null,null,null,"",null,null,null,0,0,null,null,3,"",null,null,null,null,null,null,null,null,null,null,null,null,null,null,null,null,null,null,null,"E6",68,"E14",118,"E22",126,"E30",{"$error":"#N/A"},"E38",{"$error":"#N/A"},"E46",{"$error":"#N/A"},"E54",{"$error":"#N/A"},"E62",{"$error":"#N/A"}]
[6,129,999,"",192,0,null,null,null,null,null,null,null,null,null,null,null,null,66,null,null,null,null,null,null,null,null,null,null,null,null,null,"E7",100,"E15",119,"E23",98,"E31",{"$error":"#N/A"},"E39",{"$error":"#N/A"},"E47",{"$error":"#N/A"},"E55",{"$error":"#N/A"},"E63",{"$error":"#N/A"}]
[7,129,999,"",64,"ARMANÇ RODİN ORAKÇI (HKR)",null,null,null,null,null,null,null,null,0,0,null,null,null,"",null,null,null,null,null,null,null,null,null,null,null,null,"E8",45,"E16",42,"E24",47,"E32",{"$error":"#N/A"},"E40",{"$error":"#N/A"},"E48",{"$error":"#N/A"},"E56",{"$error":"#N/A"},"E64",{"$error":"#N/A"}]
[null,null,null,"",null,null,null,0,0,null,null,4,""]
[8,64,999,"",193,0]
[9,49,null,"",33,"MEHMET AKİF TORU (AMS)"]
[null,null,null,"",null,null,null,0,0,null,null,5,""]
[10,129,49,"",224,0,null,null,null,null,null,null,null,null,null,null,null,null,67,""]
[11,129,null,"",96,"MERT EMİR YİĞİT (SMS)",null,null,null,null,null,null,null,null,0,0]
[null,null,null,"",null,null,null,0,0,null,null,6,""]
[12,65,null,"",161,0]
[13,65,null,"",97,"MUHAMMED EMİN KARAKURT (KNY)",null,null,null,null,null,null,null,null,null,null,null,null,null,null,null,0,0]
[null,null,null,"",null,null,null,0,0,null,null,7,""]
[14,129,null,"",160,0,null,null,null,null,null,null,null,null,null,null,null,null,68]
[15,129,32,"E29",32,"MUSTAFA KAYRA TURAN (KNY)",null,null,null,null,null,null,null,null,0,0,null,null,null,""]
[null,null,null,"",null,null,null,0,0,null,null,8,""]
[16,32,null,"",225,0]
[17,17,null,"",17,"ALİ BERKE GÜMÜŞ (KNY)"]
[null,null,null,"",null,null,null,0,0,null,null,9,""]
[18,129,17,"",240,0,null,null,null,null,null,null,null,null,null,null,null,null,69,""]
[19,129,null,"",112,"ÖMER KARABULUT (VAN       )",null,null,null,null,null,null,null,null,0,0]
[null,null,null,"",null,null,null,0,0,null,null,10,""]
[20,65,null,"",145,0]
[21,65,null,"",81,"DENİZHAN SEREN (BRD)",null,null,null,null,null,null,null,null,null,null,null,null,null,null,null,0,0]
[null,null,null,"",null,null,null,0,0,null,null,11,""]
[22,129,null,"E8",176,0,null,null,null,null,null,null,null,null,null,null,null,null,70]
[23,129,48,"",48,"EYMEN SELİM YILMAZ (KNY)",null,null,null,null,null,null,null,null,0,0,null,null,null,""]
[null,null,null,"",null,null,null,0,0,null,null,12,""]
[24,48,null,"",209,0]
[25,33,null,"",49,"YİĞİT BOLAT (ADN)"]
[null,null,null,"",null,null,null,0,0,null,null,13,""]
[26,129,33,"",208,0,null,null,null,null,null,null,null,null,null,null,null,null,71,""]
[27,129,null,"E24",80,"İSMAİL DİNLER (BRD)",null,null,null,null,null,null,null,null,0,0]
[null,null,null,"",null,null,null,0,0,null,null,14,""]
[28,65,null,"",177,0]
[29,65,null,"",113,"EYMEN SAVCI (ADN)",null,null,null,null,null,null,null,null,null,null,null,null,null,null,null,0,0]
[null,null,null,"",null,null,null,0,0,null,null,15,""]
[30,129,null,"",144,0,null,null,null,null,null,null,null,null,null,null,null,null,72]
[31,129,16,"",16,"BERK TURAN (YLV)",null,null,null,null,null,null,null,null,0,0,null,null,null,""]
[null,null,null,"",null,null,null,0,0,null,null,16,""]
[32,16,null,"",241,0]
[33,9,null,"",9,"SELİM AZAZİ (ANK)"]
[null,null,null,"",null,null,null,0,0,null,null,17,""]
[34,129,9,"",248,0,null,null,null,null,null,null,null,null,null,null,null,null,73,""]
[35,129,null,"",120,"ÇINAR AYDINLIK (ADN)",null,null,null,null,null,null,null,null,0,0]
[null,null,null,"",null,null,null,0,0,null,null,18,""]
[36,65,null,"",137,0]
[37,65,null,"",73,"SAİM EREN SİPAHİ (BRD)",null,null,null,null,null,null,null,null,null,null,null,null,null,null,null,0,0]
[null,null,null,"",null,null,null,0,0,null,null,19,""]
[38,129,null,"E20",184,0,null,null,null,null,null,null,null,null,null,null,null,null,74]
[39,129,40,"",56,"HALİM SANCAR (BYB)",null,null,null,null,null,null,null,null,0,0,null,null,null,""]
[null,null,null,"",null,null,null,0,0,null,null,20,""]
[40,40,null,"",201,0]
[41,41,null,"",41,"AKİF ÇİĞİL (ADN)"]
[null,null,null,"",null,null,null,0,0,null,null,21,""]
[42,129,41,"",216,0,null,null,null,null,null,null,null,null,null,null,null,null,75,""]
[43,129,null,"E4",88,"SEBAHATTİN SİRAÇ DURMUŞ (SMS)",null,null,null,null,null,null,null,null,0,0]
[null,null,null,"",null,null,null,0,0,null,null,22,""]
[44,65,null,"",169,0]
[45,65,null,"",105,"YUSUF TOPRAK ÇOLAK (MĞL)",null,null,null,null,null,null,null,null,null,null,null,null,null,null,null,0,0]
[null,null,null,"",null,null,null,0,0,null,null,23,""]
[46,129,null,"",152,0,null,null,null,null,null,null,null,null,null,null,null,null,76]
[47,129,24,"",24,"MUHAMMED EMİN KABADAYI (BRS)",null,null,null,null,null,null,null,null,0,0,null,null,null,""]
[null,null,null,"",null,null,null,0,0,null,null,24,""]
[48,24,null,"",233,0]
[49,25,null,"",25,"KEREM GÜLLER (İST)"]
[null,null,null,"",null,null,null,0,0,null,null,25,""]
[50,129,25,"",232,0,null,null,null,null,null,null,null,null,null,null,null,null,77,""]
[51,129,null,"",104,"GOKTUĞ BİÇER (ÇRM)",null,null,null,null,null,null,null,null,0,0]
[null,null,null,"",null,null,null,0,0,null,null,26,""]
[52,65,null,"",153,0]
[53,65,null,"",89,"KEREM UZUN (GRS)",null,null,null,null,null,null,null,null,null,null,null,null,null,null,null,0,0]
[null,null,null,"",null,null,null,0,0,null,null,27,""]
[54,129,null,"E26",168,0,null,null,null,null,null,null,null,null,null,null,null,null,78]
[55,129,56,"",40,"KEREM KÖSE (İST)",null,null,null,null,null,null,null,null,0,0,null,null,null,""]
[null,null,null,"",null,null,null,0,0,null,null,28,""]
[56,56,null,"",217,0]
[57,57,999,"",57,"TOLGAHAN PEKMEZ (AMS)"]
[null,null,null,"",null,null,null,0,0,null,null,29,""]
[58,129,999,"",200,0,null,null,null,null,null,null,null,null,null,null,null,null,79,""]
[59,129,999,"",72,"MUHAMMED EMİR ÖZEN (AMS)",null,null,null,null,null,null,null,null,0,0]
[null,null,null,"",null,null,null,0,0,null,null,30,""]
[60,65,999,"",185,0]
[61,65,999,"",121,"CAFER ASAF ÖZ (KRK)",null,null,null,null,null,null,null,null,null,null,null,null,null,null,null,0,0]
[null,null,null,"",null,null,null,0,0,null,null,31,""]
[62,129,999,"",136,0,null,null,null,null,null,null,null,null,null,null,null,null,80]
[63,129,999,"",249,0,null,null,null,null,null,null,null,null,0,0,null,null,null,""]
[null,null,null,"",null,null,null,0,0,null,null,32,""]
[64,8,null,"",8,"AKİF EMRE BUCAK (İST)"]
[65,5,null,"",5,"BERAT ÖZDEMİR (ÇRM)"]
[null,null,null,"",null,null,null,0,0,null,null,33,""]
[66,129,999,"",252,0,null,null,null,null,null,null,null,null,null,null,null,null,81,""]
[67,129,999,"",124,"YİĞİT ALİ BALLAROĞLU (BYB)",null,null,null,null,null,null,null,null,0,0]
[null,null,null,"",null,null,null,0,0,null,null,34,""]
[68,65,999,"",133,"MEHMET FATİH USLUER (DNZ)"]
[69,65,999,"",69,"DORUK SERT (YLV)",null,null,null,null,null,null,null,null,null,null,null,null,null,null,null,0,0]
[null,null,null,"",null,null,null,0,0,null,null,35,""]
[70,129,999,"",188,0,null,null,null,null,null,null,null,null,null,null,null,null,82]
[71,129,999,"",60,"HAMZA ÖZBEK (KNY)",null,null,null,null,null,null,null,null,0,0,null,null,null,""]
[null,null,null,"",null,null,null,0,0,null,null,36,""]
[72,60,999,"",197,0]
[73,53,null,"",37,"AHMET EMİR KALKAN (GZT)"]
[null,null,null,"",null,null,null,0,0,null,null,37,""]
[74,129,53,"",220,0,null,null,null,null,null,null,null,null,null,null,null,null,83,""]
[75,129,null,"E10",92,"OĞUZHAN ER (HKR)",null,null,null,null,null,null,null,null,0,0]
[null,null,null,"",null,null,null,0,0,null,null,38,""]
[76,65,null,"",165,0]
[77,65,null,"",101,"TAHİR EFE ŞAHİN (KNY)",null,null,null,null,null,null,null,null,null,null,null,null,null,null,null,0,0]
[null,null,null,"",null,null,null,0,0,null,null,39,""]
[78,129,null,"",156,0,null,null,null,null,null,null,null,null,null,null,null,null,84]
[79,129,28,"E2",28,"AHMET EFE YILMAZ (İST)",null,null,null,null,null,null,null,null,0,0,null,null,null,""]
[null,null,null,"",null,null,null,0,0,null,null,40,""]
[80,28,null,"",229,0]
[81,21,null,"",21,"EYMEN YERDELEN (SNP)"]
[null,null,null,"",null,null,null,0,0,null,null,41,""]
[82,129,21,"E30",236,0,null,null,null,null,null,null,null,null,null,null,null,null,85,""]
[83,129,null,"",108,"EYMEN YAZGAN (BRS)",null,null,null,null,null,null,null,null,0,0]
[null,null,null,"",null,null,null,0,0,null,null,42,""]
[84,65,null,"",149,0]
[85,65,null,"",85,"AREL BATU DÜDÜKÇÜ (DNZ)",null,null,null,null,null,null,null,null,null,null,null,null,null,null,null,0,0]
[null,null,null,"",null,null,null,0,0,null,null,43,""]
[86,129,null,"E16",172,0,null,null,null,null,null,null,null,null,null,null,null,null,86]
[87,129,44,"",44,"AHMET TALHA ALSANCAK (KRK)",null,null,null,null,null,null,null,null,0,0,null,null,null,""]
[null,null,null,"",null,null,null,0,0,null,null,44,""]
[88,44,null,"",213,0]
[89,37,null,"",53,"AHMET AZİZ YETİM (ÇRM)"]
[null,null,null,"",null,null,null,0,0,null,null,45,""]
[90,129,37,"",204,0,null,null,null,null,null,null,null,null,null,null,null,null,87,""]
[91,129,null,"E18",76,"YUNUS BURAK SULAK (KNY)",null,null,null,null,null,null,null,null,0,0]
[null,null,null,"",null,null,null,0,0,null,null,46,""]
[92,65,null,"",181,0]
[93,65,null,"",117,"M. BİLAL ARTUKOĞLU (MRD)",null,null,null,null,null,null,null,null,null,null,null,null,null,null,null,0,0]
[null,null,null,"",null,null,null,0,0,null,null,47,""]
[94,129,null,"",140,0,null,null,null,null,null,null,null,null,null,null,null,null,88]
[95,129,12,"",12,"MUHAMMED EMRE KANTİK (ÇRM)",null,null,null,null,null,null,null,null,0,0,null,null,null,""]
[null,null,null,"",null,null,null,0,0,null,null,48,""]
[96,12,null,"",245,0]
[97,13,null,"",13,"BEYAZIT BERK DEMİR (AMS)"]
[null,null,null,"",null,null,null,0,0,null,null,49,""]
[98,129,13,"",244,0,null,null,null,null,null,null,null,null,null,null,null,null,89,""]
[99,129,null,"E27",116,"İSMAİL TARHAN (MRD)",null,null,null,null,null,null,null,null,0,0]
[null,null,null,"",null,null,null,0,0,null,null,50,""]
[100,65,null,"",141,0]
[101,65,null,"",77,"HALİT EMRE MUSLUBAŞ (DNZ)",null,null,null,null,null,null,null,null,null,null,null,null,null,null,null,0,0]
[null,null,null,"",null,null,null,0,0,null,null,51,""]
[102,129,null,"E22",180,0,null,null,null,null,null,null,null,null,null,null,null,null,90]
[103,129,36,"",52,"EBUBEKİR YILMAZ (VAN       )",null,null,null,null,null,null,null,null,0,0,null,null,null,""]
[null,null,null,"",null,null,null,0,0,null,null,52,""]
[104,36,null,"",205,0]
[105,45,null,"",45,"KEREM URHAN (ÇRM)"]
[null,null,null,"",null,null,null,0,0,null,null,53,""]
[106,129,45,"",212,0,null,null,null,null,null,null,null,null,null,null,null,null,91,""]
[107,129,null,"E6",84,"ALİ UYGAR YILDIRICI (İST)",null,null,null,null,null,null,null,null,0,0]
[null,null,null,"",null,null,null,0,0,null,null,54,""]
[108,65,null,"",173,0]
[109,65,null,"",109,"ATA URAZ BAHADIR (MĞL)",null,null,null,null,null,null,null,null,null,null,null,null,null,null,null,0,0]
[null,null,null,"",null,null,null,0,0,null,null,55,""]
[110,129,null,"E12",148,0,null,null,null,null,null,null,null,null,null,null,null,null,92]
[111,129,20,"",20,"METEHAN ŞAHİN (GZT)",null,null,null,null,null,null,null,null,0,0,null,null,null,""]
[null,null,null,"",null,null,null,0,0,null,null,56,""]
[112,20,null,"",237,0]
[113,29,null,"",29,"MEHMET FATİH GEZER (İST)"]
[null,null,null,"",null,null,null,0,0,null,null,57,""]
[114,129,29,"",228,0,null,null,null,null,null,null,null,null,null,null,null,null,93,""]
[115,129,null,"",100,"MEHMET TATAR (VAN       )",null,null,null,null,null,null,null,null,0,0]
[null,null,null,"",null,null,null,0,0,null,null,58,""]
[116,65,null,"",157,0]
[117,65,null,"",93,"EREN GÖKDEMİR (KRK)",null,null,null,null,null,null,null,null,null,null,null,null,null,null,null,0,0]
[null,null,null,"",null,null,null,0,0,null,null,59,""]
[118,129,null,"E14",164,0,null,null,null,null,null,null,null,null,null,null,null,null,94]
[119,129,52,"",36,"HÜSEYİN TAŞ (KRK)",null,null,null,null,null,null,null,null,0,0,null,null,null,""]
[null,null,null,"",null,null,null,0,0,null,null,60,""]
[120,52,null,"",221,0]
[121,61,999,"",61,"EGE BOLAT (ADN)"]
[null,null,null,"",null,null,null,0,0,null,null,61,""]
[122,129,999,"",196,0,null,null,null,null,null,null,null,null,null,null,null,null,95,""]
[123,129,999,"",68,"YUSUF DURSUN KOCA (AMS)",null,null,null,null,null,null,null,null,0,0]
[null,null,null,"",null,null,null,0,0,null,null,62,""]
[124,65,999,"",189,0]
[125,65,999,"",125,"ZAHİD EMİR TEMEL (KNY)",null,null,null,null,null,null,null,null,null,null,null,null,null,null,null,0,0]
[null,null,null,"",null,null,null,0,0,null,null,63,""]
[126,129,999,"",132,"SUHEYB DOĞAN (MRD)",null,null,null,null,null,null,null,null,null,null,null,null,96]
[127,129,999,"",253,0,null,null,null,null,null,null,null,null,0,0,null,null,null,""]
[null,null,null,"",null,null,null,0,0,null,null,64,""]
[128,4,null,"",4,"AHMET ÇELİK (ÇRM)"]
[129,3,null,"",3,"AHMET YİĞİT GÜLENLER (GZT)"]
[null,null,null,"",null,null,null,0,0,null,null,65,""]
[130,129,999,"",254,0,null,null,null,null,null,null,null,null,null,null,null,null,97,""]
[131,129,999,"",126,"ENES KARGILI (KRK)",null,null,null,null,null,null,null,null,0,0]
[null,null,null,"",null,null,null,0,0,null,null,66,""]
[132,65,999,"",131,"EYMEN BAŞAR (ANK)"]
[133,65,999,"",67,"ABDULLAH EYMEN KARMİL (ORD)",null,null,null,null,null,null,null,null,null,null,null,null,null,null,null,0,0]
[null,null,null,"",null,null,null,0,0,null,null,67,""]
[134,129,999,"",190,0,null,null,null,null,null,null,null,null,null,null,null,null,98]
[135,129,999,"",62,"AYAZ KANAK (ÇRM)",null,null,null,null,null,null,null,null,0,0,null,null,null,""]
[null,null,null,"",null,null,null,0,0,null,null,68,""]
[136,62,999,"",195,0]
[137,51,null,"",35,"ENSAR ERFİDAN (VAN       )"]
[null,null,null,"",null,null,null,0,0,null,null,69,""]
[138,129,51,"",222,0,null,null,null,null,null,null,null,null,null,null,null,null,99,""]
[139,129,null,"E13",94,"MUSTAFA YAĞIZ ÖZÇELİK (ÇRM)",null,null,null,null,null,null,null,null,0,0]
[null,null,null,"",null,null,null,0,0,null,null,70,""]
[140,65,null,"",163,0]
[141,65,null,"",99,"AHMET ERDEM AYDIN (KNY)",null,null,null,null,null,null,null,null,null,null,null,null,null,null,null,0,0]
[null,null,null,"",null,null,null,0,0,null,null,71,""]
[142,129,null,"",158,0,null,null,null,null,null,null,null,null,null,null,null,null,100]
[143,129,30,"E28",30,"AHMET URAZ KİRAZ (MĞL)",null,null,null,null,null,null,null,null,0,0,null,null,null,""]
[null,null,null,"",null,null,null,0,0,null,null,72,""]
[144,30,null,"",227,0]
[145,19,null,"",19,"EMİR SARIDOĞAN (ADN)"]
[null,null,null,"",null,null,null,0,0,null,null,73,""]
[146,129,19,"",238,0,null,null,null,null,null,null,null,null,null,null,null,null,101,""]
[147,129,null,"",110,"ALP TUĞRA DURUKAN (ORD)",null,null,null,null,null,null,null,null,0,0]
[null,null,null,"",null,null,null,0,0,null,null,74,""]
[148,65,null,"",147,0]
[149,65,null,"",83,"FURKAN KONYALI (ÇRM)",null,null,null,null,null,null,null,null,null,null,null,null,null,null,null,0,0]
[null,null,null,"",null,null,null,0,0,null,null,75,""]
[150,129,null,"E5",174,0,null,null,null,null,null,null,null,null,null,null,null,null,102]
[151,129,46,"",46,"ÖMER MUSAB TOY (BTM)",null,null,null,null,null,null,null,null,0,0,null,null,null,""]
[null,null,null,"",null,null,null,0,0,null,null,76,""]
[152,46,null,"",211,0]
[153,35,null,"",51,"HASAN ÖZTEKİN (BTM)"]
[null,null,null,"",null,null,null,0,0,null,null,77,""]
[154,129,35,"",206,0,null,null,null,null,null,null,null,null,null,null,null,null,103,""]
[155,129,null,"E21",78,"EYMEN AYDOĞAN (DNZ)",null,null,null,null,null,null,null,null,0,0]
[null,null,null,"",null,null,null,0,0,null,null,78,""]
[156,65,null,"",179,0]
[157,65,null,"",115,"MUHAMMED YUSUF ÖZTEKİN (BTM)",null,null,null,null,null,null,null,null,null,null,null,null,null,null,null,0,0]
[null,null,null,"",null,null,null,0,0,null,null,79,""]
[158,129,null,"E31",142,0,null,null,null,null,null,null,null,null,null,null,null,null,104]
[159,129,14,"",14,"AKİF EFE ASLANPAY (MĞL)",null,null,null,null,null,null,null,null,0,0,null,null,null,""]
[null,null,null,"",null,null,null,0,0,null,null,80,""]
[160,14,null,"",243,0]
[161,11,null,"",11,"TAYİP YUSUF (BTM)"]
[null,null,null,"",null,null,null,0,0,null,null,81,""]
[162,129,11,"",246,0,null,null,null,null,null,null,null,null,null,null,null,null,105,""]
[163,129,null,"",118,"POYRAZ KAAN UGUN (KRK)",null,null,null,null,null,null,null,null,0,0]
[null,null,null,"",null,null,null,0,0,null,null,82,""]
[164,65,null,"",139,0]
[165,65,null,"",75,"İSHAK TARHAN (MRD)",null,null,null,null,null,null,null,null,null,null,null,null,null,null,null,0,0]
[null,null,null,"",null,null,null,0,0,null,null,83,""]
[166,129,null,"E17",182,0,null,null,null,null,null,null,null,null,null,null,null,null,106]
[167,129,38,"",54,"MUHAMMET SAİD OĞUZ (KNY)",null,null,null,null,null,null,null,null,0,0,null,null,null,""]
[null,null,null,"",null,null,null,0,0,null,null,84,""]
[168,38,null,"",203,0]
[169,43,null,"",43,"AHMET İLKER AY (KNY)"]
[null,null,null,"",null,null,null,0,0,null,null,85,""]
[170,129,43,"",214,0,null,null,null,null,null,null,null,null,null,null,null,null,107,""]
[171,129,null,"E1",86,"BERAT DAĞTEKİN (GZT)",null,null,null,null,null,null,null,null,0,0]
[null,null,null,"",null,null,null,0,0,null,null,86,""]
[172,65,null,"",171,0]
[173,65,null,"",107,"SARP ÇOLAK (TRB)",null,null,null,null,null,null,null,null,null,null,null,null,null,null,null,0,0]
[null,null,null,"",null,null,null,0,0,null,null,87,""]
[174,129,null,"",150,0,null,null,null,null,null,null,null,null,null,null,null,null,108]
[175,129,22,"",22,"CEMAL AYAZ KARTAL (YLV)",null,null,null,null,null,null,null,null,0,0,null,null,null,""]
[null,null,null,"",null,null,null,0,0,null,null,88,""]
[176,22,null,"",235,0]
[177,27,null,"",27,"DURSUN AYAZ NARMAN (KRK)"]
[null,null,null,"",null,null,null,0,0,null,null,89,""]
[178,129,27,"",230,0,null,null,null,null,null,null,null,null,null,null,null,null,109,""]
[179,129,null,"",102,"KUZEY ÖZNERGİZ (DNZ)",null,null,null,null,null,null,null,null,0,0]
[null,null,null,"",null,null,null,0,0,null,null,90,""]
[180,65,null,"",155,0]
[181,65,null,"",91,"ZEKİ CİHAN KONUŞUM (ADN)",null,null,null,null,null,null,null,null,null,null,null,null,null,null,null,0,0]
[null,null,null,"",null,null,null,0,0,null,null,91,""]
[182,129,null,"E9",166,0,null,null,null,null,null,null,null,null,null,null,null,null,110]
[183,129,54,"",38,"ŞEYHMUS KAPLAN (ÇRM)",null,null,null,null,null,null,null,null,0,0,null,null,null,""]
[null,null,null,"",null,null,null,0,0,null,null,92,""]
[184,54,null,"",219,0]
[185,59,999,"",59,"MUHAMMED EYMEN SOLAK (ÇRM)"]
[null,null,null,"",null,null,null,0,0,null,null,93,""]
[186,129,999,"",198,0,null,null,null,null,null,null,null,null,null,null,null,null,111,""]
[187,129,999,"",70,"BUĞRA AYAZ ATASOY (ARD)",null,null,null,null,null,null,null,null,0,0]
[null,null,null,"",null,null,null,0,0,null,null,94,""]
[188,65,999,"",187,0]
[189,65,999,"",123,"AKİF EYMEN TURAN (İST)",null,null,null,null,null,null,null,null,null,null,null,null,null,null,null,0,0]
[null,null,null,"",null,null,null,0,0,null,null,95,""]
[190,129,999,"",134,0,null,null,null,null,null,null,null,null,null,null,null,null,112]
[191,129,999,"",251,0,null,null,null,null,null,null,null,null,0,0,null,null,null,""]
[null,null,null,"",null,null,null,0,0,null,null,96,""]
[192,6,null,"",6,"AHMET BERK TÜKENMEZ (İST)"]
[193,7,null,"",7,"YİĞİT HÜSEYİN SUBAŞI (ÇRM)"]
[null,null,null,"",null,null,null,0,0,null,null,97,""]
[194,129,999,"",250,0,null,null,null,null,null,null,null,null,null,null,null,null,113,""]
[195,129,999,"",122,"HÜSEYİN UTKU KIRBAÇ  (İST)",null,null,null,null,null,null,null,null,0,0]
[null,null,null,"",null,null,null,0,0,null,null,98,""]
[196,65,999,"",135,0]
[197,65,999,"",71,"MEHMET KARAVELİOĞLU (ÇRM)",null,null,null,null,null,null,null,null,null,null,null,null,null,null,null,0,0]
[null,null,null,"",null,null,null,0,0,null,null,99,""]
[198,129,999,"",186,0,null,null,null,null,null,null,null,null,null,null,null,null,114]
[199,129,999,"",58,"SALİH BOZKIR (HKR)",null,null,null,null,null,null,null,null,0,0,null,null,null,""]
[null,null,null,"",null,null,null,0,0,null,null,100,""]
[200,58,999,"",199,0]
[201,55,null,"",39,"CAN ÖZTÜRK (SNP)"]
[null,null,null,"",null,null,null,0,0,null,null,101,""]
[202,129,55,"",218,0,null,null,null,null,null,null,null,null,null,null,null,null,115,""]
[203,129,null,"E11",90,"YUSUF EFE GÜL  (İST)",null,null,null,null,null,null,null,null,0,0]
[null,null,null,"",null,null,null,0,0,null,null,102,""]
[204,65,null,"",167,0]
[205,65,null,"",103,"YUSUF İSLAM ÇİFTÇİ (HKR)",null,null,null,null,null,null,null,null,null,null,null,null,null,null,null,0,0]
[null,null,null,"",null,null,null,0,0,null,null,103,""]
[206,129,null,"E25",154,0,null,null,null,null,null,null,null,null,null,null,null,null,116]
[207,129,26,"",26,"KERİM ESAT ODACI (KNY)",null,null,null,null,null,null,null,null,0,0,null,null,null,""]
[null,null,null,"",null,null,null,0,0,null,null,104,""]
[208,26,null,"",231,0]
[209,23,null,"",23,"KAYA ARSLAN (İST)"]
[null,null,null,"",null,null,null,0,0,null,null,105,""]
[210,129,23,"",234,0,null,null,null,null,null,null,null,null,null,null,null,null,117,""]
[211,129,null,"",106,"BERA AKİF KALKAN (AMS)",null,null,null,null,null,null,null,null,0,0]
[null,null,null,"",null,null,null,0,0,null,null,106,""]
[212,65,null,"",151,0]
[213,65,null,"",87,"DEMİR DEMİRCİ (SNP)",null,null,null,null,null,null,null,null,null,null,null,null,null,null,null,0,0]
[null,null,null,"",null,null,null,0,0,null,null,107,""]
[214,129,null,"E3",170,0,null,null,null,null,null,null,null,null,null,null,null,null,118]
[215,129,42,"",42,"HÜSEYİN EREN YILMAZ (ÇRM)",null,null,null,null,null,null,null,null,0,0,null,null,null,""]
[null,null,null,"",null,null,null,0,0,null,null,108,""]
[216,42,null,"",215,0]
[217,39,null,"",55,"TAHA DERELİ (İST)"]
[null,null,null,"",null,null,null,0,0,null,null,109,""]
[218,129,39,"",202,0,null,null,null,null,null,null,null,null,null,null,null,null,119,""]
[219,129,null,"E19",74,"BARAN ERDEM (BTM)",null,null,null,null,null,null,null,null,0,0]
[null,null,null,"",null,null,null,0,0,null,null,110,""]
[220,65,null,"",183,0]
[221,65,null,"",119,"ALİ KESKİN (YLV)",null,null,null,null,null,null,null,null,null,null,null,null,null,null,null,0,0]
[null,null,null,"",null,null,null,0,0,null,null,111,""]
[222,129,null,"",138,0,null,null,null,null,null,null,null,null,null,null,null,null,120]
[223,129,10,"",10,"MUSTAFA YILDIRIM (İST)",null,null,null,null,null,null,null,null,0,0,null,null,null,""]
[null,null,null,"",null,null,null,0,0,null,null,112,""]
[224,10,null,"",247,0]
[225,15,null,"",15,"MUHAMMED BARIŞ KALKAN (GZT)"]
[null,null,null,"",null,null,null,0,0,null,null,113,""]
[226,129,15,"",242,0,null,null,null,null,null,null,null,null,null,null,null,null,121,""]
[227,129,null,"E32",114,"ALİ DUMAN (BTM)",null,null,null,null,null,null,null,null,0,0]
[null,null,null,"",null,null,null,0,0,null,null,114,""]
[228,65,null,"",143,0]
[229,65,null,"",79,"TAHA ÖMER ÖZKAN (VAN       )",null,null,null,null,null,null,null,null,null,null,null,null,null,null,null,0,0]
[null,null,null,"",null,null,null,0,0,null,null,115,""]
[230,129,null,"E23",178,0,null,null,null,null,null,null,null,null,null,null,null,null,122]
[231,129,34,"",50,"NURULLAH ÖZCAN (VAN       )",null,null,null,null,null,null,null,null,0,0,null,null,null,""]
[null,null,null,"",null,null,null,0,0,null,null,116,""]
[232,34,null,"",207,0]
[233,47,null,"",47,"TUNAY DENİZ SAKINÇ (ÇRM)"]
[null,null,null,"",null,null,null,0,0,null,null,117,""]
[234,129,47,"",210,0,null,null,null,null,null,null,null,null,null,null,null,null,123,""]
[235,129,null,"E7",82,"BARIŞ ÇAKIR (KRL)",null,null,null,null,null,null,null,null,0,0]
[null,null,null,"",null,null,null,0,0,null,null,118,""]
[236,65,null,"",175,0]
[237,65,null,"",111,"CAN MUHAMMED GÜNAL (ARD)",null,null,null,null,null,null,null,null,null,null,null,null,null,null,null,0,0]
[null,null,null,"",null,null,null,0,0,null,null,119,""]
[238,129,null,"",146,0,null,null,null,null,null,null,null,null,null,null,null,null,124]
[239,129,18,"",18,"ALİ SAİD AKDOĞAN (ÇRM)",null,null,null,null,null,null,null,null,0,0,null,null,null,""]
[null,null,null,"",null,null,null,0,0,null,null,120,""]
[240,18,null,"",239,0]
[241,31,null,"",31,"CANBERK SEVİNDİK (ÇRM)"]
[null,null,null,"",null,null,null,0,0,null,null,121,""]
[242,129,31,"",226,0,null,null,null,null,null,null,null,null,null,null,null,null,125,""]
[243,129,null,"",98,"KUDRET GÜLMEZLER (DNZ)",null,null,null,null,null,null,null,null,0,0]
[null,null,null,"",null,null,null,0,0,null,null,122,""]
[244,65,null,"",159,0]
[245,65,null,"",95,"YÜCEL BAZ (BRD)",null,null,null,null,null,null,null,null,null,null,null,null,null,null,null,0,0]
[null,null,null,"",null,null,null,0,0,null,null,123,""]
[246,129,null,"E15",162,0,null,null,null,null,null,null,null,null,null,null,null,null,126]
[247,129,50,"",34,"ENSAR AYDIN (İST)",null,null,null,null,null,null,null,null,0,0,null,null,null,""]
[null,null,null,"",null,null,null,0,0,null,null,124,""]
[248,50,null,"",223,0]
[249,63,999,"",63,"DEMİR SERT (YLV)"]
[null,null,null,"",null,null,null,0,0,null,null,125,""]
[250,129,999,"",194,0,null,null,null,null,null,null,null,null,null,null,null,null,127,""]
[251,129,999,"",66,"KAYA TEMİR (ÇRM)",null,null,null,null,null,null,null,null,0,0]
[null,null,null,"",null,null,null,0,0,null,null,126,""]
[252,65,999,"",191,0]
[253,65,999,"",127,"MUHAMMED YASİR TORU (AMS)",null,null,null,null,null,null,null,null,null,null,null,null,null,null,null,0,0]
[null,null,null,"",null,null,null,0,0,null,null,127,""]
[254,129,999,"",130,"DEMİR YÖNÜ (İST)",null,null,null,null,null,null,null,null,null,null,null,null,128]
[255,129,999,"",255,0,null,null,null,null,null,null,null,null,0,0,null,null,null,""]
[null,null,null,"",null,null,null,0,0,null,null,128,""]
[256,2,null,"",2,"ARAS AYDIN (İST)"]
[]
[]
[1,1,0,null,1,"ALİ ENES SEREN (KNY)"]
[null,null,null,null,null,null,null,null,null,null,null,1,"ALİ ENES SEREN (KNY)"]
[2,65,1,"E64",999,"BYE",null,null,null,null,null,null,null,null,null,null,null,null,65,"ALİ ENES SEREN (KNY)"]
[3,65,33,"E32",999,"BYE",null,null,null,null,null,null,null,null,0,0]
[null,null,null,null,null,null,null,null,null,null,null,2,""]
[4,33,0,null,999,"BYE"]
[5,33,0,null,41,"AKİF ÇİĞİL (ADN)",null,null,null,null,null,null,null,null,null,null,null,null,null,null,null,0,0]
[null,null,null,null,null,null,null,3,0,null,null,3,"AKİF ÇİĞİL (ADN)"]
[6,65,49,"E16",42,"HÜSEYİN EREN YILMAZ (ÇRM)",null,null,null,null,null,null,null,null,null,null,null,null,66]
[7,65,17,"E48",45,"KEREM URHAN (ÇRM)",null,null,null,null,null,null,null,null,0,3,null,null,null,"MUSTAFA KAYRA TURAN (KNY)"]
[null,null,null,null,null,null,null,0,3,null,null,4,"MUSTAFA KAYRA TURAN (KNY)"]
[8,17,0,null,32,"MUSTAFA KAYRA TURAN (KNY)"]
[9,17,0,null,17,"ALİ BERKE GÜMÜŞ (KNY)"]
[null,null,null,null,null,null,null,3,0,null,null,5,"ALİ BERKE GÜMÜŞ (KNY)"]
[10,65,25,"E40",44,"AHMET TALHA ALSANCAK (KRK)",null,null,null,null,null,null,null,null,null,null,null,null,67,"ALİ BERKE GÜMÜŞ (KNY)"]
[11,65,57,"E8",45,"KEREM URHAN (ÇRM)",null,null,null,null,null,null,null,null,3,0]
[null,null,null,null,null,null,null,1,3,null,null,6,"MEHMET AKİF TORU (AMS)"]
[12,33,0,null,33,"MEHMET AKİF TORU (AMS)"]
[13,33,0,null,46,"ÖMER MUSAB TOY (BTM)",null,null,null,null,null,null,null,null,null,null,null,null,null,null,null,0,3]
[null,null,null,null,null,null,null,3,0,null,null,7,"ÖMER MUSAB TOY (BTM)"]
[14,65,41,"E24",47,"TUNAY DENİZ SAKINÇ (ÇRM)",null,null,null,null,null,null,null,null,null,null,null,null,68]
[15,65,9,"E29",48,"EYMEN SELİM YILMAZ (KNY)",null,null,null,null,null,null,null,null,0,3,null,null,null,"BERK TURAN (YLV)"]
[null,null,null,null,null,null,null,0,3,null,null,8,"BERK TURAN (YLV)"]
[16,9,0,null,16,"BERK TURAN (YLV)"]
[17,9,0,null,9,"SELİM AZAZİ (ANK)"]
[null,null,null,null,null,null,null,3,0,null,null,9,"SELİM AZAZİ (ANK)"]
[18,65,13,"E52",49,"YİĞİT BOLAT (ADN)",null,null,null,null,null,null,null,null,null,null,null,null,69,"SELİM AZAZİ (ANK)"]
[19,65,45,"E20",124,"YİĞİT ALİ BALLAROĞLU (BYB)",null,null,null,null,null,null,null,null,3,0]
[null,null,null,null,null,null,null,0,3,null,null,10,"HASAN ÖZTEKİN (BTM)"]
[20,33,0,null,51,"HASAN ÖZTEKİN (BTM)"]
[21,33,0,null,40,"KEREM KÖSE (İST)",null,null,null,null,null,null,null,null,null,null,null,null,null,null,null,3,0]
[null,null,null,null,null,null,null,3,1,null,null,11,"KEREM KÖSE (İST)"]
[22,65,61,"E4",108,"EYMEN YAZGAN (BRS)",null,null,null,null,null,null,null,null,null,null,null,null,70]
[23,65,29,"E36",53,"AHMET AZİZ YETİM (ÇRM)",null,null,null,null,null,null,null,null,0,3,null,null,null,"MUHAMMED EMİN KABADAYI (BRS)"]
[null,null,null,null,null,null,null,0,3,null,null,12,"MUHAMMED EMİN KABADAYI (BRS)"]
[24,17,0,null,24,"MUHAMMED EMİN KABADAYI (BRS)"]
[25,17,0,null,25,"KEREM GÜLLER (İST)"]
[null,null,null,null,null,null,null,3,1,null,null,13,"KEREM GÜLLER (İST)"]
[26,65,21,"E44",54,"MUHAMMET SAİD OĞUZ (KNY)",null,null,null,null,null,null,null,null,null,null,null,null,71,"KEREM GÜLLER (İST)"]
[27,65,53,"E12",116,"İSMAİL TARHAN (MRD)",null,null,null,null,null,null,null,null,3,0]
[null,null,null,null,null,null,null,3,0,null,null,14,"İSMAİL TARHAN (MRD)"]
[28,33,0,null,56,"HALİM SANCAR (BYB)"]
[29,33,0,null,999,"BYE",null,null,null,null,null,null,null,null,null,null,null,null,null,null,null,0,3]
[null,null,null,null,null,null,null,null,null,null,null,15,""]
[30,65,37,null,999,"BYE",null,null,null,null,null,null,null,null,null,null,null,null,72]
[31,65,5,"E60",999,"BYE",null,null,null,null,null,null,null,null,0,0,null,null,null,"AKİF EMRE BUCAK (İST)"]
[null,null,null,null,null,null,null,null,null,null,null,16,"AKİF EMRE BUCAK (İST)"]
[32,5,0,null,8,"AKİF EMRE BUCAK (İST)"]
[33,5,0,null,5,"BERAT ÖZDEMİR (ÇRM)"]
[null,null,null,null,null,null,null,null,null,null,null,17,"BERAT ÖZDEMİR (ÇRM)"]
[34,65,7,"E58",999,"BYE",null,null,null,null,null,null,null,null,null,null,null,null,73,"BERAT ÖZDEMİR (ÇRM)"]
[35,65,39,null,999,"BYE",null,null,null,null,null,null,null,null,0,0]
[null,null,null,null,null,null,null,null,null,null,null,18,""]
[36,33,0,null,999,"BYE"]
[37,33,0,null,57,"TOLGAHAN PEKMEZ (AMS)",null,null,null,null,null,null,null,null,null,null,null,null,null,null,null,3,0]
[null,null,null,null,null,null,null,1,3,null,null,19,"ALİ DUMAN (BTM)"]
[38,65,55,"E10",114,"ALİ DUMAN (BTM)",null,null,null,null,null,null,null,null,null,null,null,null,74]
[39,65,23,"E27",null,{"$error":"#N/A"},null,null,null,null,null,null,null,null,0,3,null,null,null,"AHMET EFE YILMAZ (İST)"]
[null,null,null,null,null,null,null,2,3,null,null,20,"AHMET EFE YILMAZ (İST)"]
[40,17,0,null,28,"AHMET EFE YILMAZ (İST)"]
[41,17,0,null,21,"EYMEN YERDELEN (SNP)"]
[null,null,null,null,null,null,null,3,0,null,null,21,"EYMEN YERDELEN (SNP)"]
[42,65,31,"E34",60,"HAMZA ÖZBEK (KNY)",null,null,null,null,null,null,null,null,null,null,null,null,75,"AHMET EMİR KALKAN (GZT)"]
[43,65,63,"E2",61,"EGE BOLAT (ADN)",null,null,null,null,null,null,null,null,2,3]
[null,null,null,null,null,null,null,0,3,null,null,22,"AHMET EMİR KALKAN (GZT)"]
[44,33,0,null,37,"AHMET EMİR KALKAN (GZT)"]
[45,33,0,null,62,"AYAZ KANAK (ÇRM)",null,null,null,null,null,null,null,null,null,null,null,null,null,null,null,0,3]
[null,null,null,null,null,null,null,0,3,null,null,23,"DEMİR SERT (YLV)"]
[46,65,47,"E18",63,"DEMİR SERT (YLV)",null,null,null,null,null,null,null,null,null,null,null,null,76]
[47,65,15,"E26",130,"DEMİR YÖNÜ (İST)",null,null,null,null,null,null,null,null,1,3,null,null,null,"DEMİR YÖNÜ (İST)"]
[null,null,null,null,null,null,null,3,0,null,null,24,"DEMİR YÖNÜ (İST)"]
[48,9,0,null,12,"MUHAMMED EMRE KANTİK (ÇRM)"]
[49,9,0,null,13,"BEYAZIT BERK DEMİR (AMS)"]
[null,null,null,null,null,null,null,3,0,null,null,25,"BEYAZIT BERK DEMİR (AMS)"]
[50,65,11,"E54",65,"ÖMER MALKUŞ (KRL)",null,null,null,null,null,null,null,null,null,null,null,null,77,"BEYAZIT BERK DEMİR (AMS)"]
[51,65,43,"E22",126,"ENES KARGILI (KRK)",null,null,null,null,null,null,null,null,3,0]
[null,null,null,null,null,null,null,0,3,null,null,26,"ABDULLAH EYMEN KARMİL (ORD)"]
[52,33,0,null,67,"ABDULLAH EYMEN KARMİL (ORD)"]
[53,33,0,null,36,"HÜSEYİN TAŞ (KRK)",null,null,null,null,null,null,null,null,null,null,null,null,null,null,null,3,0]
[null,null,null,null,null,null,null,0,3,null,null,27,"YUSUF DURSUN KOCA (AMS)"]
[54,65,59,"E6",68,"YUSUF DURSUN KOCA (AMS)",null,null,null,null,null,null,null,null,null,null,null,null,78]
[55,65,27,"E38",69,"DORUK SERT (YLV)",null,null,null,null,null,null,null,null,2,3,null,null,null,"METEHAN ŞAHİN (GZT)"]
[null,null,null,null,null,null,null,0,3,null,null,28,"METEHAN ŞAHİN (GZT)"]
[56,17,0,null,20,"METEHAN ŞAHİN (GZT)"]
[57,17,0,null,29,"MEHMET FATİH GEZER (İST)"]
[null,null,null,null,null,null,null,3,0,null,null,29,"MEHMET FATİH GEZER (İST)"]
[58,65,19,"E46",70,"BUĞRA AYAZ ATASOY (ARD)",null,null,null,null,null,null,null,null,null,null,null,null,79,"MEHMET FATİH GEZER (İST)"]
[59,65,51,"E14",118,"POYRAZ KAAN UGUN (KRK)",null,null,null,null,null,null,null,null,3,0]
[null,null,null,null,null,null,null,1,3,null,null,30,"MUHAMMED EMİR ÖZEN (AMS)"]
[60,33,0,null,72,"MUHAMMED EMİR ÖZEN (AMS)"]
[61,33,0,null,999,"BYE",null,null,null,null,null,null,null,null,null,null,null,null,null,null,null,0,0]
[null,null,null,null,null,null,null,null,null,null,null,31,""]
[62,65,35,"E30",999,"BYE",null,null,null,null,null,null,null,null,null,null,null,null,80]
[63,65,3,"E62",999,"BYE",null,null,null,null,null,null,null,null,0,0,null,null,null,"AHMET ÇELİK (ÇRM)"]
[null,null,null,null,null,null,null,null,null,null,null,32,"AHMET ÇELİK (ÇRM)"]
[64,3,0,null,4,"AHMET ÇELİK (ÇRM)"]
[65,3,0,null,3,"AHMET YİĞİT GÜLENLER (GZT)"]
[null,null,null,null,null,null,null,null,null,null,null,33,"AHMET YİĞİT GÜLENLER (GZT)"]
[66,65,4,"E61",999,"BYE",null,null,null,null,null,null,null,null,null,null,null,null,81,"AHMET YİĞİT GÜLENLER (GZT)"]
[67,65,36,null,999,"BYE",null,null,null,null,null,null,null,null,0,0]
[null,null,null,null,null,null,null,null,null,null,null,34,""]
[68,33,0,null,999,"BYE"]
[69,33,0,null,73,"SAİM EREN SİPAHİ (BRD)",null,null,null,null,null,null,null,null,null,null,null,null,null,null,null,0,0]
[null,null,null,null,null,null,null,1,3,null,null,35,"BARAN ERDEM (BTM)"]
[70,65,52,"E13",74,"BARAN ERDEM (BTM)",null,null,null,null,null,null,null,null,null,null,null,null,82]
[71,65,20,"E28",75,"İSHAK TARHAN (MRD)",null,null,null,null,null,null,null,null,3,0,null,null,null,"BARAN ERDEM (BTM)"]
[null,null,null,null,null,null,null,3,0,null,null,36,"İSHAK TARHAN (MRD)"]
[72,17,0,null,30,"AHMET URAZ KİRAZ (MĞL)"]
[73,17,0,null,19,"EMİR SARIDOĞAN (ADN)"]
[null,null,null,null,null,null,null,3,0,null,null,37,"EMİR SARIDOĞAN (ADN)"]
[74,65,28,"E37",76,"YUNUS BURAK SULAK (KNY)",null,null,null,null,null,null,null,null,null,null,null,null,83,"ENSAR ERFİDAN (VAN       )"]
[75,65,60,"E5",109,"ATA URAZ BAHADIR (MĞL)",null,null,null,null,null,null,null,null,2,3]
[null,null,null,null,null,null,null,2,3,null,null,38,"ENSAR ERFİDAN (VAN       )"]
[76,33,0,null,35,"ENSAR ERFİDAN (VAN       )"]
[77,33,0,null,78,"EYMEN AYDOĞAN (DNZ)",null,null,null,null,null,null,null,null,null,null,null,null,null,null,null,0,3]
[null,null,null,null,null,null,null,3,0,null,null,39,"EYMEN AYDOĞAN (DNZ)"]
[78,65,44,"E21",125,"ZAHİD EMİR TEMEL (KNY)",null,null,null,null,null,null,null,null,null,null,null,null,84]
[79,65,12,"E53",80,"İSMAİL DİNLER (BRD)",null,null,null,null,null,null,null,null,1,3,null,null,null,"AKİF EFE ASLANPAY (MĞL)"]
[null,null,null,null,null,null,null,0,3,null,null,40,"AKİF EFE ASLANPAY (MĞL)"]
[80,9,0,null,14,"AKİF EFE ASLANPAY (MĞL)"]
[81,9,0,null,11,"TAYİP YUSUF (BTM)"]
[null,null,null,null,null,null,null,3,0,null,null,41,"TAYİP YUSUF (BTM)"]
[82,65,16,"E49",81,"DENİZHAN SEREN (BRD)",null,null,null,null,null,null,null,null,null,null,null,null,85,"FURKAN KONYALI (ÇRM)"]
[83,65,48,"E17",121,"CAFER ASAF ÖZ (KRK)",null,null,null,null,null,null,null,null,0,3]
[null,null,null,null,null,null,null,0,3,null,null,42,"FURKAN KONYALI (ÇRM)"]
[84,33,0,null,83,"FURKAN KONYALI (ÇRM)"]
[85,33,0,null,38,"ŞEYHMUS KAPLAN (ÇRM)",null,null,null,null,null,null,null,null,null,null,null,null,null,null,null,2,3]
[null,null,null,null,null,null,null,3,0,null,null,43,"ŞEYHMUS KAPLAN (ÇRM)"]
[86,65,64,"E1",105,"YUSUF TOPRAK ÇOLAK (MĞL)",null,null,null,null,null,null,null,null,null,null,null,null,86]
[87,65,32,"E33",85,"AREL BATU DÜDÜKÇÜ (DNZ)",null,null,null,null,null,null,null,null,0,3,null,null,null,"CEMAL AYAZ KARTAL (YLV)"]
[null,null,null,null,null,null,null,1,3,null,null,44,"CEMAL AYAZ KARTAL (YLV)"]
[88,17,0,null,22,"CEMAL AYAZ KARTAL (YLV)"]
[89,17,0,null,27,"DURSUN AYAZ NARMAN (KRK)"]
[null,null,null,null,null,null,null,3,1,null,null,45,"DURSUN AYAZ NARMAN (KRK)"]
[90,65,24,"E41",86,"BERAT DAĞTEKİN (GZT)",null,null,null,null,null,null,null,null,null,null,null,null,87,"DURSUN AYAZ NARMAN (KRK)"]
[91,65,56,"E9",113,"EYMEN SAVCI (ADN)",null,null,null,null,null,null,null,null,3,0]
[null,null,null,null,null,null,null,3,0,null,null,46,"EYMEN SAVCI (ADN)"]
[92,33,0,null,88,"SEBAHATTİN SİRAÇ DURMUŞ (SMS)"]
[93,33,0,null,999,"BYE",null,null,null,null,null,null,null,null,null,null,null,null,null,null,null,1,3]
[null,null,null,null,null,null,null,null,null,null,null,47,""]
[94,65,40,null,999,"BYE",null,null,null,null,null,null,null,null,null,null,null,null,88]
[95,65,8,"E57",999,"BYE",null,null,null,null,null,null,null,null,0,0,null,null,null,"AHMET BERK TÜKENMEZ (İST)"]
[null,null,null,null,null,null,null,null,null,null,null,48,"AHMET BERK TÜKENMEZ (İST)"]
[96,5,0,null,6,"AHMET BERK TÜKENMEZ (İST)"]
[97,5,0,null,7,"YİĞİT HÜSEYİN SUBAŞI (ÇRM)"]
[null,null,null,null,null,null,null,null,null,null,null,49,"YİĞİT HÜSEYİN SUBAŞI (ÇRM)"]
[98,65,6,"E59",999,"BYE",null,null,null,null,null,null,null,null,null,null,null,null,89,"YİĞİT HÜSEYİN SUBAŞI (ÇRM)"]
[99,65,38,null,999,"BYE",null,null,null,null,null,null,null,null,0,0]
[null,null,null,null,null,null,null,null,null,null,null,50,""]
[100,33,0,null,999,"BYE"]
[101,33,0,null,89,"KEREM UZUN (GRS)",null,null,null,null,null,null,null,null,null,null,null,null,null,null,null,3,0]
[null,null,null,null,null,null,null,0,3,null,null,51,"MUHAMMED YUSUF ÖZTEKİN (BTM)"]
[102,65,54,"E11",115,"MUHAMMED YUSUF ÖZTEKİN (BTM)",null,null,null,null,null,null,null,null,null,null,null,null,90]
[103,65,22,"E43",91,"ZEKİ CİHAN KONUŞUM (ADN)",null,null,null,null,null,null,null,null,1,3,null,null,null,"KERİM ESAT ODACI (KNY)"]
[null,null,null,null,null,null,null,0,3,null,null,52,"KERİM ESAT ODACI (KNY)"]
[104,17,0,null,26,"KERİM ESAT ODACI (KNY)"]
[105,17,0,null,23,"KAYA ARSLAN (İST)"]
[null,null,null,null,null,null,null,3,0,null,null,53,"KAYA ARSLAN (İST)"]
[106,65,30,"E35",92,"OĞUZHAN ER (HKR)",null,null,null,null,null,null,null,null,null,null,null,null,91,"KAYA ARSLAN (İST)"]
[107,65,62,"E3",93,"EREN GÖKDEMİR (KRK)",null,null,null,null,null,null,null,null,3,0]
[null,null,null,null,null,null,null,3,0,null,null,54,"EREN GÖKDEMİR (KRK)"]
[108,33,0,null,39,"CAN ÖZTÜRK (SNP)"]
[109,33,0,null,94,"MUSTAFA YAĞIZ ÖZÇELİK (ÇRM)",null,null,null,null,null,null,null,null,null,null,null,null,null,null,null,2,3]
[null,null,null,null,null,null,null,0,3,null,null,55,"AKİF EYMEN TURAN (İST)"]
[110,65,46,"E19",123,"AKİF EYMEN TURAN (İST)",null,null,null,null,null,null,null,null,null,null,null,null,92]
[111,65,14,"E51",96,"MERT EMİR YİĞİT (SMS)",null,null,null,null,null,null,null,null,0,3,null,null,null,"MUSTAFA YILDIRIM (İST)"]
[null,null,null,null,null,null,null,0,3,null,null,56,"MUSTAFA YILDIRIM (İST)"]
[112,9,0,null,10,"MUSTAFA YILDIRIM (İST)"]
[113,9,0,null,15,"MUHAMMED BARIŞ KALKAN (GZT)"]
[null,null,null,null,null,null,null,3,0,null,null,57,"MUHAMMED BARIŞ KALKAN (GZT)"]
[114,65,10,"E55",97,"MUHAMMED EMİN KARAKURT (KNY)",null,null,null,null,null,null,null,null,null,null,null,null,93,"MUHAMMED BARIŞ KALKAN (GZT)"]
[115,65,42,"E23",98,"KUDRET GÜLMEZLER (DNZ)",null,null,null,null,null,null,null,null,3,1]
[null,null,null,null,null,null,null,2,3,null,null,58,"AHMET ERDEM AYDIN (KNY)"]
[116,33,0,null,99,"AHMET ERDEM AYDIN (KNY)"]
[117,33,0,null,34,"ENSAR AYDIN (İST)",null,null,null,null,null,null,null,null,null,null,null,null,null,null,null,3,0]
[null,null,null,null,null,null,null,3,1,null,null,59,"MEHMET TATAR (VAN       )"]
[118,65,58,"E7",100,"MEHMET TATAR (VAN       )",null,null,null,null,null,null,null,null,null,null,null,null,94]
[119,65,26,"E39",101,"TAHİR EFE ŞAHİN (KNY)",null,null,null,null,null,null,null,null,1,3,null,null,null,"ALİ SAİD AKDOĞAN (ÇRM)"]
[null,null,null,null,null,null,null,0,3,null,null,60,"ALİ SAİD AKDOĞAN (ÇRM)"]
[120,17,0,null,18,"ALİ SAİD AKDOĞAN (ÇRM)"]
[121,17,0,null,31,"CANBERK SEVİNDİK (ÇRM)"]
[null,null,null,null,null,null,null,2,3,null,null,61,"KUZEY ÖZNERGİZ (DNZ)"]
[122,65,18,"E25",102,"KUZEY ÖZNERGİZ (DNZ)",null,null,null,null,null,null,null,null,null,null,null,null,95,"KUZEY ÖZNERGİZ (DNZ)"]
[123,65,50,"E15",119,"ALİ KESKİN (YLV)",null,null,null,null,null,null,null,null,3,0]
[null,null,null,null,null,null,null,3,0,null,null,62,"ALİ KESKİN (YLV)"]
[124,33,0,null,104,"GOKTUĞ BİÇER (ÇRM)"]
[125,33,0,null,999,"BYE",null,null,null,null,null,null,null,null,null,null,null,null,null,null,null,0,0]
[null,null,null,null,null,null,null,null,null,null,null,63,""]
[126,65,34,"E31",999,"BYE",null,null,null,null,null,null,null,null,null,null,null,null,96]
[127,65,2,"E63",999,"BYE",null,null,null,null,null,null,null,null,0,0,null,null,null,"ARAS AYDIN (İST)"]
[null,null,null,null,null,null,null,null,null,null,null,64,"ARAS AYDIN (İST)"]
[128,2,0,null,2,"ARAS AYDIN (İST)"]
[]
[]
[1,1,0," ",1,"ALİ ENES SEREN (KNY)"]
[null,null,null,null,null,null,null,0,0,null,null,1,""]
[2,33,1,"E32",999,"BYE",null,null,null,null,null,null,null,null,null,null,null,null,33,""]
[3,33,17,"E16",48,"EYMEN SELİM YILMAZ (KNY)",null,null,null,null,null,null,null,null,0,0]
[null,null,null,"",null,null,null,0,0,null,null,2,""]
[4,17,0,"",32,"MUSTAFA KAYRA TURAN (KNY)"]
[5,17,0,"",17,"ALİ BERKE GÜMÜŞ (KNY)",null,null,null,null,null,null,null,null,null,null,null,null,null,null,null,0,0]
[null,null,null,"",null,null,null,0,0,null,null,3,""]
[6,33,25,"E8",33,"MEHMET AKİF TORU (AMS)",null,null,null,null,null,null,null,null,null,null,null,null,34]
[7,33,9,"E24",49,"YİĞİT BOLAT (ADN)",null,null,null,null,null,null,null,null,0,0,null,null,null,""]
[null,null,null,"",null,null,null,0,0,null,null,4,""]
[8,9," ","",16,"BERK TURAN (YLV)"]
[9,9,0,"",9,"SELİM AZAZİ (ANK)"]
[null,null,null,"",null,null,null,0,0,null,null,5,""]
[10,33,13,"E20",56,"HALİM SANCAR (BYB)",null,null,null,null,null,null,null,null,null,null,null,null,35,""]
[11,33,29,"E4",40,"KEREM KÖSE (İST)",null,null,null,null,null,null,null,null,0,0]
[null,null,null,"",null,null,null,0,0,null,null,6,""]
[12,17,0,"",24,"MUHAMMED EMİN KABADAYI (BRS)"]
[13,17,0,"",25,"KEREM GÜLLER (İST)",null,null,null,null,null,null,null,null,null,null,null,null,null,null,null,0,0]
[null,null,null,"",null,null,null,0,0,null,null,7,""]
[14,33,21,"E12",41,"AKİF ÇİĞİL (ADN)",null,null,null,null,null,null,null,null,null,null,null,null,36]
[15,33,5,"E28",999,"BYE",null,null,null,null,null,null,null,null,0,0,null,null,null,""]
[null,null,null,"",null,null,null,0,0,null,null,8,""]
[16,5," ","",8,"AKİF EMRE BUCAK (İST)"]
[17,5,0,"",5,"BERAT ÖZDEMİR (ÇRM)"]
[null,null,null,"",null,null,null,0,0,null,null,9,""]
[18,33,7,"E26",999,"BYE",null,null,null,null,null,null,null,null,null,null,null,null,37,""]
[19,33,23,"E10",44,"AHMET TALHA ALSANCAK (KRK)",null,null,null,null,null,null,null,null,0,0]
[null,null,null,"",null,null,null,0,0,null,null,10,""]
[20,17,0,"",28,"AHMET EFE YILMAZ (İST)"]
[21,17,0,"",21,"EYMEN YERDELEN (SNP)",null,null,null,null,null,null,null,null,null,null,null,null,null,null,null,0,0]
[null,null,null,"",null,null,null,0,0,null,null,11,""]
[22,33,31,"E2",37,"AHMET EMİR KALKAN (GZT)",null,null,null,null,null,null,null,null,null,null,null,null,38]
[23,33,15,"E18",53,"AHMET AZİZ YETİM (ÇRM)",null,null,null,null,null,null,null,null,0,0,null,null,null,""]
[null,null,null,"",null,null,null,0,0,null,null,12,""]
[24,9," ","",12,"MUHAMMED EMRE KANTİK (ÇRM)"]
[25,9,0,"",13,"BEYAZIT BERK DEMİR (AMS)"]
[null,null,null,"",null,null,null,0,0,null,null,13,""]
[26,33,11,"E22",52,"EBUBEKİR YILMAZ (VAN       )",null,null,null,null,null,null,null,null,null,null,null,null,39,""]
[27,33,27,"E6",36,"HÜSEYİN TAŞ (KRK)",null,null,null,null,null,null,null,null,0,0]
[null,null,null,"",null,null,null,0,0,null,null,14,""]
[28,17,0,"",20,"METEHAN ŞAHİN (GZT)"]
[29,17,0,"",29,"MEHMET FATİH GEZER (İST)",null,null,null,null,null,null,null,null,null,null,null,null,null,null,null,0,0]
[null,null,null,"",null,null,null,0,0,null,null,15,""]
[30,33,19,"E14",45,"KEREM URHAN (ÇRM)",null,null,null,null,null,null,null,null,null,null,null,null,40]
[31,33,3,"E30",999,"BYE",null,null,null,null,null,null,null,null,0,0,null,null,null,""]
[null,null,null,"",null,null,null,0,0,null,null,16,""]
[32,3," ","",4,"AHMET ÇELİK (ÇRM)"]
[33,3,0,"",3,"AHMET YİĞİT GÜLENLER (GZT)"]
[null,null,null,"",null,null,null,0,0,null,null,17,""]
[34,33,4,"E29",999,"BYE",null,null,null,null,null,null,null,null,null,null,null,null,41,""]
[35,33,20,"E13",46,"ÖMER MUSAB TOY (BTM)",null,null,null,null,null,null,null,null,0,0]
[null,null,null,"",null,null,null,0,0,null,null,18,""]
[36,17,0,"",30,"AHMET URAZ KİRAZ (MĞL)"]
[37,17,0,"",19,"EMİR SARIDOĞAN (ADN)",null,null,null,null,null,null,null,null,null,null,null,null,null,null,null,0,0]
[null,null,null,"",null,null,null,0,0,null,null,19,""]
[38,33,28,"E5",35,"ENSAR ERFİDAN (VAN       )",null,null,null,null,null,null,null,null,null,null,null,null,42]
[39,33,12,"E21",51,"HASAN ÖZTEKİN (BTM)",null,null,null,null,null,null,null,null,0,0,null,null,null,""]
[null,null,null,"",null,null,null,0,0,null,null,20,""]
[40,9," ","",14,"AKİF EFE ASLANPAY (MĞL)"]
[41,9,0,"",11,"TAYİP YUSUF (BTM)"]
[null,null,null,"",null,null,null,0,0,null,null,21,""]
[42,33,16,"E17",54,"MUHAMMET SAİD OĞUZ (KNY)",null,null,null,null,null,null,null,null,null,null,null,null,43,""]
[43,33,0,"E1",38,"ŞEYHMUS KAPLAN (ÇRM)",null,null,null,null,null,null,null,null,0,0]
[null,null,null,"",null,null,null,0,0,null,null,22,""]
[44,17,0,"",22,"CEMAL AYAZ KARTAL (YLV)"]
[45,17,0,"",27,"DURSUN AYAZ NARMAN (KRK)",null,null,null,null,null,null,null,null,null,null,null,null,null,null,null,0,0]
[null,null,null,"",null,null,null,0,0,null,null,23,""]
[46,33,24,"E9",43,"AHMET İLKER AY (KNY)",null,null,null,null,null,null,null,null,null,null,null,null,44]
[47,33,8,"E25",999,"BYE",null,null,null,null,null,null,null,null,0,0,null,null,null,""]
[null,null,null,"",null,null,null,0,0,null,null,24,""]
[48,5," ","",6,"AHMET BERK TÜKENMEZ (İST)"]
[49,5,0,"",7,"YİĞİT HÜSEYİN SUBAŞI (ÇRM)"]
[null,null,null,"",null,null,null,0,0,null,null,25,""]
[50,33,6,"E27",999,"BYE",null,null,null,null,null,null,null,null,null,null,null,null,45,""]
[51,33,22,"E11",42,"HÜSEYİN EREN YILMAZ (ÇRM)",null,null,null,null,null,null,null,null,0,0]
[null,null,null,"",null,null,null,0,0,null,null,26,""]
[52,17,0,"",26,"KERİM ESAT ODACI (KNY)"]
[53,17,0,"",23,"KAYA ARSLAN (İST)",null,null,null,null,null,null,null,null,null,null,null,null,null,null,null,0,0]
[null,null,null,"",null,null,null,0,0,null,null,27,""]
[54,33,14,"E3",39,"CAN ÖZTÜRK (SNP)",null,null,null,null,null,null,null,null,null,null,null,null,46]
[55,33,8,"E19",55,"TAHA DERELİ (İST)",null,null,null,null,null,null,null,null,0,0,null,null,null,""]
[null,null,null,"",null,null,null,0,0,null,null,28,""]
[56,9," ","",10,"MUSTAFA YILDIRIM (İST)"]
[57,9,0,"",15,"MUHAMMED BARIŞ KALKAN (GZT)"]
[null,null,null,"",null,null,null,0,0,null,null,29,""]
[58,33,10,"E23",50,"NURULLAH ÖZCAN (VAN       )",null,null,null,null,null,null,null,null,null,null,null,null,47,""]
[59,33,26,"E7",34,"ENSAR AYDIN (İST)",null,null,null,null,null,null,null,null,0,0]
[null,null,null,"",null,null,null,0,0,null,null,30,""]
[60,17,0,"",18,"ALİ SAİD AKDOĞAN (ÇRM)"]
[61,17,0,"",31,"CANBERK SEVİNDİK (ÇRM)",null,null,null,null,null,null,null,null,null,null,null,null,null,null,null,0,0]
[null,null,null,"",null,null,null,0,0,null,null,31,""]
[62,33,18,"E15",47,"TUNAY DENİZ SAKINÇ (ÇRM)",null,null,null,null,null,null,null,null,null,null,null,null,48]
[63,33,2,"E31",999,"BYE",null,null,null,null,null,null,null,null,0,0,null,null,null,""]
[null,null,null,null,null,null,null,0,0,null,null,32,""]
[64,2," "," ",2,"ARAS AYDIN (İST)"]

{"sheet":"32DE","index":4,"n_rows":98,"n_cols":79,"rows_kept":98,"cut":false,"hidden":false,"merged":[[4,8,4,14],[5,1,5,7],[6,1,6,7],[6,29,6,35],[7,8,7,14],[0,1,0,7],[1,8,1,14],[2,1,2,7],[3,1,3,7],[3,15,3,21],[0,24,4,50],[13,8,13,14],[14,1,14,7],[15,1,15,7],[15,15,15,21],[16,8,16,14],[8,1,8,7],[8,15,8,21],[9,1,9,7],[10,8,10,14],[11,1,11,7],[12,1,12,7],[21,1,21,7],[22,8,22,14],[23,1,23,7],[24,1,24,7],[24,64,24,70],[17,1,17,7],[17,29,17,35],[18,1,18,7],[18,22,18,28],[19,8,19,14],[20,1,20,7],[20,15,20,21],[30,1,30,7],[31,8,31,14],[31,29,31,35],[32,1,32,7],[32,15,32,21],[33,1,33,7],[25,8,25,14],[26,1,26,7],[27,1,27,7],[27,15,27,21],[28,8,28,14],[29,1,29,7],[39,1,39,7],[39,15,39,21],[40,8,40,14],[41,1,41,7],[42,1,42,7],[42,29,42,35],[34,8,34,14],[35,1,35,7],[36,1,36,7],[37,8,37,14],[38,1,38,7],[49,15,49,21],[50,8,50,14],[50,22,50,28],[50,36,50,42],[43,8,43,14],[44,1,44,7],[44,15,44,21],[45,1,45,7],[46,8,46,14],[47,1,47,7],[55,15,55,21],[56,8,56,14],[56,29,56,35],[56,71,56,77],[57,15,57,21],[51,15,51,21],[51,50,51,56],[52,8,52,14],[52,29,52,35],[53,15,53,21],[54,8,54,14],[54,22,54,28],[54,43,54,49],[61,15,61,21],[62,8,62,14],[62,22,62,28],[62,64,62,70],[63,15,63,21],[58,8,58,14],[58,22,58,28],[58,36,58,42],[59,15,59,21],[60,8,60,14],[60,29,60,35],[67,15,67,21],[68,8,68,14],[68,29,68,35],[68,50,68,56],[69,15,69,21],[70,8,70,14],[70,22,70,28],[64,8,64,14],[64,29,64,35],[64,43,64,49],[65,15,65,21],[66,8,66,14],[66,22,66,28],[66,36,66,42],[74,8,74,14],[74,22,74,28],[74,36,74,42],[74,57,74,63],[75,15,75,21],[75,50,75,56],[70,57,70,63],[71,15,71,21],[71,43,71,49],[72,8,72,14],[72,29,72,35],[73,15,73,21],[73,50,73,56],[79,15,79,21],[79,43,79,49],[80,8,80,14],[80,36,80,42],[80,50,80,56],[81,43,81,49],[76,8,76,14],[76,29,76,35],[76,57,76,63],[77,15,77,21],[77,43,77,49],[78,8,78,14],[78,22,78,28],[78,50,78,56],[97,43,97,49],[90,29,90,35],[91,29,91,35],[91,43,91,49],[92,36,92,42],[93,29,93,35],[93,43,93,49],[86,43,86,49],[48,29,48,35],[48,43,48,49],[88,29,88,35],[88,43,88,49],[89,36,89,42],[82,36,82,42],[83,36,83,42],[84,43,84,49],[85,36,85,42],[94,36,94,42],[95,43,95,49],[96,36,96,42],[87,50,87,56],[89,50,89,56],[83,50,83,56],[85,50,85,56],[60,57,60,63],[54,64,54,70],[48,57,48,63],[38,71,38,77],[37,50,37,56],[12,50,12,56]]}
[1,"ALİ ENES SEREN (KNY)",null,null,null,null,null,null,null,null,null,null,null,null,null,null,null,null,null,null,null,null,null,null,"TÜRKİYE MASA TENİSİ FEDERASYONU\nİsmail Eren ALICI Küçükler Ferdi-Takım Türkiye Şampiyonası                                                                                                                                                                                          TEK ERKEK [ 09-13 Nisan 2025 ÇORUM ] [ Ana Tablo ]"]
[null,null,null,3,0,"Y1",null,1,"ALİ ENES SEREN (KNY)"]
[2,"MUSTAFA KAYRA TURAN (KNY)",null,null,null,null,null,null,null,null,null,null,null,null,17]
[3,"ALİ BERKE GÜMÜŞ (KNY)",null,null,null,null,null,null,null,null,3,1,"Y17",null,null,"ALİ ENES SEREN (KNY)"]
[null,null,null,2,3,"Y2",null,2,"BERK TURAN (YLV)",null,null,null,null,null,null,null,null,null,null,null,null,33]
[4,"BERK TURAN (YLV)"]
[5,"SELİM AZAZİ (ANK)",null,null,null,null,null,null,null,null,null,null,null,null,null,null,null,1,3,"Y25",null,null,null,null,null,null,null,null,null,"AKİF EMRE BUCAK (İST)"]
[null,null,null,2,3,"Y3",null,3,"MUHAMMED EMİN KABADAYI (BRS)",null,null,null,null,null,null,null,null,null,null,null,null,null,null,null,null,null,null,null,null,null,null,null,null,null,null,49]
[6,"MUHAMMED EMİN KABADAYI (BRS)",null,null,null,null,null,null,null,null,null,null,null,null,18,"AKİF EMRE BUCAK (İST)"]
[7,"KEREM GÜLLER (İST)",null,null,null,null,null,null,null,null,0,3,"Y18"]
[null,null,null,2,3,"Y4",null,4,"AKİF EMRE BUCAK (İST)"]
[8,"AKİF EMRE BUCAK (İST)"]
[9,"BERAT ÖZDEMİR (ÇRM)",null,null,null,null,null,null,null,null,null,null,null,null,null,null,null,null,null,null,null,null,null,null,null,null,null,null,null,null,null,3,0,"Y29",null,null,null,null,null,null,null,null,null,null,null,null,null,null,null,null,"AKİF EMRE BUCAK (İST)"]
[null,null,null,3,0,"Y5",null,5,"BERAT ÖZDEMİR (ÇRM)",null,null,null,null,null,null,null,null,null,null,null,null,null,null,null,null,null,null,null,null,null,null,null,null,null,null,null,null,null,null,null,null,null,null,null,null,null,null,null,null,null,null,null,null,null,null,null,68]
[10,"AHMET EFE YILMAZ (İST)",null,null,null,null,null,null,null,null,null,null,null,null,19]
[11,"AHMET EMİR KALKAN (GZT)",null,null,null,null,null,null,null,null,3,0,"Y19",null,null,"BERAT ÖZDEMİR (ÇRM)"]
[null,null,null,1,3,"Y6",null,6,"DEMİR YÖNÜ (İST)",null,null,null,null,null,null,null,null,null,null,null,null,34]
[12,"DEMİR YÖNÜ (İST)",null,null,null,null,null,null,null,null,null,null,null,null,null,null,null,null,null,null,null,null,null,null,null,null,null,null,null,"AHMET ÇELİK (ÇRM)"]
[13,"BEYAZIT BERK DEMİR (AMS)",null,null,null,null,null,null,null,null,null,null,null,null,null,null,null,2,3,"Y26"]
[null,null,null,3,1,"Y7",null,7,"BEYAZIT BERK DEMİR (AMS)"]
[14,"METEHAN ŞAHİN (GZT)",null,null,null,null,null,null,null,null,null,null,null,null,20,"AHMET ÇELİK (ÇRM)"]
[15,"MEHMET FATİH GEZER (İST)",null,null,null,null,null,null,null,null,1,3,"Y20"]
[null,null,null,0,3,"Y8",null,8,"AHMET ÇELİK (ÇRM)"]
[16,"AHMET ÇELİK (ÇRM)"]
[17,"AHMET YİĞİT GÜLENLER (GZT)",null,null,null,null,null,null,null,null,null,null,null,null,null,"BEYAZIT BERK DEMİR (AMS)",null,null,null,null,null,null,null,null,null,null,null,null,null,null,null,null,null,null,null,null,null,null,null,null,null,null,null,null,null,null,null,null,null,null,null,null,3,0,"Y31",null,null,null,null,null,null,null,null,null,"AKİF EMRE BUCAK (İST)"]
[null,null,null,3,0,"Y9",null,9,"AHMET YİĞİT GÜLENLER (GZT)",null,null,null,null,null,null,null,null,null,null,null,null,null,null,null,null,null,null,null,null,null,null,null,null,null,null,null,null,null,null,null,null,null,null,null,null,null,null,null,null,null,null,null,null,null,null,null,null,null,null,null,null,null,null,null,null,null,null,null,null,null,72]
[18,"BARAN ERDEM (BTM)",null,null,null,null,null,null,null,null,null,null,null,null,21]
[19,"ENSAR ERFİDAN (VAN       )",null,null,null,null,null,null,null,null,3,0,"Y21",null,null,"AHMET YİĞİT GÜLENLER (GZT)"]
[null,null,null,1,3,"Y10",null,10,"AKİF EFE ASLANPAY (MĞL)",null,null,null,null,null,null,null,null,null,null,null,null,35]
[20,"AKİF EFE ASLANPAY (MĞL)"]
[21,"FURKAN KONYALI (ÇRM)",null,null,null,null,null,null,null,null,null,null,null,null,null,null,null,3,2,"Y27"]
[null,null,null,0,3,"Y11",null,11,"CEMAL AYAZ KARTAL (YLV)",null,null,null,null,null,null,null,null,null,null,null,null,null,null,null,null,null,null,null,null,"AHMET YİĞİT GÜLENLER (GZT)"]
[22,"CEMAL AYAZ KARTAL (YLV)",null,null,null,null,null,null,null,null,null,null,null,null,22,"AHMET BERK TÜKENMEZ (İST)",null,null,null,null,null,null,null,null,null,null,null,null,null,null,null,null,null,null,null,50]
[23,"DURSUN AYAZ NARMAN (KRK)",null,null,null,null,null,null,null,null,0,3,"Y22"]
[null,null,null,0,3,"Y12",null,12,"AHMET BERK TÜKENMEZ (İST)"]
[24,"AHMET BERK TÜKENMEZ (İST)"]
[25,"YİĞİT HÜSEYİN SUBAŞI (ÇRM)"]
[null,null,null,3,1,"Y13",null,13,"YİĞİT HÜSEYİN SUBAŞI (ÇRM)",null,null,null,null,null,null,null,null,null,null,null,null,null,null,null,null,null,null,null,null,null,null,1,3,"Y30",null,null,null,null,null,null,null,null,null,null,null,null,null,null,null,null,"YİĞİT HÜSEYİN SUBAŞI (ÇRM)"]
[26,"KERİM ESAT ODACI (KNY)",null,null,null,null,null,null,null,null,null,null,null,null,23,null,null,null,null,null,null,null,null,null,null,null,null,null,null,null,null,null,null,null,null,null,null,null,null,null,null,null,null,null,null,null,null,null,null,null,null,null,null,null,null,null,null,null,null,null,null,null,null,null,null,null,3,2,"Y32",null,null,"AKİF EMRE BUCAK (İST)",null,null,null,null,null,null,"1."]
[27,"KAYA ARSLAN (İST)",null,null,null,null,null,null,null,null,3,0,"Y23",null,null,"YİĞİT HÜSEYİN SUBAŞI (ÇRM)"]
[null,null,null,1,3,"Y14",null,14,"MUSTAFA YILDIRIM (İST)",null,null,null,null,null,null,null,null,null,null,null,null,36]
[28,"MUSTAFA YILDIRIM (İST)"]
[29,"MUHAMMED BARIŞ KALKAN (GZT)",null,null,null,null,null,null,null,null,null,null,null,null,null,null,null,3,1,"Y28",null,null,null,null,null,null,null,null,null,"YİĞİT HÜSEYİN SUBAŞI (ÇRM)"]
[null,null,null,2,3,"Y15",null,15,"ALİ SAİD AKDOĞAN (ÇRM)"]
[30,"ALİ SAİD AKDOĞAN (ÇRM)",null,null,null,null,null,null,null,null,null,null,null,null,24,"ARAS AYDIN (İST)"]
[31,"KUZEY ÖZNERGİZ (DNZ)",null,null,null,null,null,null,null,null,0,3,"Y24"]
[null,null,null,0,3,"Y16",null,16,"ARAS AYDIN (İST)"]
[32,"ARAS AYDIN (İST)"]
[null,null,null,null,null,null,null,null,null,null,null,null,null,null,null,null,null,null,null,null,null,null,null,null,null,null,null,null,"Y25","ALİ ENES SEREN (KNY)",null,null,null,null,null,null,null,null,null,null,null,null,"Y30","AHMET YİĞİT GÜLENLER (GZT)",null,null,null,null,null,null,null,null,null,null,null,null,"Y31","YİĞİT HÜSEYİN SUBAŞI (ÇRM)"]
[null,null,null,null,null,null,null,null,null,null,null,null,null,null,"Y24","ALİ SAİD AKDOĞAN (ÇRM)",null,null,null,null,null,null,null,null,null,null,null,null,null,null,null,null,null,null,null,51,null,null,null,null,null,null,null,null,null,null,null,null,null,63,null,null,null,null,null,null,null,null,null,null,null,null,null,71]
[null,null,null,null,null,null,null,"Y1","MUSTAFA KAYRA TURAN (KNY)",null,null,null,null,null,null,null,null,0,3,"YE",null,37,"ALİ BERKE GÜMÜŞ (KNY)",null,null,null,null,null,null,null,null,3,0,"Y37",null,null,"ALİ ENES SEREN (KNY)"]
[null,null,null,null,null,null,null,null,null,null,0,3,"Y.Elenir",null,25,"ALİ BERKE GÜMÜŞ (KNY)",null,null,null,null,null,null,null,null,null,null,null,null,45,null,null,null,null,null,null,null,null,null,null,null,null,null,57,null,null,null,null,null,null,null,"BERAT ÖZDEMİR (ÇRM)"]
[null,null,null,null,null,null,null,"Y2","ALİ BERKE GÜMÜŞ (KNY)",null,null,null,null,null,null,null,null,null,null,null,null,null,null,null,null,0,3,"Y33",null,"MUSTAFA YILDIRIM (İST)",null,null,null,null,null,null,null,null,null,null,null,null,null,null,null,1,3,"Y43",null,null,null,null,null,null,null,null,69]
[null,null,null,null,null,null,null,null,null,null,null,null,null,null,"Y23","MUSTAFA YILDIRIM (İST)"]
[null,null,null,null,null,null,null,"Y3","SELİM AZAZİ (ANK)",null,null,null,null,null,null,null,null,3,1,"YE",null,38,"MUSTAFA YILDIRIM (İST)",null,null,null,null,null,null,null,null,null,null,null,null,null,null,null,null,null,null,null,null,"BERAT ÖZDEMİR (ÇRM)",null,null,null,null,null,null,null,null,null,null,null,null,null,null,null,null,1,3,"Y46",null,"AHMET ÇELİK (ÇRM)"]
[null,null,null,null,null,null,null,null,null,null,3,0,"YE",null,26,"SELİM AZAZİ (ANK)",null,null,null,null,null,null,null,null,null,null,null,null,null,null,null,null,null,null,null,null,null,null,0,3,"Y41"]
[null,null,null,null,null,null,null,"Y4","KEREM GÜLLER (İST)",null,null,null,null,null,null,null,null,null,null,null,null,null,null,null,null,null,null,null,"Y26","BERAT ÖZDEMİR (ÇRM)",null,null,null,null,null,null,null,null,null,null,null,null,null,null,null,null,null,null,null,null,null,null,null,null,null,null,null,null,null,null,null,null,null,null,null,null,null,null,null,null,"Y32","AHMET ÇELİK (ÇRM)",null,null,null,null,null,null,"2."]
[null,null,null,null,null,null,null,null,null,null,null,null,null,null,"Y22","CEMAL AYAZ KARTAL (YLV)",null,null,null,null,null,null,null,null,null,null,null,null,null,null,null,null,null,null,null,52]
[null,null,null,null,null,null,null,"Y5","AHMET EFE YILMAZ (İST)",null,null,null,null,null,null,null,null,1,3,"YE",null,39,"AHMET EMİR KALKAN (GZT)",null,null,null,null,null,null,null,null,3,0,"Y38",null,null,"BERAT ÖZDEMİR (ÇRM)"]
[null,null,null,null,null,null,null,null,null,null,0,3,"YE",null,27,"AHMET EMİR KALKAN (GZT)",null,null,null,null,null,null,null,null,null,null,null,null,46]
[null,null,null,null,null,null,null,"Y6","AHMET EMİR KALKAN (GZT)",null,null,null,null,null,null,null,null,null,null,null,null,null,null,null,null,3,0,"Y34",null,"AHMET EMİR KALKAN (GZT)",null,null,null,null,null,null,null,null,null,null,null,null,null,null,null,null,null,null,null,null,null,null,1,3,"Y45",null,null,"AHMET ÇELİK (ÇRM)"]
[null,null,null,null,null,null,null,null,null,null,null,null,null,null,"Y21","AKİF EFE ASLANPAY (MĞL)"]
[null,null,null,null,null,null,null,"Y7","METEHAN ŞAHİN (GZT)",null,null,null,null,null,null,null,null,1,3,"YE",null,40,"MEHMET FATİH GEZER (İST)",null,null,null,null,null,null,null,null,null,null,null,null,null,null,null,null,null,null,null,null,null,null,null,null,null,null,null,null,null,null,null,null,null,null,null,null,null,null,null,null,"Y46","YİĞİT HÜSEYİN SUBAŞI (ÇRM)",null,null,null,null,null,null,"3."]
[null,null,null,null,null,null,null,null,null,null,0,3,"YE",null,28,"MEHMET FATİH GEZER (İST)"]
[null,null,null,null,null,null,null,"Y8","MEHMET FATİH GEZER (İST)",null,null,null,null,null,null,null,null,null,null,null,null,null,null,null,null,null,null,null,"Y27","AHMET BERK TÜKENMEZ (İST)",null,null,null,null,null,null,null,null,null,null,null,null,"Y29","AHMET ÇELİK (ÇRM)"]
[null,null,null,null,null,null,null,null,null,null,null,null,null,null,"Y20","BEYAZIT BERK DEMİR (AMS)",null,null,null,null,null,null,null,null,null,null,null,null,null,null,null,null,null,null,null,53,null,null,null,null,null,null,null,null,null,null,null,null,null,64]
[null,null,null,null,null,null,null,"Y9","BARAN ERDEM (BTM)",null,null,null,null,null,null,null,null,3,0,"YE",null,41,"BEYAZIT BERK DEMİR (AMS)",null,null,null,null,null,null,null,null,3,1,"Y39",null,null,"AHMET BERK TÜKENMEZ (İST)"]
[null,null,null,null,null,null,null,null,null,null,3,0,"YE",null,29,"BARAN ERDEM (BTM)",null,null,null,null,null,null,null,null,null,null,null,null,47]
[null,null,null,null,null,null,null,"Y10","ENSAR ERFİDAN (VAN       )",null,null,null,null,null,null,null,null,null,null,null,null,null,null,null,null,3,0,"Y35",null,"BEYAZIT BERK DEMİR (AMS)",null,null,null,null,null,null,null,null,null,null,null,null,58,null,null,3,2,"Y44",null,null,"AHMET ÇELİK (ÇRM)"]
[null,null,null,null,null,null,null,null,null,null,null,null,null,null,"Y19","DEMİR YÖNÜ (İST)"]
[null,null,null,null,null,null,null,"Y11","FURKAN KONYALI (ÇRM)",null,null,null,null,null,null,null,null,1,3,"YE",null,42,"FURKAN KONYALI (ÇRM)",null,null,null,null,null,null,null,null,null,null,null,null,null,null,null,null,null,null,null,null,null,null,null,null,null,null,null,null,null,null,null,null,null,"Y45","BERAT ÖZDEMİR (ÇRM)",null,null,null,null,null,null,"4."]
[null,null,null,null,null,null,null,null,null,null,3,0,"YE",null,30,"FURKAN KONYALI (ÇRM)",null,null,null,null,null,null,null,null,null,null,null,null,null,null,null,null,null,null,null,null,null,null,3,1,"Y42",null,null,"AHMET BERK TÜKENMEZ (İST)"]
[null,null,null,null,null,null,null,"Y12","DURSUN AYAZ NARMAN (KRK)",null,null,null,null,null,null,null,null,null,null,null,null,null,null,null,null,null,null,null,"Y28","ARAS AYDIN (İST)"]
[null,null,null,null,null,null,null,null,null,null,null,null,null,null,"Y18","MUHAMMED EMİN KABADAYI (BRS)",null,null,null,null,null,null,null,null,null,null,null,null,null,null,null,null,null,null,null,54,null,null,null,null,null,null,null,null,null,null,null,null,null,"Y43","AHMET YİĞİT GÜLENLER (GZT)"]
[null,null,null,null,null,null,null,"Y13","KERİM ESAT ODACI (KNY)",null,null,null,null,null,null,null,null,0,3,"YE",null,43,"KAYA ARSLAN (İST)",null,null,null,null,null,null,null,null,3,0,"Y40",null,null,"ARAS AYDIN (İST)",null,null,null,null,null,null,null,null,null,null,null,null,null,null,null,0,3,"Y56",null,70,"AHMET BERK TÜKENMEZ (İST)",null,null,null,null,null,null,"5."]
[null,null,null,null,null,null,null,null,null,null,0,3,"YE",null,31,"KAYA ARSLAN (İST)",null,null,null,null,null,null,null,null,null,null,null,null,48,null,null,null,null,null,null,null,null,null,null,null,null,null,null,null,null,null,null,null,null,"Y44","AHMET BERK TÜKENMEZ (İST)"]
[null,null,null,null,null,null,null,"Y14","KAYA ARSLAN (İST)",null,null,null,null,null,null,null,null,null,null,null,null,null,null,null,null,2,3,"Y36",null,"BERK TURAN (YLV)",null,null,null,null,null,null,null,null,null,null,null,null,null,null,null,null,null,null,null,null,null,null,null,null,null,null,"Y56","AHMET YİĞİT GÜLENLER (GZT)",null,null,null,null,null,null,"6."]
[null,null,null,null,null,null,null,null,null,null,null,null,null,null,"Y17","BERK TURAN (YLV)",null,null,null,null,null,null,null,null,null,null,null,null,null,null,null,null,null,null,null,null,null,null,null,null,null,null,"Y41","ALİ ENES SEREN (KNY)"]
[null,null,null,null,null,null,null,"Y15","MUHAMMED BARIŞ KALKAN (GZT)",null,null,null,null,null,null,null,null,3,1,"YE",null,44,"BERK TURAN (YLV)",null,null,null,null,null,null,null,null,null,null,null,null,null,null,null,null,null,null,null,null,null,null,3,1,"Y53",null,65,"ALİ ENES SEREN (KNY)",null,null,null,null,null,null,"7."]
[null,null,null,null,null,null,null,null,null,null,3,1,"YE",null,32,"MUHAMMED BARIŞ KALKAN (GZT)",null,null,null,null,null,null,null,null,null,null,null,null,null,null,null,null,null,null,null,null,null,null,null,null,null,null,"Y42","ARAS AYDIN (İST)"]
[null,null,null,null,null,null,null,"Y16","KUZEY ÖZNERGİZ (DNZ)",null,null,null,null,null,null,null,null,null,null,null,null,null,null,null,null,null,null,null,null,null,null,null,null,null,null,"Y37","MUSTAFA YILDIRIM (İST)",null,null,null,null,null,null,null,null,null,null,null,null,"Y53","ARAS AYDIN (İST)",null,null,null,null,null,null,"8."]
[null,null,null,null,null,null,null,null,null,null,null,null,null,null,null,null,null,null,null,null,null,null,null,null,null,null,null,null,null,null,null,null,null,null,null,null,null,null,3,2,"Y49",null,59,"MUSTAFA YILDIRIM (İST)"]
[null,null,null,null,null,null,null,null,null,null,null,null,null,null,null,null,null,null,null,null,null,null,null,null,null,null,null,null,null,null,null,null,null,null,null,"Y38","AHMET EMİR KALKAN (GZT)",null,null,null,null,null,null,null,null,null,null,null,null,66]
[null,null,null,null,null,null,null,null,null,null,null,null,null,null,null,null,null,null,null,null,null,null,null,null,null,null,null,null,null,null,null,null,null,null,null,"Y39","BEYAZIT BERK DEMİR (AMS)",null,null,null,null,null,null,null,null,3,0,"Y54",null,null,"MUSTAFA YILDIRIM (İST)",null,null,null,null,null,null,"9."]
[null,null,null,null,null,null,null,null,null,null,null,null,null,null,null,null,null,null,null,null,null,null,null,null,null,null,null,null,null,null,null,null,null,null,null,null,null,null,3,2,"Y50",null,60,"BEYAZIT BERK DEMİR (AMS)"]
[null,null,null,null,null,null,null,null,null,null,null,null,null,null,null,null,null,null,null,null,null,null,null,null,null,null,null,null,null,null,null,null,null,null,null,"Y40","BERK TURAN (YLV)",null,null,null,null,null,null,null,null,null,null,null,null,"Y54","BEYAZIT BERK DEMİR (AMS)",null,null,null,null,null,null,"10."]
[null,null,null,null,null,null,null,null,null,null,null,null,null,null,null,null,null,null,null,null,null,null,null,null,null,null,null,null,null,null,null,null,null,null,null,null,null,null,null,null,null,null,"Y49","AHMET EMİR KALKAN (GZT)"]
[null,null,null,null,null,null,null,null,null,null,null,null,null,null,null,null,null,null,null,null,null,null,null,null,null,null,null,null,null,null,null,null,null,null,null,null,null,null,null,null,null,null,null,null,null,3,2,"Y55",null,67,"AHMET EMİR KALKAN (GZT)",null,null,null,null,null,null,"11."]
[null,null,null,null,null,null,null,null,null,null,null,null,null,null,null,null,null,null,null,null,null,null,null,null,null,null,null,null,"Y33","ALİ BERKE GÜMÜŞ (KNY)",null,null,null,null,null,null,null,null,null,null,null,null,"Y50","BERK TURAN (YLV)"]
[null,null,null,null,null,null,null,null,null,null,null,null,null,null,null,null,null,null,null,null,null,null,null,null,null,null,null,null,null,null,null,3,0,"Y47",null,55,"ALİ BERKE GÜMÜŞ (KNY)",null,null,null,null,null,null,null,null,null,null,null,null,"Y55","BERK TURAN (YLV)",null,null,null,null,null,null,"12."]
[null,null,null,null,null,null,null,null,null,null,null,null,null,null,null,null,null,null,null,null,null,null,null,null,null,null,null,null,"Y34","MEHMET FATİH GEZER (İST)",null,null,null,null,null,null,null,null,null,null,null,null,61]
[null,null,null,null,null,null,null,null,null,null,null,null,null,null,null,null,null,null,null,null,null,null,null,null,null,null,null,null,"Y35","FURKAN KONYALI (ÇRM)",null,null,null,null,null,null,null,null,3,0,"Y51",null,null,"ALİ BERKE GÜMÜŞ (KNY)",null,null,null,null,null,null,"13."]
[null,null,null,null,null,null,null,null,null,null,null,null,null,null,null,null,null,null,null,null,null,null,null,null,null,null,null,null,null,null,null,2,3,"Y48",null,56,"KAYA ARSLAN (İST)"]
[null,null,null,null,null,null,null,null,null,null,null,null,null,null,null,null,null,null,null,null,null,null,null,null,null,null,null,null,"Y36","KAYA ARSLAN (İST)",null,null,null,null,null,null,null,null,null,null,null,null,"Y51","KAYA ARSLAN (İST)",null,null,null,null,null,null,"14."]
[null,null,null,null,null,null,null,null,null,null,null,null,null,null,null,null,null,null,null,null,null,null,null,null,null,null,null,null,null,null,null,null,null,null,null,"Y47","MEHMET FATİH GEZER (İST)"]
[null,null,null,null,null,null,null,null,null,null,null,null,null,null,null,null,null,null,null,null,null,null,null,null,null,null,null,null,null,null,null,null,null,null,null,null,null,null,0,3,"Y52",null,62,"FURKAN KONYALI (ÇRM)",null,null,null,null,null,null,"15."]
[null,null,null,null,null,null,null,null,null,null,null,null,null,null,null,null,null,null,null,null,null,null,null,null,null,null,null,null,null,null,null,null,null,null,null,"Y48","FURKAN KONYALI (ÇRM)"]
[null,null,null,null,null,null,null,null,null,null,null,null,null,null,null,null,null,null,null,null,null,null,null,null,null,null,null,null,null,null,null,null,null,null,null,null,null,null,null,null,null,null,"Y52","MEHMET FATİH GEZER (İST)",null,null,null,null,null,null,"16."]

{"sheet":"16DE","index":5,"n_rows":63,"n_cols":1217,"rows_kept":63,"cut":false,"hidden":true,"merged":[[1,85,1,86],[1,75,1,76],[1,77,1,78],[1,79,1,80],[1,81,1,82],[1,83,1,84],[59,22,59,28],[60,29,60,35],[61,22,61,28],[37,43,37,49],[49,22,49,28],[49,36,49,42],[46,36,46,42],[47,22,47,28],[48,29,48,35],[34,43,34,49],[29,43,29,49],[18,57,18,63],[25,57,25,63],[0,24,3,48],[6,22,6,28],[62,29,62,35],[54,15,54,21],[55,29,55,35],[56,15,56,21],[57,22,57,28],[58,15,58,21],[58,29,58,35],[50,29,50,35],[51,36,51,42],[52,15,52,21],[52,29,52,35],[53,22,53,28],[53,36,53,42],[39,8,39,14],[39,43,39,49],[40,29,40,35],[41,36,41,42],[42,29,42,35],[43,22,43,28],[43,36,43,42],[44,29,44,35],[45,22,45,28],[38,15,38,21],[38,36,38,42],[33,8,33,14],[33,22,33,28],[33,36,33,42],[34,15,34,21],[36,15,36,21],[36,36,36,42],[37,8,37,14],[37,22,37,28],[35,8,35,14],[35,29,35,35],[30,15,30,21],[30,50,30,55],[31,8,31,14],[31,29,31,35],[32,15,32,21],[26,15,26,21],[27,8,27,14],[27,29,27,35],[28,15,28,21],[29,8,29,14],[29,22,29,28],[20,1,20,7],[20,15,20,21],[21,1,21,7],[22,8,22,14],[23,1,23,7],[23,29,23,35],[24,15,24,21],[24,50,24,56],[25,8,25,14],[25,22,25,28],[25,36,25,42],[19,8,19,14],[19,43,19,49],[12,50,12,56],[13,8,13,14],[14,1,14,7],[15,1,15,7],[15,15,15,21],[16,8,16,14],[12,1,12,7],[17,1,17,7],[17,22,17,28],[18,1,18,7],[18,22,18,28],[8,1,8,7],[8,15,8,21],[9,1,9,7],[10,8,10,14],[11,1,11,7],[7,8,7,14],[0,1,0,7],[1,8,1,14],[2,1,2,7],[3,1,3,7],[3,15,3,21],[4,8,4,14],[5,1,5,7],[6,1,6,7]]}
[1,{"$f":"IF(Kura!#REF!=2,Eleme!#REF!,IF(Kura!#REF!=3,Eleme!#REF!,IF(Kura!#REF!=4,Eleme!#REF!,IF(Kura!#REF!=5,Eleme!#REF!,IF(Kura!#REF!=6,Eleme!#REF!)))))","v":{"$error":"#REF!"}},null,null,null,null,null,null,null,null,null,null,null,null,null,null,null,null,null,null,null,null,null,null,{"$f":"Kura!#REF!&\" \"&Kura!#REF!","v":{"$error":"#REF!"}},null,null,null,null,null,null,null,null,null,null,null,null,null,null,null,null,null,null,null,null,null,null,null,null,null,null,null,null,null,null,null,null,null,null,null,null,null,null,null,null,null,null,null,null,null,null,null,null,null,null,null,null,null,null,null,null,null,null,null,null,null,null,null,null,null,null,null,null,null,null,null,null,null,null,null,null,null,null,"1st Round",1]
[null,null,null,{"$f":"CH3","v":0},{"$f":"CI3","v":0},"Y1",null,1,{"$f":"IF(AND(D2=0,E2=0),\"\",IF(D2>E2,B1,B3))","v":""},null,null,null,null,null,null,null,null,null,null,null,null,null,null,null,null,null,null,null,null,null,null,null,null,null,null,null,null,null,null,null,null,null,null,null,null,null,null,null,null,null,null,null,null,null,null,null,null,null,null,null,null,null,null,null,null,null,null,null,"#","Date","Time","Table","Competition","Player A","Player B","Set1",null,"Set2",null,"Set3",null,"Set4",null,"Set5",null,"Result",null,null,null,null,null,null,null,null,null,null,null,null,null,null,null,null,null,"2sn Round"]
[2,{"$f":"IF(Kura!#REF!=2,Eleme!#REF!,IF(Kura!#REF!=3,Eleme!#REF!,IF(Kura!#REF!=4,Eleme!#REF!,IF(Kura!#REF!=5,Eleme!#REF!,IF(Kura!#REF!=6,Eleme!#REF!)))))","v":{"$error":"#REF!"}},null,null,null,null,null,null,null,null,null,null,null,null,9,null,null,null,null,null,null,null,null,null,null,null,null,null,null,null,null,null,null,null,null,null,null,null,null,null,null,null,null,null,null,null,null,null,null,null,null,null,null,null,null,null,null,null,null,null,null,null,null,null,null,null,null,null,1,"2025-04-09",null,null,null,{"$f":"B1","v":{"$error":"#REF!"}},{"$f":"B3","v":{"$error":"#REF!"}},null,null,null,null,null,null,null,null,null,null,null,null,null,null,null,null,null,null,null,null,null,null,null,null,null,null,null,null,"3th Round"]
[3,{"$f":"IF(Kura!#REF!=2,Eleme!#REF!,IF(Kura!#REF!=3,Eleme!#REF!,IF(Kura!#REF!=4,Eleme!#REF!,IF(Kura!#REF!=5,Eleme!#REF!,IF(Kura!#REF!=6,Eleme!#REF!)))))","v":{"$error":"#REF!"}},null,null,null,null,null,null,null,null,{"$f":"CH11","v":0},{"$f":"CI11","v":0},"Y9",null,null,{"$f":"IF(AND(K4=0,L4=0),\"\",IF(K4>L4,I2,I5))","v":""},null,null,null,null,null,null,null,null,null,null,null,null,null,null,null,null,null,null,null,null,null,null,null,null,null,null,null,null,null,null,null,null,null,null,null,null,null,null,null,null,null,null,null,null,null,null,null,null,null,null,null,null,2,"2025-04-09",null,null,null,{"$f":"B4","v":{"$error":"#REF!"}},{"$f":"B6","v":{"$error":"#REF!"}},null,null,null,null,null,null,null,null,null,null,null,null,null,null,null,null,null,null,null,null,null,null,null,null,null,null,null,null,"4th Round"]
[null,null,null,{"$f":"CH4","v":0},{"$f":"CI4","v":0},"Y2",null,2,{"$f":"IF(AND(D5=0,E5=0),\"\",IF(D5>E5,B4,B6))","v":""},null,null,null,null,null,null,null,null,null,null,null,null,17,null,null,null,null,null,null,null,null,null,null,null,null,null,null,null,null,null,null,null,null,null,null,null,null,null,null,null,null,null,null,null,null,null,null,null,null,null,null,null,null,null,null,null,null,null,null,3,"2025-04-09",null,null,null,{"$f":"B7","v":{"$error":"#REF!"}},{"$f":"B9","v":{"$error":"#REF!"}},null,null,null,null,null,null,null,null,null,null,null,null,null,null,null,null,null,null,null,null,null,null,null,null,null,null,null,null,"5th Round"]
[4,{"$f":"IF(Kura!#REF!=2,Eleme!#REF!,IF(Kura!#REF!=3,Eleme!#REF!,IF(Kura!#REF!=4,Eleme!#REF!,IF(Kura!#REF!=5,Eleme!#REF!,IF(Kura!#REF!=6,Eleme!#REF!)))))","v":{"$error":"#REF!"}},null,null,null,null,null,null,null,null,null,null,null,null,null,null,null,null,null,null,null,null,null,null,null,null,null,null,null,null,null,null,null,null,null,null,null,null,null,null,null,null,null,null,null,null,null,null,null,null,null,null,null,null,null,null,null,null,null,null,null,null,null,null,null,null,null,null,4,"2025-04-09",null,null,null,{"$f":"B10","v":{"$error":"#REF!"}},{"$f":"B12","v":{"$error":"#REF!"}},null,null,null,null,null,null,null,null,null,null,null,null,null,null,null,null,null,null,null,null,null,null,null,null,null,null,null,null,"6th Round"]
[5,{"$f":"IF(Kura!#REF!=2,Eleme!#REF!,IF(Kura!#REF!=3,Eleme!#REF!,IF(Kura!#REF!=4,Eleme!#REF!,IF(Kura!#REF!=5,Eleme!#REF!,IF(Kura!#REF!=6,Eleme!#REF!)))))","v":{"$error":"#REF!"}},null,null,null,null,null,null,null,null,null,null,null,null,null,null,null,{"$f":"CH19","v":0},{"$f":"CI19","v":0},"Y17",null,null,{"$f":"IF(AND(R7=0,S7=0),\"\",IF(R7>S7,P4,P9))","v":""},null,null,null,null,null,null,null,null,null,null,null,null,null,null,null,null,null,null,null,null,null,null,null,null,null,null,null,null,null,null,null,null,null,null,null,null,null,null,null,null,null,null,null,null,null,5,"2025-04-09",null,null,null,{"$f":"B13","v":{"$error":"#REF!"}},{"$f":"B15","v":{"$error":"#REF!"}},null,null,null,null,null,null,null,null,null,null,null,null,null,null,null,null,null,null,null,null,null,null,null,null,null,null,null,null,"7th Round"]
[null,null,null,{"$f":"CH5","v":0},{"$f":"CI5","v":0},"Y3",null,3,{"$f":"IF(AND(D8=0,E8=0),\"\",IF(D8>E8,B7,B9))","v":""},null,null,null,null,null,null,null,null,null,null,null,null,null,null,null,null,null,null,null,25,null,null,null,null,null,null,null,null,null,null,null,null,null,null,null,null,null,null,null,null,null,null,null,null,null,null,null,null,null,null,null,null,null,null,null,null,null,null,null,6,"2025-04-09",null,null,null,{"$f":"B16","v":{"$error":"#REF!"}},{"$f":"B18","v":{"$error":"#REF!"}},null,null,null,null,null,null,null,null,null,null,null,null,null,null,null,null,null,null,null,null,null,null,null,null,null,null,null,null,"8th Round"]
[6,{"$f":"IF(Kura!#REF!=2,Eleme!#REF!,IF(Kura!#REF!=3,Eleme!#REF!,IF(Kura!#REF!=4,Eleme!#REF!,IF(Kura!#REF!=5,Eleme!#REF!,IF(Kura!#REF!=6,Eleme!#REF!)))))","v":{"$error":"#REF!"}},null,null,null,null,null,null,null,null,null,null,null,null,10,{"$f":"IF(AND(K10=0,L10=0),\"\",IF(K10>L10,I8,I11))","v":""},null,null,null,null,null,null,null,null,null,null,null,null,null,null,null,null,null,null,null,null,null,null,null,null,null,null,null,null,null,null,null,null,null,null,null,null,null,null,null,null,null,null,null,null,null,null,null,null,null,null,null,null,7,"2025-04-09",null,null,null,{"$f":"B19","v":{"$error":"#REF!"}},{"$f":"B21","v":{"$error":"#REF!"}}]
[7,{"$f":"IF(Kura!#REF!=2,Eleme!#REF!,IF(Kura!#REF!=3,Eleme!#REF!,IF(Kura!#REF!=4,Eleme!#REF!,IF(Kura!#REF!=5,Eleme!#REF!,IF(Kura!#REF!=6,Eleme!#REF!)))))","v":{"$error":"#REF!"}},null,null,null,null,null,null,null,null,{"$f":"CH12","v":0},{"$f":"CI12","v":0},"Y10",null,null,null,null,null,null,null,null,null,null,null,null,null,null,null,null,null,null,null,null,null,null,null,null,null,null,null,null,null,null,null,null,null,null,null,null,null,null,null,null,null,null,null,null,null,null,null,null,null,null,null,null,null,null,null,8,"2025-04-09",null,null,null,{"$f":"B22","v":{"$error":"#REF!"}},{"$f":"B24","v":{"$error":"#REF!"}}]
[null,null,null,{"$f":"CH6","v":0},{"$f":"CI6","v":0},"Y4",null,4,{"$f":"IF(AND(D11=0,E11=0),\"\",IF(D11>E11,B10,B12))","v":""},null,null,null,null,null,null,null,null,null,null,null,null,null,null,null,null,null,null,null,null,null,null,null,null,null,null,null,null,null,null,null,null,null,null,null,null,null,null,null,null,null,null,null,null,null,null,null,null,null,null,null,null,null,null,null,null,null,null,null,9,"2025-04-09",null,null,null,{"$f":"I2","v":""},{"$f":"I5","v":""}]
[8,{"$f":"IF(Kura!#REF!=2,Eleme!#REF!,IF(Kura!#REF!=3,Eleme!#REF!,IF(Kura!#REF!=4,Eleme!#REF!,IF(Kura!#REF!=5,Eleme!#REF!,IF(Kura!#REF!=6,Eleme!#REF!)))))","v":{"$error":"#REF!"}},null,null,null,null,null,null,null,null,null,null,null,null,null,null,null,null,null,null,null,null,null,null,null,null,null,null,null,null,null,null,null,null,null,null,null,null,null,null,null,null,null,null,null,null,null,null,null,null,null,null,null,null,null,null,null,null,null,null,null,null,null,null,null,null,null,null,10,"2025-04-09",null,null,null,{"$f":"I8","v":""},{"$f":"I11","v":""}]
[9,{"$f":"IF(Kura!#REF!=2,Eleme!#REF!,IF(Kura!#REF!=3,Eleme!#REF!,IF(Kura!#REF!=4,Eleme!#REF!,IF(Kura!#REF!=5,Eleme!#REF!,IF(Kura!#REF!=6,Eleme!#REF!)))))","v":{"$error":"#REF!"}},null,null,null,null,null,null,null,null,null,null,null,null,null,null,null,null,null,null,null,null,null,null,{"$f":"CH27","v":0},{"$f":"+CI27","v":0},"Y25",null,null,null,null,null,null,null,null,null,null,null,null,null,null,null,null,null,null,null,null,null,null,null,{"$f":"IF(AND(Y13=0,Z13=0),\"\",IF(Y13>Z13,W7,W18))","v":""},null,null,null,null,null,null,null,null,null,null,null,null,null,null,null,null,null,11,"2025-04-09",null,null,null,{"$f":"I14","v":""},{"$f":"I17","v":""}]
[null,null,null,{"$f":"CH7","v":0},{"$f":"CI7","v":0},"Y5",null,5,{"$f":"IF(AND(D14=0,E14=0),\"\",IF(D14>E14,B13,B15))","v":""},null,null,null,null,null,null,null,null,null,null,null,null,null,null,null,null,null,null,null,null,null,null,null,null,null,null,null,null,null,null,null,null,null,null,null,null,null,null,null,null,null,null,null,null,null,null,null,40,null,null,null,null,null,null,null,null,null,null,null,12,"2025-04-09",null,null,null,{"$f":"I20","v":""},{"$f":"I23","v":""}]
[10,{"$f":"IF(Kura!#REF!=2,Eleme!#REF!,IF(Kura!#REF!=3,Eleme!#REF!,IF(Kura!#REF!=4,Eleme!#REF!,IF(Kura!#REF!=5,Eleme!#REF!,IF(Kura!#REF!=6,Eleme!#REF!)))))","v":{"$error":"#REF!"}},null,null,null,null,null,null,null,null,null,null,null,null,11,null,null,null,null,null,null,null,null,null,null,null,null,null,null,null,null,null,null,null,null,null,null,null,null,null,null,null,null,null,null,null,null,null,null,null,null,null,null,null,null,null,null,null,null,null,null,null,null,null,null,null,null,null,13,"2025-04-09",null,null,null,{"$f":"I26","v":""},{"$f":"I28","v":""}]
[11,{"$f":"IF(Kura!#REF!=2,Eleme!#REF!,IF(Kura!#REF!=3,Eleme!#REF!,IF(Kura!#REF!=4,Eleme!#REF!,IF(Kura!#REF!=5,Eleme!#REF!,IF(Kura!#REF!=6,Eleme!#REF!)))))","v":{"$error":"#REF!"}},null,null,null,null,null,null,null,null,{"$f":"CH13","v":0},{"$f":"CI13","v":0},"Y11",null,null,{"$f":"IF(AND(K16=0,L16=0),\"\",IF(K16>L16,I14,I17))","v":""},null,null,null,null,null,null,null,null,null,null,null,null,null,null,null,null,null,null,null,null,null,null,null,null,null,null,null,null,null,null,null,null,null,null,null,null,null,null,null,null,null,null,null,null,null,null,null,null,null,null,null,null,14,"2025-04-09",null,null,null,{"$f":"I30","v":""},{"$f":"I32","v":""}]
[null,null,null,{"$f":"CH8","v":0},{"$f":"CI8","v":0},"Y6",null,6,{"$f":"IF(AND(D17=0,E17=0),\"\",IF(D17>E17,B16,B18))","v":""},null,null,null,null,null,null,null,null,null,null,null,null,18,null,null,null,null,null,null,null,null,null,null,null,null,null,null,null,null,null,null,null,null,null,null,null,null,null,null,null,null,null,null,null,null,null,null,null,null,null,null,null,null,null,null,null,null,null,null,15,"2025-04-09",null,null,null,{"$f":"I34","v":""},{"$f":"I36","v":""}]
[12,{"$f":"IF(Kura!#REF!=2,Eleme!#REF!,IF(Kura!#REF!=3,Eleme!#REF!,IF(Kura!#REF!=4,Eleme!#REF!,IF(Kura!#REF!=5,Eleme!#REF!,IF(Kura!#REF!=6,Eleme!#REF!)))))","v":{"$error":"#REF!"}},null,null,null,null,null,null,null,null,null,null,null,null,null,null,null,null,null,null,null,null,{"$f":"IF(AND(R19=0,S19=0),\"\",IF(R19>S19,P16,P21))","v":""},null,null,null,null,null,null,null,null,null,null,null,null,null,null,null,null,null,null,null,null,null,null,null,null,null,null,null,null,null,null,null,null,null,null,null,null,null,null,null,null,null,null,null,null,null,16,"2025-04-09",null,null,null,{"$f":"I38","v":""},{"$f":"I40","v":""}]
[13,{"$f":"IF(Kura!#REF!=2,Eleme!#REF!,IF(Kura!#REF!=3,Eleme!#REF!,IF(Kura!#REF!=4,Eleme!#REF!,IF(Kura!#REF!=5,Eleme!#REF!,IF(Kura!#REF!=6,Eleme!#REF!)))))","v":{"$error":"#REF!"}},null,null,null,null,null,null,null,null,null,null,null,null,null,null,null,{"$f":"CH20","v":0},{"$f":"CI20","v":0},"Y18",null,null,null,null,null,null,null,null,null,null,null,null,null,null,null,null,null,null,null,null,null,null,null,null,null,null,null,null,null,null,null,null,{"$f":"CH42","v":0},{"$f":"CI42","v":0},"Y40",null,null,{"$f":"IF(AND(BA19=0,BB19=0),\"\",IF(BA19>BB19,AY13,AY25))","v":""},null,null,null,null,null,null,"1.",null,null,null,17,null,null,null,null,{"$f":"P4","v":""},{"$f":"P9","v":""}]
[null,null,null,{"$f":"CH9","v":0},{"$f":"CI9","v":0},"Y7",null,7,{"$f":"IF(AND(D20=0,E20=0),\"\",IF(D20>E20,B19,B21))","v":""},null,null,null,null,null,null,null,null,null,null,null,null,null,null,null,null,null,null,null,null,null,null,null,null,null,null,null,null,null,null,null,null,null,"Y25",{"$f":"IF(AND(Y13=0,Z13=0),\"\",IF(Y13<Z13,W7,W18))","v":""},null,null,null,null,null,null,null,null,null,null,null,null,null,null,null,null,null,null,null,null,null,null,null,null,18,null,null,null,null,{"$f":"P16","v":""},{"$f":"P21","v":""}]
[14,{"$f":"IF(Kura!#REF!=2,Eleme!#REF!,IF(Kura!#REF!=3,Eleme!#REF!,IF(Kura!#REF!=4,Eleme!#REF!,IF(Kura!#REF!=5,Eleme!#REF!,IF(Kura!#REF!=6,Eleme!#REF!)))))","v":{"$error":"#REF!"}},null,null,null,null,null,null,null,null,null,null,null,null,12,{"$f":"IF(AND(K22=0,L22=0),\"\",IF(K22>L22,I20,I23))","v":""},null,null,null,null,null,null,null,null,null,null,null,null,null,null,null,null,null,null,null,null,null,null,null,null,null,null,null,null,null,null,null,null,null,39,null,null,null,null,null,null,null,null,null,null,null,null,null,null,null,null,null,null,19,null,null,null,null,{"$f":"P25","v":""},{"$f":"P27","v":""}]
[15,{"$f":"IF(Kura!#REF!=2,Eleme!#REF!,IF(Kura!#REF!=3,Eleme!#REF!,IF(Kura!#REF!=4,Eleme!#REF!,IF(Kura!#REF!=5,Eleme!#REF!,IF(Kura!#REF!=6,Eleme!#REF!)))))","v":{"$error":"#REF!"}},null,null,null,null,null,null,null,null,{"$f":"CH14","v":0},{"$f":"CI14","v":0},"Y12",null,null,null,null,null,null,null,null,null,null,null,null,null,null,null,null,null,null,null,null,null,null,null,null,null,null,null,null,null,null,null,null,null,null,null,null,null,null,null,null,null,null,null,null,null,null,null,null,null,null,null,null,null,null,null,20,null,null,null,null,{"$f":"P29","v":""},{"$f":"P31","v":""}]
[null,null,null,{"$f":"CH10","v":0},{"$f":"CI10","v":0},"Y8",null,8,{"$f":"IF(AND(D23=0,E23=0),\"\",IF(D23>E23,B22,B24))","v":""},null,null,null,null,null,null,null,null,null,null,null,null,null,null,null,null,null,null,null,null,null,null,null,null,null,null,null,null,null,null,null,null,null,null,null,null,null,null,null,null,null,null,null,null,null,null,null,null,null,null,null,null,null,null,null,null,null,null,null,21,null,null,null,null,{"$f":"P33","v":""},{"$f":"P35","v":""}]
[16,{"$f":"IF(Kura!#REF!=2,Eleme!#REF!,IF(Kura!#REF!=3,Eleme!#REF!,IF(Kura!#REF!=4,Eleme!#REF!,IF(Kura!#REF!=5,Eleme!#REF!,IF(Kura!#REF!=6,Eleme!#REF!)))))","v":{"$error":"#REF!"}},null,null,null,null,null,null,null,null,null,null,null,null,null,null,null,null,null,null,null,null,null,null,null,null,null,null,"Y18",{"$f":"IF(AND(R19=0,S19=0),\"\",IF(R19<S19,P16,P21))","v":""},null,null,null,null,null,null,null,null,null,null,null,null,null,null,null,null,null,null,null,null,null,null,null,null,null,null,null,null,null,null,null,null,null,null,null,null,null,null,22,null,null,null,null,{"$f":"P37","v":""},{"$f":"P39","v":""}]
[null,null,null,null,null,null,null,null,null,null,null,null,null,null,"Y12",{"$f":"IF(AND(K22=0,L22=0),\"\",IF(K22<L22,I20,I23))","v":""},null,null,null,null,null,null,null,null,null,null,null,null,null,null,null,null,null,null,null,32,null,null,null,null,null,null,null,null,null,{"$f":"CH41","v":0},{"$f":"+CI41","v":0},"Y39",null,null,{"$f":"IF(AND(AT25=0,AU25=0),\"\",IF(AT25>AU25,AR20,AR30))","v":""},null,null,null,null,null,null,null,null,null,null,null,null,null,null,null,null,null,23,null,null,null,null,{"$f":"P53","v":""},{"$f":"P55","v":""},null,null,null,null,null,null,null,null,null,null,null,null,null,null,null,null,null,null,null,null,null,null,null,null,null,null,null,null,null,null,null,null,null,null,null,null,null,null,null,null,null,null,null,null,null,null,null,null,null,null,null,null,null,null,null,null,null,null,null,null,null,null,null,null,null,null,null,null,null,null,null,null,null,null,null,null,null,null,null,null,null,null,null,null,null,null,null,null,null,null,null,null,null,null,null,null,null,null,null,null,null,null,null,null,null,null,null,null,null,null,null,null,null,null,null,null,null,null,null,null,null,null,null,null,null,null,null,null,null,null,null,null,null,null,null,null,null,null,null,null,null,null,null,null,null,null,null,null,null,null,null,null,null,null,null,null,null,null,null,null,null,null,null,null,null,null,null,null,null,null,null,null,null,null,null,null,null,null,null,null,null,null,null,null,null,null,null,null,null,null,null,null,null,null,null,null,null,null,null,null,null,null,null,null,null,null,null,null,null,null,null,null,null,null,null,null,null,null,null,null,null,null,null,null,null,null,null,null,null,null,null,null,null,null,null,null,null,null,null,null,null,null,null,null,null,null,null,null,null,null,null,null,null,null,null,null,null,null,null,null,null,null,null,null,null,null,null,null,null,null,null,null,null,null,null,null,null,null,null,null,null,null,null,null,null,null,null,null,null,null,null,null,null,null,null,null,null,null,null,null,null,null,null,null,null,null,null,null,null,null,null,null,null,null,null,null,null,null,null,null,null,null,null,null,null,null,null,null,null,null,null,null,null,null,null,null,null,null,null,null,null,null,null,null,null,null,null,null,null,null,null,null,null,null,null,null,null,null,null,null,null,null,null,null,null,null,null,null,null,null,null,null,null,null,null,null,null,null,null,null,null,null,null,null,null,null,null,null,null,null,null,null,null,null,null,null,null,null,null,null,null,null,null,null,null,null,null,null,null,null,null,null,null,null,null,null,null,null,null,null,null,null,null,null,null,null,null,null,null,null,null,null,null,null,null,null,null,null,null,null,null,null,null,null,null,null,null,null,null,null,null,null,null,null,null,null,null,null,null,null,null,null,null,null,null,null,null,null,null,null,null,null,null,null,null,null,null,null,null,null,null,null,null,null,null,null,null,null,null,null,null,null,null,null,null,null,null,null,null,null,null,null,null,null,null,null,null,null,null,null,null,null,null,null,null,null,null,null,null,null,null,null,null,null,null,null,null,null,null,null,null,null,null,null,null,null,null,null,null,null,null,null,null,null,null,null,null,null,null,null,null,null,null,null,null,null,null,null,null,null,null,null,null,null,null,null,null,null,null,null,null,null,null,null,null,null,null,null,null,null,null,null,null,null,null,null,null,null,null,null,null,null,null,null,null,null,null,null,null,null,null,null,null,null,null,null,null,null,null,null,null,null,null,null,null,null,null,null,null,null,null,null,null,null,null,null,null,null,null,null,null,null,null,null,null,null,null,null,null,null,null,null,null,null,null,null,null,null,null,null,null,null,null,null,null,null,null,null,null,null,null,null,null,null,null,null,null,null,null,null,null,null,null,null,null,null,null,null,null,null,null,null,null,null,null,null,null,null,null,null,null,null,null,null,null,null,null,null,null,null,null,null,null,null,null,null,null,null,null,null,null,null,null,null,null,null,null,null,null,null,null,null,null,null,null,null,null,null,null,null,null,null,null,null,null,null,null,null,null,null,null,null,null,null,null,null,null,null,null,null,null,null,null,null,null,null,null,null,null,null,null,null,null,null,null,null,null,null,null,null,null,null,null,null,null,null,null,null,null,null,null,null,null,null,null,null,null,null,null,null,null,null,null,null,null,null,null,null,null,null,null,null,null,null,null,null,null,null,null,null,null,null,null,null,null,null,null,null,null,null,null,null,null,null,null,null,null,null,null,null,null,null,null,null,null,null,null,null,null,null,null,null,null,null,null,null,null,null,null,null,null,null,null,null,null,null,null,null,null,null,null,null,null,null,null,null,null,null,null,null,null,null,null,null,null,null,null,null,null,null,null,null,null,null,null,null,null,null,null,null,null,null,null,null,null,null,null,null,null,null,null,null,null,null,null,null,null,null,null,null,null,null,null,null,null,null,null,null,null,null,null,null,null,null,null,null,null,null,null,null,null,null,null,null,null,null,null,null,null,null,null,null,null,null,null,null,null,null,null,null,null,null,null,null,null,null,null,null,null,null,null,null,null,null,null,null,null,null,null,null,null,null,null,null,null,null,null,null,null,null,null,null,null,null,null,null,null,null,null,null,null,null,null,null,null,null,null,null,null,null,null,null,null,null,null,null,null,null,null,null,null,null,null,null,null,null,null,null,null,null,null,null,null,null,null,null,null,null,null,null,null,null,null,null,null,null,null,null,null,null,null,null,null,null,null,null,null,null,null,null,null,null,null,null,null,null,null,null,null,null,null,null,null,null,null,null,null,null,null,null,null,null,null,null,null,null,null,null,null,null,null,null,null,null,null,null,null,null,null,null,null,null,null,null,null,null,null,null,null,null,null,null,null,null,null,null,null,null,null,null,null,null,null,null,null,null,null,null,null,null,null,null,null,null,null,null,null,null,null,null,null,null,null,null,null,null,null,null,null,null,null,0]
[null,null,null,null,null,null,null,"Y1",{"$f":"IF(AND(D2=0,E2=0),\"\",IF(D2<E2,B1,B3))","v":""},null,null,null,null,null,null,null,null,{"$f":"CH21","v":0},{"$f":"CI21","v":0},"Y19",null,19,{"$f":"IF(AND(R26=0,S26=0),\"\",IF(R26>S26,P25,P27))","v":""},null,null,null,null,null,null,null,null,{"$f":"CH34","v":0},{"$f":"+CI34","v":0},"Y32",null,null,{"$f":"IF(AND(AF26=0,AG26=0),\"\",IF(AF26>AG26,AD24,AD28))","v":""},null,null,null,null,null,null,null,null,null,null,null,null,null,null,null,null,null,null,null,"Y40",{"$f":"IF(AND(BA19=0,BB19=0),\"\",IF(BA19<BB19,AY13,AY25))","v":""},null,null,null,null,null,null,"2.",null,null,null,24,null,null,null,null,{"$f":"P57","v":""},{"$f":"P59","v":""}]
[null,null,null,null,null,null,null,null,null,null,{"$f":"CH15","v":0},{"$f":"CI15","v":0},"Y13",null,13,{"$f":"IF(AND(K27=0,L27=0),\"\",IF(K27>L27,I26,I28))","v":""},null,null,null,null,null,null,null,null,null,null,null,null,26,null,null,null,null,null,null,null,null,null,null,null,null,null,37,null,null,null,null,null,null,null,null,null,null,null,null,null,null,null,null,null,null,null,null,null,null,null,null,null,25,null,null,null,null,{"$f":"W7","v":""},{"$f":"W18","v":""}]
[null,null,null,null,null,null,null,"Y2",{"$f":"IF(AND(D5=0,E5=0),\"\",IF(D5<E5,B4,B6))","v":""},null,null,null,null,null,null,null,null,null,null,null,null,null,null,null,{"$f":"CH28","v":0},{"$f":"+CI28","v":0},"Y26",null,null,{"$f":"IF(AND(Y28=0,Z28=0),\"\",IF(Y28>Z28,W26,W30))","v":""},null,null,null,null,null,null,null,null,null,null,null,null,null,null,null,null,null,null,null,null,null,null,null,null,null,null,null,null,null,null,null,null,null,null,null,null,null,null,26,null,null,null,null,{"$f":"W26","v":""},{"$f":"W30","v":""}]
[null,null,null,null,null,null,null,null,null,null,null,null,null,null,"Y11",{"$f":"IF(AND(K16=0,L16=0),\"\",IF(K16<L16,I14,I17))","v":""},null,null,null,null,null,null,null,null,null,null,null,null,null,null,null,null,null,null,null,null,null,null,null,null,null,null,null,null,null,null,null,null,null,null,null,null,null,null,null,null,null,null,null,null,null,null,null,null,null,null,null,null,27,null,null,null,null,{"$f":"W34","v":""},{"$f":"W38","v":""}]
[null,null,null,null,null,null,null,"Y3",{"$f":"IF(AND(D8=0,E8=0),\"\",IF(D8<E8,B7,B9))","v":""},null,null,null,null,null,null,null,null,{"$f":"CH22","v":0},{"$f":"CI22","v":0},"Y20",null,20,{"$f":"IF(AND(R30=0,S30=0),\"\",IF(R30>S30,P29,P31))","v":""},null,null,null,null,null,null,null,null,null,null,null,null,null,null,null,{"$f":"CH39","v":0},{"$f":"+CI39","v":0},"Y37",null,null,{"$f":"IF(AND(AM30=0,AN30=0),\"\",IF(AM30>AN30,AK26,AK34))","v":""},null,null,null,null,null,null,null,null,null,null,null,null,null,null,null,null,null,null,null,null,null,null,null,null,28,null,null,null,null,{"$f":"W44","v":""},{"$f":"W46","v":""}]
[null,null,null,null,null,null,null,null,null,null,{"$f":"CH16","v":0},{"$f":"CI16","v":0},"Y14",null,14,{"$f":"IF(AND(K31=0,L31=0),\"\",IF(K31>L31,I30,I32))","v":""},null,null,null,null,null,null,null,null,null,null,null,null,null,null,null,null,null,null,null,null,null,null,null,null,null,null,null,null,null,null,null,null,null,"Y39",{"$f":"IF(AND(AT25=0,AU25=0),\"\",IF(AT25<AU25,AR20,AR30))","v":""},null,null,null,null,null,"3.",null,null,null,null,null,null,null,null,null,null,null,29,null,null,null,null,{"$f":"W48","v":""},{"$f":"W50","v":""}]
[null,null,null,null,null,null,null,"Y4",{"$f":"IF(AND(D11=0,E11=0),\"\",IF(D11<E11,B10,B12))","v":""},null,null,null,null,null,null,null,null,null,null,null,null,null,null,null,null,null,null,null,"Y17",{"$f":"IF(AND(R7=0,S7=0),\"\",IF(R7<S7,P4,P9))","v":""},null,null,null,null,null,null,null,null,null,null,null,null,null,null,null,null,null,null,null,null,null,null,null,null,null,null,null,null,null,null,null,null,null,null,null,null,null,null,30,null,null,null,null,{"$f":"W54","v":""},{"$f":"W58","v":""}]
[null,null,null,null,null,null,null,null,null,null,null,null,null,null,"Y10",{"$f":"IF(AND(K10=0,L10=0),\"\",IF(K10<L10,I8,I11))","v":""},null,null,null,null,null,null,null,null,null,null,null,null,null,null,null,null,null,null,null,33,null,null,null,null,null,null,null,null,null,null,null,null,null,null,null,null,null,null,null,null,null,null,null,null,null,null,null,null,null,null,null,null,31,null,null,null,null,{"$f":"W60","v":""},{"$f":"W62","v":""}]
[null,null,null,null,null,null,null,"Y5",{"$f":"IF(AND(D14=0,E14=0),\"\",IF(D14<E14,B13,B15))","v":""},null,null,null,null,null,null,null,null,{"$f":"CH23","v":0},{"$f":"CI23","v":0},"Y21",null,21,{"$f":"IF(AND(R34=0,S34=0),\"\",IF(R34>S34,P33,P35))","v":""},null,null,null,null,null,null,null,null,{"$f":"CH35","v":0},{"$f":"+CI35","v":0},"Y33",null,null,{"$f":"IF(AND(AF34=0,AG34=0),\"\",IF(AF34>AG34,AD32,AD36))","v":""},null,null,null,null,null,null,null,null,null,null,null,null,null,null,null,null,null,null,null,null,null,null,null,null,null,null,null,null,null,null,null,32,null,null,null,null,{"$f":"AD24","v":""},{"$f":"AD28","v":""}]
[null,null,null,null,null,null,null,null,null,null,{"$f":"CH17","v":0},{"$f":"CI17","v":0},"Y15",null,15,{"$f":"IF(AND(K35=0,L35=0),\"\",IF(K35>L35,I34,I36))","v":""},null,null,null,null,null,null,null,null,null,null,null,null,27,null,null,null,null,null,null,null,null,null,null,null,null,null,"Y37",{"$f":"IF(AND(AM30=0,AN30=0),\"\",IF(AM30<AN30,AK26,AK34))","v":""},null,null,null,null,null,null,"4.",null,null,null,null,null,null,null,null,null,null,null,null,null,null,null,null,null,33,null,null,null,null,{"$f":"AD32","v":""},{"$f":"AD36","v":""}]
[null,null,null,null,null,null,null,"Y6",{"$f":"IF(AND(D17=0,E17=0),\"\",IF(D17<E17,B16,B18))","v":""},null,null,null,null,null,null,null,null,null,null,null,null,null,null,null,{"$f":"CH29","v":0},{"$f":"+CI29","v":0},"Y27",null,null,{"$f":"IF(AND(Y36=0,Z36=0),\"\",IF(Y36>Z36,W34,W38))","v":""},null,null,null,null,null,null,null,null,null,null,null,null,null,null,null,null,null,null,null,null,null,null,null,null,null,null,null,null,null,null,null,null,null,null,null,null,null,null,34,null,null,null,null,{"$f":"AD41","v":""},{"$f":"AD43","v":""}]
[null,null,null,null,null,null,null,null,null,null,null,null,null,null,"Y9",{"$f":"IF(AND(K4=0,L4=0),\"\",IF(K4<L4,I2,I5))","v":""},null,null,null,null,null,null,null,null,null,null,null,null,null,null,null,null,null,null,null,"Y32",{"$f":"IF(AND(AF26=0,AG26=0),\"\",IF(AF26<AG26,AD24,AD28))","v":""},null,null,null,null,null,null,null,null,null,null,null,null,null,null,null,null,null,null,null,null,null,null,null,null,null,null,null,null,null,null,null,35,null,null,null,null,{"$f":"AD45","v":""},{"$f":"AD49","v":""}]
[null,null,null,null,null,null,null,"Y7",{"$f":"IF(AND(D20=0,E20=0),\"\",IF(D20<E20,B19,B21))","v":""},null,null,null,null,null,null,null,null,{"$f":"CH24","v":0},{"$f":"CI24","v":0},"Y22",null,22,{"$f":"IF(AND(R38=0,S38=0),\"\",IF(R38>S38,P37,P39))","v":""},null,null,null,null,null,null,null,null,null,null,null,null,null,null,null,{"$f":"CH40","v":0},{"$f":"+CI40","v":0},"Y38",null,38,{"$f":"IF(AND(AM38=0,AN38=0),\"\",IF(AM38>AN38,AK37,AK39))","v":""},null,null,null,null,null,null,"5.",null,null,null,null,null,null,null,null,null,null,null,null,null,null,null,null,null,36,null,null,null,null,{"$f":"AD51","v":""},{"$f":"AD53","v":""}]
[null,null,null,null,null,null,null,null,null,null,{"$f":"CH18","v":0},{"$f":"CI18","v":0},"Y16",null,16,{"$f":"IF(AND(K39=0,L39=0),\"\",IF(K39>L39,I38,I40))","v":""},null,null,null,null,null,null,null,null,null,null,null,null,null,null,null,null,null,null,null,"Y33",{"$f":"IF(AND(AF34=0,AG34=0),\"\",IF(AF34<AG34,AD32,AD36))","v":""},null,null,null,null,null,null,null,null,null,null,null,null,null,null,null,null,null,null,null,null,null,null,null,null,null,null,null,null,null,null,null,37,null,null,null,null,{"$f":"AK26","v":""},{"$f":"AK34","v":""}]
[null,null,null,null,null,null,null,"Y8",{"$f":"IF(AND(D23=0,E23=0),\"\",IF(D23<E23,B22,B24))","v":""},null,null,null,null,null,null,null,null,null,null,null,null,null,null,null,null,null,null,null,null,null,null,null,null,null,null,null,null,null,null,null,null,null,"Y38",{"$f":"IF(AND(AM38=0,AN38=0),\"\",IF(AM38<AN38,AK37,AK39))","v":""},null,null,null,null,null,null,"6.",null,null,null,null,null,null,null,null,null,null,null,null,null,null,null,null,null,38,null,null,null,null,{"$f":"AK37","v":""},{"$f":"AK39","v":""}]
[null,null,null,null,null,null,null,null,null,null,null,null,null,null,null,null,null,null,null,null,null,null,null,null,null,null,null,null,"Y26",{"$f":"IF(AND(Y28=0,Z28=0),\"\",IF(Y28<Z28,W26,W30))","v":""},null,null,null,null,null,null,null,null,null,null,null,null,null,null,null,null,null,null,null,null,null,null,null,null,null,null,null,null,null,null,null,null,null,null,null,null,null,null,39,null,null,null,null,{"$f":"AR20","v":""},{"$f":"AR30","v":""}]
[null,null,null,null,null,null,null,null,null,null,null,null,null,null,null,null,null,null,null,null,null,null,null,null,null,null,null,null,null,null,null,{"$f":"CH36","v":0},{"$f":"+CI36","v":0},"Y34",null,34,{"$f":"IF(AND(AF42=0,AG42=0),\"\",IF(AF42>AG42,AD41,AD43))","v":""},null,null,null,null,null,null,"7.",null,null,null,null,null,null,null,null,null,null,null,null,null,null,null,null,null,null,null,null,null,null,null,null,40,"2025-03-09",null,null,null,{"$f":"AY13","v":""},{"$f":"AY25","v":""}]
[null,null,null,null,null,null,null,null,null,null,null,null,null,null,null,null,null,null,null,null,null,null,null,null,null,null,null,null,"Y27",{"$f":"IF(AND(Y36=0,Z36=0),\"\",IF(Y36<Z36,W34,W38))","v":""}]
[null,null,null,null,null,null,null,null,null,null,null,null,null,null,null,null,null,null,null,null,null,"Y19",{"$f":"IF(AND(R26=0,S26=0),\"\",IF(R26<S26,P25,P27))","v":""},null,null,null,null,null,null,null,null,null,null,null,null,"Y34",{"$f":"IF(AND(AF42=0,AG42=0),\"\",IF(AF42<AG42,AD41,AD43))","v":""},null,null,null,null,null,null,"8."]
[null,null,null,null,null,null,null,null,null,null,null,null,null,null,null,null,null,null,null,null,null,null,null,null,{"$f":"CH30","v":0},{"$f":"+CI30","v":0},"Y28",null,28,{"$f":"IF(AND(Y45=0,Z45=0),\"\",IF(Y45>Z45,W44,W46))","v":""}]
[null,null,null,null,null,null,null,null,null,null,null,null,null,null,null,null,null,null,null,null,null,"Y20",{"$f":"IF(AND(R30=0,S30=0),\"\",IF(R30<S30,P29,P31))","v":""},null,null,null,null,null,null,null,null,null,null,null,null,35]
[null,null,null,null,null,null,null,null,null,null,null,null,null,null,null,null,null,null,null,null,null,null,null,null,null,null,null,null,null,null,null,{"$f":"CH37","v":0},{"$f":"+CI37","v":0},"Y35",null,null,{"$f":"IF(AND(AF47=0,AG47=0),\"\",IF(AF47>AG47,AD45,AD49))","v":""},null,null,null,null,null,null,"9."]
[null,null,null,null,null,null,null,null,null,null,null,null,null,null,null,null,null,null,null,null,null,"Y21",{"$f":"IF(AND(R34=0,S34=0),\"\",IF(R34<S34,P33,P35))","v":""}]
[null,null,null,null,null,null,null,null,null,null,null,null,null,null,null,null,null,null,null,null,null,null,null,null,{"$f":"CH31","v":0},{"$f":"+CI31","v":0},"Y29",null,29,{"$f":"IF(AND(Y49=0,Z49=0),\"\",IF(Y49>Z49,W48,W50))","v":""}]
[null,null,null,null,null,null,null,null,null,null,null,null,null,null,null,null,null,null,null,null,null,"Y22",{"$f":"IF(AND(R38=0,S38=0),\"\",IF(R38<S38,P37,P39))","v":""},null,null,null,null,null,null,null,null,null,null,null,null,"Y35",{"$f":"IF(AND(AF47=0,AG47=0),\"\",IF(AF47<AG47,AD45,AD49))","v":""},null,null,null,null,null,null,"10."]
[null,null,null,null,null,null,null,null,null,null,null,null,null,null,null,null,null,null,null,null,null,null,null,null,null,null,null,null,"Y28",{"$f":"IF(AND(Y45=0,Z45=0),\"\",IF(Y45<Z45,W44,W46))","v":""}]
[null,null,null,null,null,null,null,null,null,null,null,null,null,null,null,null,null,null,null,null,null,null,null,null,null,null,null,null,null,null,null,{"$f":"CH38","v":0},{"$f":"+CI38","v":0},"Y36",null,36,{"$f":"IF(AND(AF52=0,AG52=0),\"\",IF(AF52>AG52,AD51,AD53))","v":""},null,null,null,null,null,null,"11."]
[null,null,null,null,null,null,null,null,null,null,null,null,null,null,"Y13",{"$f":"IF(AND(K27=0,L27=0),\"\",IF(K27<L27,I26,I28))","v":""},null,null,null,null,null,null,null,null,null,null,null,null,"Y29",{"$f":"IF(AND(Y49=0,Z49=0),\"\",IF(Y49<Z49,W48,W50))","v":""}]
[null,null,null,null,null,null,null,null,null,null,null,null,null,null,null,null,null,{"$f":"CH25","v":0},{"$f":"CI25","v":0},"Y23",null,23,{"$f":"IF(AND(R54=0,S54=0),\"\",IF(R54>S54,P53,P55))","v":""},null,null,null,null,null,null,null,null,null,null,null,null,"Y36",{"$f":"IF(AND(AF52=0,AG52=0),\"\",IF(AF52<AG52,AD51,AD53))","v":""},null,null,null,null,null,null,"12."]
[null,null,null,null,null,null,null,null,null,null,null,null,null,null,"Y14",{"$f":"IF(AND(K31=0,L31=0),\"\",IF(K31<L31,I30,I32))","v":""},null,null,null,null,null,null,null,null,null,null,null,null,30]
[null,null,null,null,null,null,null,null,null,null,null,null,null,null,null,null,null,null,null,null,null,null,null,null,{"$f":"CH32","v":0},{"$f":"+CI32","v":0},"Y30",null,null,{"$f":"IF(AND(Y56=0,Z56=0),\"\",IF(Y56>Z56,W54,W58))","v":""},null,null,null,null,null,null,"13."]
[null,null,null,null,null,null,null,null,null,null,null,null,null,null,"Y15",{"$f":"IF(AND(K35=0,L35=0),\"\",IF(K35<L35,I34,I36))","v":""}]
[null,null,null,null,null,null,null,null,null,null,null,null,null,null,null,null,null,{"$f":"CH26","v":0},{"$f":"CI26","v":0},"Y24",null,24,{"$f":"IF(AND(R58=0,S58=0),\"\",IF(R58>S58,P57,P59))","v":""}]
[null,null,null,null,null,null,null,null,null,null,null,null,null,null,"Y16",{"$f":"IF(AND(K39=0,L39=0),\"\",IF(K39<L39,I38,I40))","v":""},null,null,null,null,null,null,null,null,null,null,null,null,"Y30",{"$f":"IF(AND(Y56=0,Z56=0),\"\",IF(Y56<Z56,W54,W58))","v":""},null,null,null,null,null,null,"14."]
[null,null,null,null,null,null,null,null,null,null,null,null,null,null,null,null,null,null,null,null,null,"Y23",{"$f":"IF(AND(R54=0,S54=0),\"\",IF(R54<S54,P53,P55))","v":""}]
[null,null,null,null,null,null,null,null,null,null,null,null,null,null,null,null,null,null,null,null,null,null,null,null,{"$f":"CH33","v":0},{"$f":"+CI33","v":0},"Y31",null,31,{"$f":"IF(AND(Y61=0,Z61=0),\"\",IF(Y61>Z61,W60,W62))","v":""},null,null,null,null,null,null,"15."]
[null,null,null,null,null,null,null,null,null,null,null,null,null,null,null,null,null,null,null,null,null,"Y24",{"$f":"IF(AND(R58=0,S58=0),\"\",IF(R58<S58,P57,P59))","v":""}]
[null,null,null,null,null,null,null,null,null,null,null,null,null,null,null,null,null,null,null,null,null,null,null,null,null,null,null,null,"Y31",{"$f":"IF(AND(Y61=0,Z61=0),\"\",IF(Y61<Z61,W60,W62))","v":""},null,null,null,null,null,null,"16."]

{"sheet":"SIRALAMA","index":6,"n_rows":37,"n_cols":14,"rows_kept":37,"cut":false,"hidden":false,"merged":[[0,0,1,5],[2,0,2,4]]}
["TÜRKİYE MASA TENİSİ FEDERASYONU\nİsmail Eren ALICI Küçükler Ferdi-Takım TÜRKİYE ŞAMPİYONASI                                                                                                                                                                                          09-13 Nisan 2025 ÇORUM",null,null,null,null,null,null,null,null,null,null,null,"32 (DE)",1]
[null,null,null,null,null,null,null,null,null,null,null,null,"16 (DE)"]
["Tek Erkek Sıralama",null,null,null,null,null,null,null,null,null,null,null,"-------"]
[]
[null,"Sıra","Sporcu Adı-Soyadı","Kulübü","İli"]
[null,1,"AKİF EMRE BUCAK (İST)","İSTANBUL DSİ SPOR ","İSTANBUL"]
[null,2,"AHMET ÇELİK (ÇRM)","ARENA SPOR","ÇORUM"]
[null,3,"YİĞİT HÜSEYİN SUBAŞI (ÇRM)","ARENA SPOR","ÇORUM"]
[null,4,"BERAT ÖZDEMİR (ÇRM)","ÇORUM BLD. SPOR","ÇORUM "]
[null,5,"AHMET BERK TÜKENMEZ (İST)","FENERBAHÇE","İSTANBUL"]
[null,6,"AHMET YİĞİT GÜLENLER (GZT)","GAZİANTEP BLD. SPOR","GAZİANTEP"]
[null,7,"ALİ ENES SEREN (KNY)","SELÇUKLU BELEDİYESPOR","KONYA"]
[null,8,"ARAS AYDIN (İST)","FENERBAHÇE","İSTANBUL"]
[null,9,"MUSTAFA YILDIRIM (İST)","İBB SPOR","İSTANBUL"]
[null,10,"BEYAZIT BERK DEMİR (AMS)","KUTLUBEY OKULLARI","AMASYA"]
[null,11,"AHMET EMİR KALKAN (GZT)","GAZİANTEP BLD. SPOR","GAZİANTEP"]
[null,12,"BERK TURAN (YLV)","YALOVA BLD. GENÇLİK SPOR","YALOVA"]
[null,13,"ALİ BERKE GÜMÜŞ (KNY)","KARATAY BLD. SPOR","KONYA"]
[null,14,"KAYA ARSLAN (İST)","YILDIZ RAKETLER","İSTANBUL"]
[null,15,"FURKAN KONYALI (ÇRM)","ARENA SPOR","ÇORUM"]
[null,16,"MEHMET FATİH GEZER (İST)","FENERBAHÇE","İSTANBUL"]
[null,17,"ALİ SAİD AKDOĞAN (ÇRM)","FERDİ","ÇORUM "]
[null,17,"SELİM AZAZİ (ANK)","LİDER ENGELLİLER","ANKARA"]
[null,17,"CEMAL AYAZ KARTAL (YLV)","YALOVA BLD. GENÇLİK SPOR","YALOVA"]
[null,17,"AKİF EFE ASLANPAY (MĞL)","BODVED","MUĞLA"]
[null,17,"BARAN ERDEM (BTM)","1955 BATMAN BLD. SPOR","BATMAN"]
[null,17,"DEMİR YÖNÜ (İST)","YILDIZ RAKETLER","İSTANBUL"]
[null,17,"MUHAMMED EMİN KABADAYI (BRS)","BURSA B. ŞEHİR BLD. SPOR","BURSA"]
[null,17,"MUHAMMED BARIŞ KALKAN (GZT)","GAZİANTEP GENÇLİK SPOR","GAZİANTEP"]
[null,25,"MUSTAFA KAYRA TURAN (KNY)","SELÇUKLU BELEDİYESPOR","KONYA"]
[null,25,"KEREM GÜLLER (İST)","İSTANBUL DSİ SPOR","İSTANBUL"]
[null,25,"AHMET EFE YILMAZ (İST)","İBB SPOR","İSTANBUL"]
[null,25,"METEHAN ŞAHİN (GZT)","GAZİANTEP GENÇLİK SPOR","GAZİANTEP"]
[null,25,"ENSAR ERFİDAN (VAN       )","YENİ ÖZVAN GENÇLİK SPOR","VAN       "]
[null,25,"DURSUN AYAZ NARMAN (KRK)","KIRIKKALE GSİMSK","KIRIKKALE"]
[null,25,"KERİM ESAT ODACI (KNY)","KARATAY BLD. SPOR","KONYA"]
[null,25,"KUZEY ÖZNERGİZ (DNZ)","DENİZLİ B.ŞEHİR BLD. SPOR","DENİZLİ"]